{"text_format":"1","workbook":"xlsx","n_sheets":6,"sheets":["New Topics","Start","Import","Sheet2","Sheet3","Index"],"not_rendered":{"charts":0,"images":50,"macros":1,"external_links":0,"defined_names":0,"comments":2,"pivot_tables":0},"unopened":[],"bounds":{"document_bytes":16777216,"sheet_cells":100000,"rows_first":2000,"rows_last":500,"rows_between":2000,"halvings":0,"cell_chars":16384,"cell_head_chars":4096},"cells_cut":0,"cells_raw":0,"read":"whole","date_system":"1900"}

{"sheet":"New Topics","index":0,"n_rows":0,"n_cols":0,"rows_kept":0,"cut":false,"hidden":true,"merged":[]}

{"sheet":"Start","index":1,"n_rows":29,"n_cols":13,"rows_kept":29,"cut":false,"hidden":false,"merged":[]}
[{"$f":"CELL(\"Address\",A1)","v":"$A$1"},2,null,{"$f":"INDIRECT(A3)","v":45968.659479166665},"Entry?",{"$f":"INDIRECT(A4)","v":"Iterum"},"Entry?",null,"Update in progress",null,"New index"]
[null,null,null,null,{"$f":"D1>0","v":true},null,{"$f":"F1=0","v":false},null,{"$f":"$D$1=I1","v":false},null,{"$f":"$D$1=K1","v":false},{"$f":"OR(I2,K2)","v":false},{"$f":"OR($D$1=0,K2)","v":false}]
["Import!I1",null,null,null,null,"There is an exising index, last updated ",null,"(Find the last entry on or before the above date. All entries prior to this are new. Note If that is not page 1, append the new entries on subsequent pages.)"]
["Import!A2",null,null,null,null,"To create a new Index:",null,"Paste entries from subsequent pages below these to make one continuous list."]
[null,null,null,null,null,{"$f":"\"Go to step \" & IF(G2,2,4)","v":"Go to step 4"}]
["To create a new Index or update an existing one:"]
[]
[null,null,null,null,null,null,{"$f":"IF(L2,I1,IF(E2,F3,F4))","v":"There is an exising index, last updated "},{"$f":"IF(L2,F5,IF(E2,D1,\"\"))","v":"2025-11-07T15:49:39"}]
[]
[null,1,"Add topics created since the index was last updated."]
[]
[null,2,"Open the","Paper","forum on SOS and copy the rows containing new topic titles."]
[null,null,{"$f":"IF(M2,\"\",H3)","v":"(Find the last entry on or before the above date. All entries prior to this are new. Note If that is not page 1, append the new entries on subsequent pages.)"}]
[]
[null,3,"Paste these into cell A1 on the 'New Topics' sheet and return to this sheet."]
[null,null,{"$f":"IF(M2,H4,\"\")","v":""}]
[]
[null,4,"Click [Extract data] to copy the names and links from the' Import' sheet."]
[]
[null,5,"On sheet 3, enter any missing ship's names in column 'A' Omit 'HMS', 'USS' etc."]
[]
[null,6,"At this point, you may continue or simply click [Finish]"]
[]
[]
[null,"Note:"]
[null,null,"If you are logged in as a \"Staff Member\" extra fields may be added to an entry on the forum page."]
[null,null,"This will create errors in th [Extract data] process."]
[]
[null,null,"Log out before importing new topics."]

{"sheet":"Import","index":2,"n_rows":1151,"n_cols":9,"rows_kept":1151,"cut":false,"hidden":false,"merged":[]}
["Сестрорецк [Sestroretsk] Scratchbuild scale 1/64 Russ. torpedo boat 1894","https://shipsofscale.com/sosforums/threads/%D0%A1%D0%B5%D1%81%D1%82%D1%80%D0%BE%D1%80%D0%B5%D1%86%D0%BA-sestroretsk-scratchbuild-scale-1-64-russ-torpedo-boat-1894.15657/",null,null,null,null,null,null,"2025-11-07T15:49:39"]
["Iterum"]
["Nov 5, 2024"]
[2]
["Replies"]
[26]
["Views"]
[1798]
["Wednesday at 4:23 PM"]
["Iterum"]
["Hms Sussex - A dockyard model made of card","https://shipsofscale.com/sosforums/threads/hms-sussex-a-dockyard-model-made-of-card.17693/"]
["Ab Hoving"]
["Sep 8, 2025"]
["2 3"]
["Replies"]
[49]
["Views"]
[4889]
["Wednesday at 4:47 AM"]
["11320 Titanic"]
["RMS Queen Mary (Scale 1:1250)","https://shipsofscale.com/sosforums/threads/rms-queen-mary-scale-1-1250.7381/"]
["Jhoanor"]
["Apr 15, 2021"]
[2]
["Replies"]
[30]
["Views"]
[6181]
["Oct 25, 2025"]
["genius"]
["Seahorse LEUDO VINACCIERE 1/72","https://shipsofscale.com/sosforums/threads/seahorse-leudo-vinacciere-1-72.6765/"]
["Iterum"]
["Jan 16, 2021"]
["Replies"]
[13]
["Views"]
[2798]
["Oct 15, 2025"]
["Iterum"]
["Steam tug STROHGBOV - 1:100 scale, own development.","https://shipsofscale.com/sosforums/threads/steam-tug-strohgbov-1-100-scale-own-development.15600/"]
["Lachezar Dragostinov"]
["Oct 29, 2024"]
[2]
["Replies"]
[25]
["Views"]
[1829]
["Oct 11, 2025"]
["genius"]
["New to Card Ships","https://shipsofscale.com/sosforums/threads/new-to-card-ships.17813/"]
["Tony1955"]
["Sep 28, 2025"]
["Replies"]
[5]
["Views"]
[735]
["Oct 8, 2025"]
["Tony1955"]
["Russian torpedo boat KIT1899 or teaching modelbuilding","https://shipsofscale.com/sosforums/threads/russian-torpedo-boat-kit1899-or-teaching-modelbuilding.17355/"]
["Iterum"]
["Jul 14, 2025"]
[2]
["Replies"]
[31]
["Views"]
[2770]
["Oct 2, 2025"]
["Iterum"]
["Magnus Mörck","https://shipsofscale.com/sosforums/threads/magnus-m%C3%B6rck.13492/",null,null,null,null,null,null,"2025-06-01T12:24:57"]
["The learner"]
["Jan 21, 2024"]
["Replies"]
[6]
["Views"]
[684]
["Tuesday at 7:57 PM"]
["The learner"]
["An English Royal yacht","https://shipsofscale.com/sosforums/threads/an-english-royal-yacht.16993/"]
["Ab Hoving"]
["May 23, 2025"]
["Replies"]
[11]
["Views"]
[661]
["Monday at 8:53 AM"]
["Peter Voogt"]
["Shipyard 1/96 Santa Leocadia paper model build","https://shipsofscale.com/sosforums/threads/shipyard-1-96-santa-leocadia-paper-model-build.15290/"]
["BigKeith95"]
["Sep 13, 2024"]
["2 3"]
["Replies"]
[45]
["Views"]
[2621]
["May 24, 2025"]
["BigKeith95"]
["RMS Empress of Ireland, my templates and build","https://shipsofscale.com/sosforums/threads/rms-empress-of-ireland-my-templates-and-build.16942/"]
["someCO_OLguy"]
["May 15, 2025"]
["Replies"]
[0]
["Views"]
[103]
["May 15, 2025"]
["someCO_OLguy"]
["RMS Carpathia 1:600 paper model build","https://shipsofscale.com/sosforums/threads/rms-carpathia-1-600-paper-model-build.16921/"]
["someCO_OLguy"]
["May 11, 2025"]
["Replies"]
[1]
["Views"]
[402]
["May 11, 2025"]
["someCO_OLguy"]
["AKERBOOM 1681 after Ab Hoving nominally 1/66 but drawings in 1/64","https://shipsofscale.com/sosforums/threads/akerboom-1681-after-ab-hoving-nominally-1-66-but-drawings-in-1-64.13749/"]
["Iterum"]
["Feb 18, 2024"]
["3 4 5 6 7 8 9 10 11 12"]
["Replies"]
[222]
["Views"]
[14572]
["May 5, 2025"]
["Maarten"]
["Axel Thorsen 1810 - 1/72 (test)","https://shipsofscale.com/sosforums/threads/axel-thorsen-1810-1-72-test.15059/"]
["0Seahorse"]
["Aug 11, 2024"]
["Replies"]
[10]
["Views"]
[647]
["May 2, 2025"]
["0Seahorse"]
["IJN Fuso 1944 by wieslaw_ - Halinski - 1/200 - CARD - with 3D print","https://shipsofscale.com/sosforums/threads/ijn-fuso-1944-by-wieslaw_-halinski-1-200-card-with-3d-print.16707/"]
["wieslaw_"]
["Apr 10, 2025"]
[2]
["Replies"]
[23]
["Views"]
[744]
["Apr 14, 2025"]
["Raysven"]
["Postiljon, a Dutch frigate (1661-1678)","https://shipsofscale.com/sosforums/threads/postiljon-a-dutch-frigate-1661-1678.15220/"]
["Ab Hoving"]
["Sep 1, 2024"]
["2 3"]
["Replies"]
[45]
["Views"]
[2971]
["Apr 6, 2025"]
["Ab Hoving"]
["1/64 A real Pirateship - af Chapman's ANM XL N° 11","https://shipsofscale.com/sosforums/threads/1-64-a-real-pirateship-af-chapmans-anm-xl-n%C2%B0-11.16618/"]
["Iterum"]
["Mar 27, 2025"]
["Replies"]
[1]
["Views"]
[138]
["Apr 4, 2025"]
["Iterum"]
["ProModel ADMIRAL USHAKOW 1/200","https://shipsofscale.com/sosforums/threads/promodel-admiral-ushakow-1-200.15156/"]
["Iterum"]
["Aug 23, 2024"]
["Replies"]
[19]
["Views"]
[755]
["Mar 5, 2025"]
["Alan Smith"]
["1/200 Gpm Bismark with laser cut frames","https://shipsofscale.com/sosforums/threads/1-200-gpm-bismark-with-laser-cut-frames.6446/",null,null,null,null,null,null,"2025-02-02T16:51:35"]
["Peterairfix"]
["Nov 29, 2020"]
["Replies"]
[17]
["Views"]
[2793]
["Monday at 3:45 AM"]
["Peterairfix"]
["Schooner JACINTHE, Kgdm. of France, 1825 Scratch 1/64","https://shipsofscale.com/sosforums/threads/schooner-jacinthe-kgdm-of-france-1825-scratch-1-64.16060/"]
["Iterum"]
["Jan 1, 2025"]
[2]
["Replies"]
[25]
["Views"]
[971]
["Jan 20, 2025"]
["Iterum"]
["RMS Titanic 1:100","https://shipsofscale.com/sosforums/threads/rms-titanic-1-100.15871/"]
["someCO_OLguy"]
["Dec 5, 2024"]
["Replies"]
[8]
["Views"]
[567]
["Dec 11, 2024"]
["someCO_OLguy"]
["De Zeven Provincien 1665 - 1.100, Fa. Seahorse (Tomasz Weremko)","https://shipsofscale.com/sosforums/threads/de-zeven-provincien-1665-1-100-fa-seahorse-tomasz-weremko.14220/"]
["Bonden"]
["Apr 15, 2024"]
[2]
["Replies"]
[37]
["Views"]
[2725]
["Wednesday at 4:02 PM"]
["Bonden"]
["Orel USS Cairo","https://shipsofscale.com/sosforums/threads/orel-uss-cairo.15371/"]
["romfolmar"]
["Sep 23, 2024"]
["Replies"]
[8]
["Views"]
[244]
["Nov 24, 2024"]
["romfolmar"]
["Russian Steam Launch","https://shipsofscale.com/sosforums/threads/russian-steam-launch.15531/"]
["Iterum"]
["Oct 17, 2024"]
["Replies"]
[11]
["Views"]
[338]
["Nov 5, 2024"]
["Iterum"]
["A 160 foot Dutch Eastindiaman (VOC) 1699 [COMPLETED BUILD]","https://shipsofscale.com/sosforums/threads/a-160-foot-dutch-eastindiaman-voc-1699.9233/"]
["Ab Hoving"]
["Feb 8, 2022"]
[2]
["Replies"]
[24]
["Views"]
[3924]
["Nov 3, 2024"]
["Jimsky"]
["HMS Alert destroyed","https://shipsofscale.com/sosforums/threads/hms-alert-destroyed.14914/"]
["11320 Titanic"]
["Jul 23, 2024"]
[2]
["Replies"]
[23]
["Views"]
[1851]
["Nov 3, 2024"]
["11320 Titanic"]
["Ship in trouble","https://shipsofscale.com/sosforums/threads/ship-in-trouble.13276/"]
["Ab Hoving"]
["Dec 26, 2023"]
["2 3 4"]
["Replies"]
[77]
["Views"]
[6790]
["Nov 3, 2024"]
["Ab Hoving"]
["Scratch 1/64 STERLYAD Russ. Gunboat 1855","https://shipsofscale.com/sosforums/threads/scratch-1-64-sterlyad-russ-gunboat-1855.15561/"]
["Iterum"]
["Oct 23, 2024"]
["Replies"]
[14]
["Views"]
[574]
["Nov 1, 2024"]
["iutar"]
["ALBATROS","https://shipsofscale.com/sosforums/threads/albatros.15213/"]
["Llaut Mallorquin"]
["Aug 31, 2024"]
["Replies"]
[10]
["Views"]
[243]
["Oct 8, 2024"]
["Llaut Mallorquin"]
["German coastal armored ship \"SMS Beowulf\", scale 1:250 [COMPLETED BUILD]","https://shipsofscale.com/sosforums/threads/german-coastal-armored-ship-sms-beowulf-scale-1-250.15295/"]
["Lachezar Dragostinov"]
["Sep 14, 2024"]
["Replies"]
[17]
["Views"]
[720]
["Oct 5, 2024"]
["Lachezar Dragostinov"]
["Multipurpose vessel Mellum by HMV, skale 1:250 [COMPLETED BUILD]","https://shipsofscale.com/sosforums/threads/multipurpose-vessel-mellum-by-hmv-skale-1-250.14968/"]
["Lachezar Dragostinov"]
["Jul 30, 2024"]
["Replies"]
[9]
["Views"]
[688]
["Thursday at 9:10 PM"]
["Bryian"]
["A 143 feet long Dutch warship from 1681. Cardstock [COMPLETED BUILD]","https://shipsofscale.com/sosforums/threads/a-143-feet-long-dutch-warship-from-1681-cardstock.4634/"]
["Ab Hoving"]
["Mar 29, 2020"]
["2 3 4 5"]
["Replies"]
[85]
["Views"]
[15103]
["Sep 9, 2024"]
["The learner"]
["HMS FIJI - scratch model - scale 1:400 [COMPLETED BUILD]","https://shipsofscale.com/sosforums/threads/hms-fiji-scratch-model-scale-1-400.14722/"]
["SZKUTNIK"]
["Jun 26, 2024"]
["Replies"]
[2]
["Views"]
[337]
["Sep 9, 2024"]
["The learner"]
["PROUD MARY","https://shipsofscale.com/sosforums/threads/proud-mary.15242/"]
["Llaut Mallorquin"]
["Sep 3, 2024"]
["Replies"]
[3]
["Views"]
[96]
["Sep 9, 2024"]
["The learner"]
["Experiment Oberfläche für Karton Schiffe Orient","https://shipsofscale.com/sosforums/threads/experiment-oberfl%C3%A4che-f%C3%BCr-karton-schiffe-orient.15206/"]
["Käptn Ahab"]
["Friday at 4:40 AM"]
["Replies"]
[0]
["Views"]
[28]
["Friday at 4:40 AM"]
["Käptn Ahab"]
["New Papermodels","https://shipsofscale.com/sosforums/threads/new-papermodels.6948/"]
["Wilhelm Thümler"]
["Feb 9, 2021"]
["Replies"]
[5]
["Views"]
[1518]
["Aug 23, 2024"]
["Uwek"]
["HMS Enterprize 1/96 card model from Shipyard","https://shipsofscale.com/sosforums/threads/hms-enterprize-1-96-card-model-from-shipyard.4495/"]
["Pgtaylorart"]
["Mar 1, 2020"]
["2 3"]
["Replies"]
[43]
["Views"]
[8517]
["Aug 22, 2024"]
["Meriadoc Brandybuck"]
["HMV Flower Class HMCS Corvette Agassiz 1:250 scale [COMPLETED BUILD]","https://shipsofscale.com/sosforums/threads/hmv-flower-class-hmcs-corvette-agassiz-1-250-scale.14495/"]
["johngr"]
["May 30, 2024"]
["Replies"]
[17]
["Views"]
[756]
["Yesterday at 11:41 AM"]
["Senorbob"]
["HMS Mercury, 1:72, Shipyard [COMPLETED BUILD]","https://shipsofscale.com/sosforums/threads/hms-mercury-1-72-shipyard.2642/"]
["Bonden"]
["Nov 9, 2018"]
["7 8 9 10 11 12 13 14 15 16"]
["Replies"]
[318]
["Views"]
[51831]
["Yesterday at 11:10 AM"]
["Senorbob"]
["Rapid intervention vessel Alert 1:100 [COMPLETED BUILD]","https://shipsofscale.com/sosforums/threads/rapid-intervention-vessel-alert-1-100.14955/"]
["Lachezar Dragostinov"]
["Sunday at 4:49 AM"]
["Replies"]
[4]
["Views"]
[211]
["Monday at 5:45 AM"]
["Lachezar Dragostinov"]
["HMS MATABELE - scale 1-400","https://shipsofscale.com/sosforums/threads/hms-matabele-scale-1-400.14723/",null,null,null,null,null,null,"2024-07-03T09:49:26"]
["SZKUTNIK"]
["Jun 26, 2024"]
["Replies"]
[0]
["Views"]
[160]
["Jun 26, 2024"]
["SZKUTNIK"]
["HMS EDINBURGH - scratch model - scale 1:400 [COMPLETED BUILD]","https://shipsofscale.com/sosforums/threads/hms-edinburgh-scratch-model-scale-1-400.14721/"]
["SZKUTNIK"]
["Jun 26, 2024"]
["Replies"]
[1]
["Views"]
[76]
["Jun 26, 2024"]
["SZKUTNIK"]
["Finished","https://shipsofscale.com/sosforums/threads/finished.9358/"]
["Ab Hoving"]
["Feb 27, 2022"]
["2 3 4 5 6"]
["Replies"]
[104]
["Views"]
[14980]
["Jun 21, 2024"]
["WilliamM"]
["The Dutch yacht 18th century [COMPLETED BUILD]","https://shipsofscale.com/sosforums/threads/the-dutch-yacht-18th-century.5760/"]
["Demetri"]
["Aug 15, 2020"]
[2]
["Replies"]
[36]
["Views"]
[4633]
["Jun 16, 2024"]
["Dumi"]
["Celtic Voyager - Paper Shipwright - 1:250 - CARD","https://shipsofscale.com/sosforums/threads/celtic-voyager-paper-shipwright-1-250-card.14359/"]
["johngr"]
["May 10, 2024"]
["Replies"]
[6]
["Views"]
[392]
["May 19, 2024"]
["johngr"]
["Speeljacht 1:50 (new project of \"Seahorse\")","https://shipsofscale.com/sosforums/threads/speeljacht-1-50-new-project-of-seahorse.13940/"]
["0Seahorse"]
["Mar 8, 2024"]
["Replies"]
[12]
["Views"]
[909]
["May 13, 2024"]
["The learner"]
["\"De Zeven Provincien\" 1:100 (scratch) - Seahorse New Design [COMPLETED BUILD]","https://shipsofscale.com/sosforums/threads/de-zeven-provincien-1-100-scratch-seahorse-new-design.4892/"]
["0Seahorse"]
["Apr 22, 2020"]
["2 3 4"]
["Replies"]
[75]
["Views"]
[14618]
["May 3, 2024"]
["WilliamM"]
["F214 HIPPER - training frigate of the German Navy from the early days - after final refit?","https://shipsofscale.com/sosforums/threads/f214-hipper-training-frigate-of-the-german-navy-from-the-early-days-after-final-refit.13175/"]
["kartonskipper"]
["Dec 14, 2023"]
["Replies"]
[4]
["Views"]
[396]
["Tuesday at 12:03 AM"]
["The learner"]
["YMS-326 Minesweeper (Aleutians, 1944) - from Orlik 1/100","https://shipsofscale.com/sosforums/threads/yms-326-minesweeper-aleutians-1944-from-orlik-1-100.11235/",null,null,null,null,null,null,"2024-01-31T15:56:39"]
["Kilroy1988"]
["Jan 16, 2023"]
["Replies"]
[12]
["Views"]
[2060]
["Yesterday at 2:12 AM"]
["Uwek"]
["A whole fleet is created - the Columbus ships from 1492. Shipyard company, 1:96","https://shipsofscale.com/sosforums/threads/a-whole-fleet-is-created-the-columbus-ships-from-1492-shipyard-company-1-96.9640/"]
["Bonden"]
["Apr 11, 2022"]
["Replies"]
[16]
["Views"]
[1899]
["Jan 23, 2024"]
["The learner"]
["The FORELL Quartett in four Scales","https://shipsofscale.com/sosforums/threads/the-forell-quartett-in-four-scales.12716/"]
["Iterum"]
["Oct 11, 2023"]
[2]
["Replies"]
[30]
["Views"]
[1881]
["Jan 16, 2024"]
["Iterum"]
["Mississippi Steamboat Cardboard - CubicFun 1/100","https://shipsofscale.com/sosforums/threads/mississippi-steamboat-cardboard-cubicfun-1-100.13390/"]
["Richie"]
["Jan 9, 2024"]
["Replies"]
[2]
["Views"]
[130]
["Jan 10, 2024"]
["Richie"]
["HMS Victory 1:96 based on Shipyard","https://shipsofscale.com/sosforums/threads/hms-victory-1-96-based-on-shipyard.2411/"]
["Paragraf"]
["Sep 13, 2018"]
["2 3 4"]
["Replies"]
[76]
["Views"]
[21012]
["Jan 5, 2024"]
["Uwek"]
["Fish transport vessel after af Chapman LX N°4 in 1/48","https://shipsofscale.com/sosforums/threads/fish-transport-vessel-after-af-chapman-lx-n%C2%B04-in-1-48.5125/"]
["Iterum"]
["May 22, 2020"]
["Replies"]
[9]
["Views"]
[1685]
["Jan 2, 2024"]
["Iterum"]
["Amazing model builder","https://shipsofscale.com/sosforums/threads/amazing-model-builder.13158/"]
["AER3393"]
["Dec 13, 2023"]
["Replies"]
[4]
["Views"]
[245]
["Monday at 5:16 AM"]
["rtibbs"]
["ZOBOL' a might have been 1890 torpedo ship","https://shipsofscale.com/sosforums/threads/zobol-a-might-have-been-1890-torpedo-ship.12971/"]
["Iterum"]
["Nov 19, 2023"]
["Replies"]
[4]
["Views"]
[307]
["Saturday at 7:28 AM"]
["kartonskipper"]
["Artillery training frigate F212 GNEISENAU ex HMS Oakley of the German Navy","https://shipsofscale.com/sosforums/threads/artillery-training-frigate-f212-gneisenau-ex-hms-oakley-of-the-german-navy.12934/"]
["kartonskipper"]
["Nov 15, 2023"]
["Replies"]
[10]
["Views"]
[690]
["Nov 18, 2023"]
["Van"]
["Paper model ship Pirates of the Caribbean Black Pearl","https://shipsofscale.com/sosforums/threads/paper-model-ship-pirates-of-the-caribbean-black-pearl.12033/"]
["NarcAngel"]
["Jun 5, 2023"]
["Replies"]
[3]
["Views"]
[1052]
["Nov 6, 2023"]
["Iterum"]
["A 17th century Dutch armed trader – scratch built from card [COMPLETED BUILD]","https://shipsofscale.com/sosforums/threads/a-17th-century-dutch-armed-trader-%E2%80%93-scratch-built-from-card.8119/"]
["Ab Hoving"]
["Aug 25, 2021"]
["2 3 4 5"]
["Replies"]
[86]
["Views"]
[10162]
["Oct 14, 2023"]
["Peter Voogt"]
["31-tonn revenue cutter (scratch & test model, 1:72 of Seahorse)","https://shipsofscale.com/sosforums/threads/31-tonn-revenue-cutter-scratch-test-model-1-72-of-seahorse.11906/"]
["0Seahorse"]
["May 12, 2023"]
["Replies"]
[4]
["Views"]
[1248]
["Sep 21, 2023"]
["Iterum"]
["San Salvador 1:100 Maritime Museum San Diego","https://shipsofscale.com/sosforums/threads/san-salvador-1-100-maritime-museum-san-diego.1753/",null,null,null,null,null,null,"2023-09-20T15:37:53"]
["Jos"]
["Feb 19, 2018"]
["Replies"]
[5]
["Views"]
[1805]
["Aug 25, 2023"]
["The learner"]
["Sao Gabriel 1/100 scratch","https://shipsofscale.com/sosforums/threads/sao-gabriel-1-100-scratch.2838/"]
["0Seahorse"]
["Jan 20, 2019"]
[2]
["Replies"]
[29]
["Views"]
[7131]
["Aug 25, 2023"]
["The learner"]
["Five-master","https://shipsofscale.com/sosforums/threads/five-master.10409/"]
["Wilhelm Thümler"]
["Sep 5, 2022"]
["Replies"]
[6]
["Views"]
[935]
["Aug 23, 2023"]
["Uwek"]
["HMS Victory 1/96 by Shipyard","https://shipsofscale.com/sosforums/threads/hms-victory-1-96-by-shipyard.10509/"]
["IoannisK"]
["Sep 21, 2022"]
[2]
["Replies"]
[32]
["Views"]
[3644]
["Jul 26, 2023"]
["Uwek"]
["The Spray of Joshua Slocum - scale ?? - by The Sailor","https://shipsofscale.com/sosforums/threads/the-spray-of-joshua-slocum-scale-by-the-sailor.8793/"]
["The Sailor"]
["Dec 15, 2021"]
["Replies"]
[5]
["Views"]
[1250]
["Jul 17, 2023"]
["JoppaFlats"]
["Armed Virginia Sloop 1776","https://shipsofscale.com/sosforums/threads/armed-virginia-sloop-1776.11999/"]
["Demetri"]
["May 29, 2023"]
["Replies"]
[7]
["Views"]
[626]
["Jun 4, 2023"]
["Demetri"]
["Armed Virginia Sloop 1776","https://shipsofscale.com/sosforums/threads/armed-virginia-sloop-1776.11998/"]
["Demetri"]
["May 29, 2023"]
["Replies"]
[2]
["Views"]
[336]
["Jun 3, 2023"]
["Demetri"]
["The Black Pearl from Card and mixed media. My very first build.","https://shipsofscale.com/sosforums/threads/the-black-pearl-from-card-and-mixed-media-my-very-first-build.11791/"]
["MsL"]
["Apr 19, 2023"]
["Replies"]
[4]
["Views"]
[679]
["Apr 26, 2023"]
["Corsair"]
["HMS MERCURY 1779 1:72 Shipyard","https://shipsofscale.com/sosforums/threads/hms-mercury-1779-1-72-shipyard.9040/"]
["Piotr Obrębski"]
["Jan 16, 2022"]
["2 3 4 5"]
["Replies"]
[84]
["Views"]
[9113]
["Apr 5, 2023"]
["BenD"]
["HMS Alert 1/72 scale from Shipyard","https://shipsofscale.com/sosforums/threads/hms-alert-1-72-scale-from-shipyard.6950/"]
["11320 Titanic"]
["Feb 10, 2021"]
["2 3 4 5"]
["Replies"]
[81]
["Views"]
[7232]
["Mar 22, 2023"]
["Uwek"]
["GPM 1\\200 Bismarck card kit","https://shipsofscale.com/sosforums/threads/gpm-1-200-bismarck-card-kit.3039/",null,null,null,null,null,null,"2023-02-27T12:29:57"]
["Peterairfix"]
["Mar 14, 2019"]
[2]
["Replies"]
[23]
["Views"]
[5354]
["Wednesday at 4:45 PM"]
["Peterairfix"]
["Oriel IRN SEVASTOPOL 1899 - Oriel","https://shipsofscale.com/sosforums/threads/oriel-irn-sevastopol-1899-oriel.11405/"]
["Iterum"]
["Feb 13, 2023"]
["Replies"]
[6]
["Views"]
[556]
["Tuesday at 9:57 AM"]
["Uwek"]
["USS \"NEW MEXICO\" (BB-40) - scratch model - scale 1:200 [COMPLETED BUILD]","https://shipsofscale.com/sosforums/threads/uss-new-mexico-bb-40-scratch-model-scale-1-200.4894/"]
["SZKUTNIK"]
["Apr 22, 2020"]
["2 3 4"]
["Replies"]
[65]
["Views"]
[6541]
["Jan 25, 2023"]
["Kilroy1988"]
["World of Paperships newest paper model: 3 New York tugboats scale 1: 250","https://shipsofscale.com/sosforums/threads/world-of-paperships-newest-paper-model-3-new-york-tugboats-scale-1-250.11069/"]
["Jeroen"]
["Dec 21, 2022"]
["Replies"]
[3]
["Views"]
[661]
["Jan 2, 2023"]
["Bluebeard"]
["HMS Mercury 1/72, Shipyard models","https://shipsofscale.com/sosforums/threads/hms-mercury-1-72-shipyard-models.5056/"]
["Atamini"]
["May 12, 2020"]
["2 3 4 5"]
["Replies"]
[86]
["Views"]
[9406]
["Dec 1, 2022"]
["Uwek"]
["HMS Alert vs. Le Coureur, Shipyard 1/72","https://shipsofscale.com/sosforums/threads/hms-alert-vs-le-coureur-shipyard-1-72.4597/"]
["AnobiumPunctatum"]
["Mar 22, 2020"]
[2]
["Replies"]
[23]
["Views"]
[2409]
["Oct 5, 2022"]
["AnobiumPunctatum"]
["Isolda 1:160","https://shipsofscale.com/sosforums/threads/isolda-1-160.10583/"]
["rickb"]
["Oct 3, 2022"]
["Replies"]
[0]
["Views"]
[90]
["Oct 3, 2022"]
["rickb"]
["New Paper Models 1/1250","https://shipsofscale.com/sosforums/threads/new-paper-models-1-1250.9949/"]
["Wilhelm Thümler"]
["Jun 8, 2022"]
["Replies"]
[10]
["Views"]
[819]
["Aug 24, 2022"]
["Uwek"]
["HMS Victory 1759 1:200 scale","https://shipsofscale.com/sosforums/threads/hms-victory-1759-1-200-scale.7851/"]
["cap'nTallon"]
["Jul 7, 2021"]
[2]
["Replies"]
[30]
["Views"]
[1248]
["Jun 30, 2022"]
["Uwek"]
["De Zeven Provincien\" 1:100 (scratch)","https://shipsofscale.com/sosforums/threads/de-zeven-provincien-1-100-scratch.4892/"]
["0Seahorse"]
["Apr 22, 2020"]
["2 3"]
["Replies"]
[51]
["Views"]
[5659]
["Jun 27, 2022"]
["Maarten"]
["Szkuta wiślana (Vistula barge) 1:100, scratch [COMPLETED BUILD]","https://shipsofscale.com/sosforums/threads/szkuta-wi%C5%9Blana-vistula-barge-1-100-scratch.9232/"]
["0Seahorse"]
["Feb 8, 2022"]
["Replies"]
[11]
["Views"]
[474]
["Apr 15, 2022"]
["Jimsky"]
["“Golden Hind” from the plan shipyard warped with wood","https://shipsofscale.com/sosforums/threads/%E2%80%9Cgolden-hind%E2%80%9D-from-the-plan-shipyard-warped-with-wood.9595/"]
["aqiqia"]
["Apr 6, 2022"]
["Replies"]
[1]
["Views"]
[363]
["Apr 8, 2022"]
["Uwek"]
["Russian brig Olimp, 1817, kit of the company ShipWorks, 1:96","https://shipsofscale.com/sosforums/threads/russian-brig-olimp-1817-kit-of-the-company-shipworks-1-96.8397/"]
["Bonden"]
["Oct 15, 2021"]
[2]
["Replies"]
[24]
["Views"]
[1842]
["Mar 21, 2022"]
["Jimsky"]
["Armed Virginia Sloop (scratch 1:100)","https://shipsofscale.com/sosforums/threads/armed-virginia-sloop-scratch-1-100.5840/"]
["0Seahorse"]
["Aug 29, 2020"]
["Replies"]
[14]
["Views"]
[1737]
["Mar 10, 2022"]
["Meriadoc Brandybuck"]
["LA BELLE-POULE in 1771","https://shipsofscale.com/sosforums/threads/la-belle-poule-in-1771.8184/"]
["Iterum"]
["Sep 7, 2021"]
["Replies"]
[16]
["Views"]
[1183]
["Feb 25, 2022"]
["Uwek"]
["San Salvador","https://shipsofscale.com/sosforums/threads/san-salvador.7549/"]
["Captain"]
["May 14, 2021"]
["Replies"]
[14]
["Views"]
[998]
["Feb 15, 2022"]
["Uwek"]
["Fairing the frames on a paper/card model","https://shipsofscale.com/sosforums/threads/fairing-the-frames-on-a-paper-card-model.6800/"]
["11320 Titanic"]
["Jan 21, 2021"]
["Replies"]
[16]
["Views"]
[571]
["Yesterday at 7:23 PM"]
["11320 Titanic"]
["Shipyard's HMS Bellona 1:96","https://shipsofscale.com/sosforums/threads/shipyards-hms-bellona-1-96.2193/"]
["ron0909"]
["Jul 11, 2018"]
[2]
["Replies"]
[25]
["Views"]
[5656]
["Dec 26, 2021"]
["11320 Titanic"]
["DonRicardo HMS Alert 1/72","https://shipsofscale.com/sosforums/threads/donricardo-hms-alert-1-72.6995/"]
["11320 Titanic"]
["Feb 17, 2021"]
["Replies"]
[2]
["Views"]
[299]
["Dec 23, 2021"]
["11320 Titanic"]
["ZEEKOE a Dutch 74ft Katt in Scratch 1/66","https://shipsofscale.com/sosforums/threads/zeekoe-a-dutch-74ft-katt-in-scratch-1-66.8358/"]
["Iterum"]
["Oct 8, 2021"]
[2]
["Replies"]
[24]
["Views"]
[1246]
["Nov 29, 2021"]
["Ab Hoving"]
["HMS Prince in scale 1/600","https://shipsofscale.com/sosforums/threads/hms-prince-in-scale-1-600.6953/",null,null,null,null,null,null,"2021-11-14"]
["Wilhelm Thümler"]
["Feb 10, 2021"]
["Replies"]
[19]
["Views"]
[649]
["Friday at 5:49 PM"]
["peterwallac33"]
["1:100 HMS LEOPARD to EXPERIMENT (Oriel)","https://shipsofscale.com/sosforums/threads/1-100-hms-leopard-to-experiment-oriel.8209/"]
["Iterum"]
["Sep 11, 2021"]
["Replies"]
[2]
["Views"]
[189]
["Sep 22, 2021"]
["Uwek"]
["HMS TYGRE IIIb - Trial of conversion in 1:100","https://shipsofscale.com/sosforums/threads/hms-tygre-iiib-trial-of-conversion-in-1-100.8210/"]
["Iterum"]
["Sep 11, 2021"]
["Replies"]
[12]
["Views"]
[290]
["Sep 22, 2021"]
["Iterum"]
["Paper Ship Models in 1/600 scale","https://shipsofscale.com/sosforums/threads/paper-ship-models-in-1-600-scale.5272/"]
["jimkrauzlis"]
["Jun 7, 2020"]
["Replies"]
[17]
["Views"]
[1940]
["Sep 21, 2021"]
["Jimsky"]
["Stationary Dockyard Crane, XVIII Century. Shipyard Card Model 1:72.","https://shipsofscale.com/sosforums/threads/stationary-dockyard-crane-xviii-century-shipyard-card-model-1-72.8169/"]
["Oldpaperone"]
["Sep 5, 2021"]
["Replies"]
[14]
["Views"]
[476]
["Sep 14, 2021"]
["Bluebeard"]
["YG-models Torpedoboats LOSOS' and FOREL 1898","https://shipsofscale.com/sosforums/threads/yg-models-torpedoboats-losos-and-forel-1898.7896/"]
["Iterum"]
["Jul 15, 2021"]
["Replies"]
[4]
["Views"]
[434]
["Aug 16, 2021"]
["Raysven"]
["Glue","https://shipsofscale.com/sosforums/threads/glue.2484/"]
["Bazzg"]
["Sep 28, 2018"]
[2]
["Replies"]
[24]
["Views"]
[2240]
["Wednesday at 11:03 PM"]
["vintagemodeler"]
["\"Meermann\" or \"Wodnik\" 1627 (1:100, scratch) [COMPLETED BUILD]","https://shipsofscale.com/sosforums/threads/meermann-or-wodnik-1627-1-100-scratch.6828/"]
["0Seahorse"]
["Jan 24, 2021"]
[2]
["Replies"]
[24]
["Views"]
[805]
["Sunday at 10:36 PM"]
["Jimsky"]
["Shipyard 1:72 HMS Alert/Continental Navy Revenge","https://shipsofscale.com/sosforums/threads/shipyard-1-72-hms-alert-continental-navy-revenge.4595/"]
["Eric"]
["Mar 21, 2020"]
[2]
["Replies"]
[21]
["Views"]
[1637]
["Jan 30, 2021"]
["Uwek"]
["PANTALOON tender to Royal George yacht 1/200 Oriel card kit","https://shipsofscale.com/sosforums/threads/pantaloon-tender-to-royal-george-yacht-1-200-oriel-card-kit.6690/"]
["Iterum"]
["Jan 7, 2021"]
["Replies"]
[12]
["Views"]
[251]
["Sunday at 1:40 AM"]
["Iterum"]
["Willem Ruys 1:250, cardboard of Scaldis","https://shipsofscale.com/sosforums/threads/willem-ruys-1-250-cardboard-of-scaldis.6349/"]
["André de R."]
["Nov 15, 2020"]
[2]
["Replies"]
[21]
["Views"]
[559]
["Jan 6, 2021"]
["Jeroen"]
["Seefalke, Lappland, Scheelenkuhlen, 1:250 HMV","https://shipsofscale.com/sosforums/threads/seefalke-lappland-scheelenkuhlen-1-250-hmv.6601/"]
["Gijsbert"]
["Dec 23, 2020"]
["Replies"]
[7]
["Views"]
[212]
["Dec 30, 2020"]
["Jimsky"]
["HMS VICTORY on 1/96 Shipyard Build","https://shipsofscale.com/sosforums/threads/hms-victory-on-1-96-shipyard-build.3069/"]
["Bazzg"]
["Mar 23, 2019"]
["Replies"]
[3]
["Views"]
[645]
["Monday at 3:24 AM"]
["Dirney Martins"]
["Paper models in scale 1/1250","https://shipsofscale.com/sosforums/threads/paper-models-in-scale-1-1250.3615/"]
["Wilhelm Thümler"]
["Aug 20, 2019"]
["Replies"]
[7]
["Views"]
[983]
["Aug 23, 2020"]
["Uwek"]
["A 160-feet VOC-retourschip from 1697","https://shipsofscale.com/sosforums/threads/a-160-feet-voc-retourschip-from-1697.5594/"]
["Ab Hoving"]
["Jul 24, 2020"]
["Replies"]
[14]
["Views"]
[515]
["Aug 20, 2020"]
["Kolderstok"]
["Schreiber-Bogen 1\\200 RMS Titanic","https://shipsofscale.com/sosforums/threads/schreiber-bogen-1-200-rms-titanic.5315/"]
["peterairfix"]
["Jun 14, 2020"]
[2]
["Replies"]
[22]
["Views"]
[719]
["Jul 13, 2020"]
["peterairfix"]
["Chinese Sky Lantern - 1:1 - Creatov","https://shipsofscale.com/sosforums/threads/chinese-sky-lantern-1-1-creatov.5482/"]
["mrshanks"]
["Jul 4, 2020"]
["Replies"]
[8]
["Views"]
[285]
["Jul 11, 2020"]
["Jim J"]
["HMS Mercury 1797 Shipyard 1:72","https://shipsofscale.com/sosforums/threads/hms-mercury-1797-shipyard-1-72.1663/",null,null,null,null,null,null,"2020-07-11T11:44:46"]
["Jos"]
["Jan 7, 2018"]
["2 3"]
["Replies"]
[49]
["Views"]
["4K"]
["Yesterday at 10:56 AM"]
["Jeanco"]
["Boat \"Fortune \".","https://shipsofscale.com/sosforums/threads/boat-fortune.3284/"]
["Потапычъ"]
["Jun 3, 2019"]
["Replies"]
[5]
["Views"]
[499]
["May 25, 2020"]
["Uwek"]
["Leudo vinaccere 1:72 scratch (test building)","https://shipsofscale.com/sosforums/threads/leudo-vinaccere-1-72-scratch-test-building.4157/"]
["0Seahorse"]
["Dec 22, 2019"]
[2]
["Replies"]
[24]
["Views"]
["1K"]
["May 22, 2020"]
["snopps42"]
["HMS Enterprize 1782 Shipyard 1:72","https://shipsofscale.com/sosforums/threads/hms-enterprize-1782-shipyard-1-72.1718/"]
["Jos"]
["Feb 3, 2018"]
["2 3"]
["Replies"]
[48]
["Views"]
["5K"]
["May 16, 2020"]
["Iterum"]
["28ft Whaling boat 1/64","https://shipsofscale.com/sosforums/threads/28ft-whaling-boat-1-64.5025/"]
["Iterum"]
["May 9, 2020"]
["Replies"]
[4]
["Views"]
[105]
["May 12, 2020"]
["Iterum"]
["JSC 'Alert' modern rapid intervention vehicle","https://shipsofscale.com/sosforums/threads/jsc-alert-modern-rapid-intervention-vehicle.4586/"]
["Sulaire"]
["Mar 20, 2020"]
["Replies"]
[0]
["Views"]
[130]
["Mar 20, 2020"]
["Sulaire"]
["Bismarck 1:200 GPM 22'2011 Nr.182","https://shipsofscale.com/sosforums/threads/bismarck-1-200-gpm-222011-nr-182.4028/"]
["SAIL AND SAIL"]
["Nov 25, 2019"]
["Replies"]
[10]
["Views"]
["2K"]
["Feb 28, 2020"]
["Hoffy"]
["JRM razarač SPLIT - Yugoslav frigate Split - by Roland Vlahovic","https://shipsofscale.com/sosforums/threads/jrm-razara%C4%8D-split-yugoslav-frigate-split-by-roland-vlahovic.2486/"]
["Roly"]
["Sep 28, 2018"]
["Replies"]
[7]
["Views"]
["2K"]
["Aug 1, 2019"]
["Neophyte Shipwright"]
["Baltimore clipper Berbice","https://shipsofscale.com/sosforums/threads/baltimore-clipper-berbice.3242/"]
["Потапычъ"]
["May 22, 2019"]
["Replies"]
[5]
["Views"]
["2K"]
["Aug 1, 2019"]
["Потапычъ"]
["Hms Victory 1/96 on Shipyard","https://shipsofscale.com/sosforums/threads/hms-victory-1-96-on-shipyard.3216/"]
["Bazzg"]
["May 12, 2019"]
["Replies"]
[0]
["Views"]
[510]
["May 12, 2019"]
["Bazzg"]
["MS Queen of the Isles Ferry GB, 1965 1:250","https://shipsofscale.com/sosforums/threads/ms-queen-of-the-isles-ferry-gb-1965-1-250.1623/"]
["modlerbob"]
["Dec 17, 2017"]
["Replies"]
[8]
["Views"]
[993]
["Apr 25, 2019"]
["Jimsky"]
["Borodino - 1: 200 scale from PAPER HOUSE - by Roland Vlahovic","https://shipsofscale.com/sosforums/threads/borodino-1-200-scale-from-paper-house-by-roland-vlahovic.2660/"]
["Roly"]
["Nov 17, 2018"]
["Replies"]
[13]
["Views"]
["1K"]
["Apr 16, 2019"]
["Roly"]
["Cardboard Pirate Ship","https://shipsofscale.com/sosforums/threads/cardboard-pirate-ship.3049/"]
["eric67"]
["Mar 17, 2019"]
["Replies"]
[2]
["Views"]
[824]
["Mar 18, 2019"]
["eric67"]
["Shipyard HMS Victory 1:96 build","https://shipsofscale.com/sosforums/threads/shipyard-hms-victory-1-96-build.2551/"]
["epicdoom"]
["Oct 15, 2018"]
["Replies"]
[17]
["Views"]
["2K"]
["Mar 7, 2019"]
["Bazzg"]
["IMMH Fishing Cutter","https://shipsofscale.com/sosforums/threads/immh-fishing-cutter.2424/"]
["Aginvicta"]
["Sep 15, 2018"]
["Replies"]
[9]
["Views"]
[951]
["Sep 25, 2018"]
["Donnie"]
["SS Norderney Schreiber scale 1:200","https://shipsofscale.com/sosforums/threads/ss-norderney-schreiber-scale-1-200.1620/"]
["modlerbob"]
["Dec 14, 2017"]
["Replies"]
[3]
["Views"]
[803]
["Jan 22, 2018"]
["paulv1958"]

{"sheet":"Sheet2","index":3,"n_rows":134,"n_cols":6,"rows_kept":134,"cut":false,"hidden":false,"merged":[]}
["$B$12"]
[]
[]
[134]
[]
[]
[]
[]
[]
[]
["Ship","Title","Topic","Latest Post","Starter","Profile"]
["Sestroretsk","Сестрорецк [Sestroretsk] Scratchbuild scale 1/64 Russ. torpedo boat 1894","https://shipsofscale.com/sosforums/threads/%D0%A1%D0%B5%D1%81%D1%82%D1%80%D0%BE%D1%80%D0%B5%D1%86%D0%BA-sestroretsk-scratchbuild-scale-1-64-russ-torpedo-boat-1894.15657/","https://shipsofscale.com/sosforums/threads/%D0%A1%D0%B5%D1%81%D1%82%D1%80%D0%BE%D1%80%D0%B5%D1%86%D0%BA-sestroretsk-scratchbuild-scale-1-64-russ-torpedo-boat-1894.15657/page-2","Iterum",2]
[{"$error":"#N/A"},"Hms Sussex - A dockyard model made of card","https://shipsofscale.com/sosforums/threads/hms-sussex-a-dockyard-model-made-of-card.17693/","https://shipsofscale.com/sosforums/threads/hms-sussex-a-dockyard-model-made-of-card.17693/page-3","Ab Hoving",3]
["Queen Mary","RMS Queen Mary (Scale 1:1250)","https://shipsofscale.com/sosforums/threads/rms-queen-mary-scale-1-1250.7381/","https://shipsofscale.com/sosforums/threads/rms-queen-mary-scale-1-1250.7381/page-2","Jhoanor",2]
["Leudo","Seahorse LEUDO VINACCIERE 1/72","https://shipsofscale.com/sosforums/threads/seahorse-leudo-vinacciere-1-72.6765/","https://shipsofscale.com/sosforums/threads/rms-queen-mary-scale-1-1250.7381/page-2","Iterum"]
["Strohgbov","Steam tug STROHGBOV - 1:100 scale, own development.","https://shipsofscale.com/sosforums/threads/steam-tug-strohgbov-1-100-scale-own-development.15600/","https://shipsofscale.com/sosforums/threads/steam-tug-strohgbov-1-100-scale-own-development.15600/page-2","Lachezar Dragostinov",2]
[{"$error":"#N/A"},"New to Card Ships","https://shipsofscale.com/sosforums/threads/new-to-card-ships.17813/","https://shipsofscale.com/sosforums/threads/steam-tug-strohgbov-1-100-scale-own-development.15600/page-2","Tony1955"]
[{"$error":"#N/A"},"Russian torpedo boat KIT1899 or teaching modelbuilding","https://shipsofscale.com/sosforums/threads/russian-torpedo-boat-kit1899-or-teaching-modelbuilding.17355/","https://shipsofscale.com/sosforums/threads/russian-torpedo-boat-kit1899-or-teaching-modelbuilding.17355/page-2","Iterum",2]
["Magnus Mörck","Magnus Mörck","https://shipsofscale.com/sosforums/threads/magnus-m%C3%B6rck.13492/","https://shipsofscale.com/sosforums/threads/russian-torpedo-boat-kit1899-or-teaching-modelbuilding.17355/page-2","The learner"]
["Royal Yacht","An English Royal yacht","https://shipsofscale.com/sosforums/threads/an-english-royal-yacht.16993/","https://shipsofscale.com/sosforums/threads/russian-torpedo-boat-kit1899-or-teaching-modelbuilding.17355/page-2","Ab Hoving"]
["Santa Leocadia","Shipyard 1/96 Santa Leocadia paper model build","https://shipsofscale.com/sosforums/threads/shipyard-1-96-santa-leocadia-paper-model-build.15290/","https://shipsofscale.com/sosforums/threads/shipyard-1-96-santa-leocadia-paper-model-build.15290/page-3","BigKeith95",3]
["Empress of Ireland","RMS Empress of Ireland, my templates and build","https://shipsofscale.com/sosforums/threads/rms-empress-of-ireland-my-templates-and-build.16942/","https://shipsofscale.com/sosforums/threads/shipyard-1-96-santa-leocadia-paper-model-build.15290/page-3","someCO_OLguy"]
["Carpathia","RMS Carpathia 1:600 paper model build","https://shipsofscale.com/sosforums/threads/rms-carpathia-1-600-paper-model-build.16921/","https://shipsofscale.com/sosforums/threads/shipyard-1-96-santa-leocadia-paper-model-build.15290/page-3","someCO_OLguy"]
["Akerboom","AKERBOOM 1681 after Ab Hoving nominally 1/66 but drawings in 1/64","https://shipsofscale.com/sosforums/threads/akerboom-1681-after-ab-hoving-nominally-1-66-but-drawings-in-1-64.13749/","https://shipsofscale.com/sosforums/threads/akerboom-1681-after-ab-hoving-nominally-1-66-but-drawings-in-1-64.13749/page-12","Iterum",12]
["Axel Thorsen","Axel Thorsen 1810 - 1/72 (test)","https://shipsofscale.com/sosforums/threads/axel-thorsen-1810-1-72-test.15059/","https://shipsofscale.com/sosforums/threads/akerboom-1681-after-ab-hoving-nominally-1-66-but-drawings-in-1-64.13749/page-12","0Seahorse"]
["Fuso","IJN Fuso 1944 by wieslaw_ - Halinski - 1/200 - CARD - with 3D print","https://shipsofscale.com/sosforums/threads/ijn-fuso-1944-by-wieslaw_-halinski-1-200-card-with-3d-print.16707/","https://shipsofscale.com/sosforums/threads/ijn-fuso-1944-by-wieslaw_-halinski-1-200-card-with-3d-print.16707/page-2","wieslaw_",2]
["Postiljon","Postiljon, a Dutch frigate (1661-1678)","https://shipsofscale.com/sosforums/threads/postiljon-a-dutch-frigate-1661-1678.15220/","https://shipsofscale.com/sosforums/threads/postiljon-a-dutch-frigate-1661-1678.15220/page-3","Ab Hoving",3]
["Pirate Ship","1/64 A real Pirateship - af Chapman's ANM XL N° 11","https://shipsofscale.com/sosforums/threads/1-64-a-real-pirateship-af-chapmans-anm-xl-n%C2%B0-11.16618/","https://shipsofscale.com/sosforums/threads/postiljon-a-dutch-frigate-1661-1678.15220/page-3","Iterum"]
["Admiral Ushakow","ProModel ADMIRAL USHAKOW 1/200","https://shipsofscale.com/sosforums/threads/promodel-admiral-ushakow-1-200.15156/","https://shipsofscale.com/sosforums/threads/postiljon-a-dutch-frigate-1661-1678.15220/page-3","Iterum"]
["Bismarck","1/200 Gpm Bismark with laser cut frames","https://shipsofscale.com/sosforums/threads/1-200-gpm-bismark-with-laser-cut-frames.6446/","https://shipsofscale.com/sosforums/threads/postiljon-a-dutch-frigate-1661-1678.15220/page-3","Peterairfix"]
["Jacinthe","Schooner JACINTHE, Kgdm. of France, 1825 Scratch 1/64","https://shipsofscale.com/sosforums/threads/schooner-jacinthe-kgdm-of-france-1825-scratch-1-64.16060/","https://shipsofscale.com/sosforums/threads/schooner-jacinthe-kgdm-of-france-1825-scratch-1-64.16060/page-2","Iterum",2]
["Titanic","RMS Titanic 1:100","https://shipsofscale.com/sosforums/threads/rms-titanic-1-100.15871/","https://shipsofscale.com/sosforums/threads/schooner-jacinthe-kgdm-of-france-1825-scratch-1-64.16060/page-2","someCO_OLguy"]
["Zeven Provincien","De Zeven Provincien 1665 - 1.100, Fa. Seahorse (Tomasz Weremko)","https://shipsofscale.com/sosforums/threads/de-zeven-provincien-1665-1-100-fa-seahorse-tomasz-weremko.14220/","https://shipsofscale.com/sosforums/threads/de-zeven-provincien-1665-1-100-fa-seahorse-tomasz-weremko.14220/page-2","Bonden",2]
["Cairo","Orel USS Cairo","https://shipsofscale.com/sosforums/threads/orel-uss-cairo.15371/","https://shipsofscale.com/sosforums/threads/de-zeven-provincien-1665-1-100-fa-seahorse-tomasz-weremko.14220/page-2","romfolmar"]
["Steam Launch","Russian Steam Launch","https://shipsofscale.com/sosforums/threads/russian-steam-launch.15531/","https://shipsofscale.com/sosforums/threads/de-zeven-provincien-1665-1-100-fa-seahorse-tomasz-weremko.14220/page-2","Iterum"]
["Dutch Warship","A 160 foot Dutch Eastindiaman (VOC) 1699 [COMPLETED BUILD]","https://shipsofscale.com/sosforums/threads/a-160-foot-dutch-eastindiaman-voc-1699-completed-build.9233/","https://shipsofscale.com/sosforums/threads/a-160-foot-dutch-eastindiaman-voc-1699-completed-build.9233/page-2","Ab Hoving",2]
["Alert","HMS Alert destroyed","https://shipsofscale.com/sosforums/threads/hms-alert-destroyed.14914/","https://shipsofscale.com/sosforums/threads/hms-alert-destroyed.14914/page-2","11320 Titanic",2]
["Un-named","Ship in trouble","https://shipsofscale.com/sosforums/threads/ship-in-trouble.13276/","https://shipsofscale.com/sosforums/threads/ship-in-trouble.13276/page-4","Ab Hoving",4]
["Sterlyad","Scratch 1/64 STERLYAD Russ. Gunboat 1855","https://shipsofscale.com/sosforums/threads/scratch-1-64-sterlyad-russ-gunboat-1855.15561/","https://shipsofscale.com/sosforums/threads/ship-in-trouble.13276/page-4","Iterum"]
["Albatross","ALBATROS","https://shipsofscale.com/sosforums/threads/albatros.15213/","https://shipsofscale.com/sosforums/threads/ship-in-trouble.13276/page-4","Llaut Mallorquin"]
["SMS Beowulf","German coastal armored ship \"SMS Beowulf\", scale 1:250 [COMPLETED BUILD]","https://shipsofscale.com/sosforums/threads/german-coastal-armored-ship-sms-beowulf-scale-1-250-completed-build.15295/","https://shipsofscale.com/sosforums/threads/ship-in-trouble.13276/page-4","Lachezar Dragostinov"]
["Mellum","Multipurpose vessel Mellum by HMV, skale 1:250 [COMPLETED BUILD]","https://shipsofscale.com/sosforums/threads/multipurpose-vessel-mellum-by-hmv-skale-1-250-completed-build.14968/","https://shipsofscale.com/sosforums/threads/ship-in-trouble.13276/page-4","Lachezar Dragostinov"]
["Dutch Warship","A 143 feet long Dutch warship from 1681. Cardstock [COMPLETED BUILD]","https://shipsofscale.com/sosforums/threads/a-143-feet-long-dutch-warship-from-1681-cardstock-completed-build.4634/","https://shipsofscale.com/sosforums/threads/a-143-feet-long-dutch-warship-from-1681-cardstock-completed-build.4634/page-5","Ab Hoving",5]
["Fiji","HMS FIJI - scratch model - scale 1:400 [COMPLETED BUILD]","https://shipsofscale.com/sosforums/threads/hms-fiji-scratch-model-scale-1-400-completed-build.14722/","https://shipsofscale.com/sosforums/threads/a-143-feet-long-dutch-warship-from-1681-cardstock-completed-build.4634/page-5","SZKUTNIK"]
["Proud Mary","PROUD MARY","https://shipsofscale.com/sosforums/threads/proud-mary.15242/","https://shipsofscale.com/sosforums/threads/a-143-feet-long-dutch-warship-from-1681-cardstock-completed-build.4634/page-5","Llaut Mallorquin"]
["Fishing Boat","Experiment Oberfläche für Karton Schiffe Orient","https://shipsofscale.com/sosforums/threads/experiment-oberfl%C3%A4che-f%C3%BCr-karton-schiffe-orient.15206/","https://shipsofscale.com/sosforums/threads/a-143-feet-long-dutch-warship-from-1681-cardstock-completed-build.4634/page-5","Käptn Ahab"]
["Diorama","New Papermodels","https://shipsofscale.com/sosforums/threads/new-papermodels.6948/","https://shipsofscale.com/sosforums/threads/a-143-feet-long-dutch-warship-from-1681-cardstock-completed-build.4634/page-5","Wilhelm Thümler"]
["Enterprise","HMS Enterprize 1/96 card model from Shipyard","https://shipsofscale.com/sosforums/threads/hms-enterprize-1-96-card-model-from-shipyard.4495/","https://shipsofscale.com/sosforums/threads/hms-enterprize-1-96-card-model-from-shipyard.4495/page-3","Pgtaylorart",3]
["Agassiz","HMV Flower Class HMCS Corvette Agassiz 1:250 scale [COMPLETED BUILD]","https://shipsofscale.com/sosforums/threads/hmv-flower-class-hmcs-corvette-agassiz-1-250-scale-completed-build.14495/","https://shipsofscale.com/sosforums/threads/hms-enterprize-1-96-card-model-from-shipyard.4495/page-3","johngr"]
["Mercury","HMS Mercury, 1:72, Shipyard [COMPLETED BUILD]","https://shipsofscale.com/sosforums/threads/hms-mercury-1-72-shipyard-completed-build.2642/","https://shipsofscale.com/sosforums/threads/hms-mercury-1-72-shipyard-completed-build.2642/page-16","Bonden",16]
["Alert","Rapid intervention vessel Alert 1:100 [COMPLETED BUILD]","https://shipsofscale.com/sosforums/threads/rapid-intervention-vessel-alert-1-100-completed-build.14955/","https://shipsofscale.com/sosforums/threads/hms-mercury-1-72-shipyard-completed-build.2642/page-16","Lachezar Dragostinov"]
["Matabele","HMS MATABELE - scale 1-400","https://shipsofscale.com/sosforums/threads/hms-matabele-scale-1-400.14723/","https://shipsofscale.com/sosforums/threads/hms-mercury-1-72-shipyard-completed-build.2642/page-16","SZKUTNIK"]
["Edinburgh","HMS EDINBURGH - scratch model - scale 1:400 [COMPLETED BUILD]","https://shipsofscale.com/sosforums/threads/hms-edinburgh-scratch-model-scale-1-400-completed-build.14721/","https://shipsofscale.com/sosforums/threads/hms-mercury-1-72-shipyard-completed-build.2642/page-16","SZKUTNIK"]
["Alert","Finished","https://shipsofscale.com/sosforums/threads/finished.9358/","https://shipsofscale.com/sosforums/threads/finished.9358/page-6","Ab Hoving",6]
["Yacht","The Dutch yacht 18th century [COMPLETED BUILD]","https://shipsofscale.com/sosforums/threads/the-dutch-yacht-18th-century-completed-build.5760/","https://shipsofscale.com/sosforums/threads/the-dutch-yacht-18th-century-completed-build.5760/page-2","Demetri",2]
["Celtic Voyager","Celtic Voyager - Paper Shipwright - 1:250 - CARD","https://shipsofscale.com/sosforums/threads/celtic-voyager-paper-shipwright-1-250-card.14359/","https://shipsofscale.com/sosforums/threads/the-dutch-yacht-18th-century-completed-build.5760/page-2","johngr"]
["Speeljacht","Speeljacht 1:50 (new project of \"Seahorse\")","https://shipsofscale.com/sosforums/threads/speeljacht-1-50-new-project-of-seahorse.13940/","https://shipsofscale.com/sosforums/threads/the-dutch-yacht-18th-century-completed-build.5760/page-2","0Seahorse"]
["De Zeven Provincien","\"De Zeven Provincien\" 1:100 (scratch) - Seahorse New Design [COMPLETED BUILD]","https://shipsofscale.com/sosforums/threads/de-zeven-provincien-1-100-scratch-seahorse-new-design-completed-build.4892/","https://shipsofscale.com/sosforums/threads/de-zeven-provincien-1-100-scratch-seahorse-new-design-completed-build.4892/page-4","0Seahorse",4]
["Hipper","F214 HIPPER - training frigate of the German Navy from the early days - after final refit?","https://shipsofscale.com/sosforums/threads/f214-hipper-training-frigate-of-the-german-navy-from-the-early-days-after-final-refit.13175/","https://shipsofscale.com/sosforums/threads/de-zeven-provincien-1-100-scratch-seahorse-new-design-completed-build.4892/page-4","kartonskipper"]
["YMS-326 Minesweeper","YMS-326 Minesweeper (Aleutians, 1944) - from Orlik 1/100","https://shipsofscale.com/sosforums/threads/yms-326-minesweeper-aleutians-1944-from-orlik-1-100.11235/","https://shipsofscale.com/sosforums/threads/de-zeven-provincien-1-100-scratch-seahorse-new-design-completed-build.4892/page-4","Kilroy1988"]
["Columbus Ships","A whole fleet is created - the Columbus ships from 1492. Shipyard company, 1:96","https://shipsofscale.com/sosforums/threads/a-whole-fleet-is-created-the-columbus-ships-from-1492-shipyard-company-1-96.9640/","https://shipsofscale.com/sosforums/threads/de-zeven-provincien-1-100-scratch-seahorse-new-design-completed-build.4892/page-4","Bonden"]
["Forell class","The FORELL Quartett in four Scales","https://shipsofscale.com/sosforums/threads/the-forell-quartett-in-four-scales.12716/","https://shipsofscale.com/sosforums/threads/the-forell-quartett-in-four-scales.12716/page-2","Iterum",2]
["Mississippi Steamboat","Mississippi Steamboat Cardboard - CubicFun 1/100","https://shipsofscale.com/sosforums/threads/mississippi-steamboat-cardboard-cubicfun-1-100.13390/","https://shipsofscale.com/sosforums/threads/the-forell-quartett-in-four-scales.12716/page-2","Richie"]
["Victory","HMS Victory 1:96 based on Shipyard","https://shipsofscale.com/sosforums/threads/hms-victory-1-96-based-on-shipyard.2411/","https://shipsofscale.com/sosforums/threads/hms-victory-1-96-based-on-shipyard.2411/page-4","Paragraf",4]
["Live Fish transporter","Fish transport vessel after af Chapman LX N°4 in 1/48","https://shipsofscale.com/sosforums/threads/fish-transport-vessel-after-af-chapman-lx-n%C2%B04-in-1-48.5125/","https://shipsofscale.com/sosforums/threads/hms-victory-1-96-based-on-shipyard.2411/page-4","Iterum"]
["Boeing 777","Amazing model builder","https://shipsofscale.com/sosforums/threads/amazing-model-builder.13158/","https://shipsofscale.com/sosforums/threads/hms-victory-1-96-based-on-shipyard.2411/page-4","AER3393"]
["Zobol","ZOBOL' a might have been 1890 torpedo ship","https://shipsofscale.com/sosforums/threads/zobol-a-might-have-been-1890-torpedo-ship.12971/","https://shipsofscale.com/sosforums/threads/hms-victory-1-96-based-on-shipyard.2411/page-4","Iterum"]
["Gneisenau","Artillery training frigate F212 GNEISENAU ex HMS Oakley of the German Navy","https://shipsofscale.com/sosforums/threads/artillery-training-frigate-f212-gneisenau-ex-hms-oakley-of-the-german-navy.12934/","https://shipsofscale.com/sosforums/threads/hms-victory-1-96-based-on-shipyard.2411/page-4","kartonskipper"]
["Black Pearl","Paper model ship Pirates of the Caribbean Black Pearl","https://shipsofscale.com/sosforums/threads/paper-model-ship-pirates-of-the-caribbean-black-pearl.12033/","https://shipsofscale.com/sosforums/threads/hms-victory-1-96-based-on-shipyard.2411/page-4","NarcAngel"]
["Pinas","A 17th century Dutch armed trader – scratch built from card [COMPLETED BUILD]","https://shipsofscale.com/sosforums/threads/a-17th-century-dutch-armed-trader-%E2%80%93-scratch-built-from-card-completed-build.8119/","https://shipsofscale.com/sosforums/threads/a-17th-century-dutch-armed-trader-%E2%80%93-scratch-built-from-card-completed-build.8119/page-5","Ab Hoving",5]
["Revenue Cutter","31-tonn revenue cutter (scratch & test model, 1:72 of Seahorse)","https://shipsofscale.com/sosforums/threads/31-tonn-revenue-cutter-scratch-test-model-1-72-of-seahorse.11906/","https://shipsofscale.com/sosforums/threads/a-17th-century-dutch-armed-trader-%E2%80%93-scratch-built-from-card-completed-build.8119/page-5","0Seahorse"]
["San Salvador","San Salvador 1:100 Maritime Museum San Diego","https://shipsofscale.com/sosforums/threads/san-salvador-1-100-maritime-museum-san-diego.1753/","https://shipsofscale.com/sosforums/threads/a-17th-century-dutch-armed-trader-%E2%80%93-scratch-built-from-card-completed-build.8119/page-5","Jos"]
["Sao Gabriel","Sao Gabriel 1/100 scratch","https://shipsofscale.com/sosforums/threads/sao-gabriel-1-100-scratch.2838/","https://shipsofscale.com/sosforums/threads/sao-gabriel-1-100-scratch.2838/page-2","0Seahorse",2]
["Various","Five-master","https://shipsofscale.com/sosforums/threads/five-master.10409/","https://shipsofscale.com/sosforums/threads/sao-gabriel-1-100-scratch.2838/page-2","Wilhelm Thümler"]
["Victory","HMS Victory 1/96 by Shipyard","https://shipsofscale.com/sosforums/threads/hms-victory-1-96-by-shipyard.10509/","https://shipsofscale.com/sosforums/threads/hms-victory-1-96-by-shipyard.10509/page-2","IoannisK",2]
["Spray","The Spray of Joshua Slocum - scale ?? - by The Sailor","https://shipsofscale.com/sosforums/threads/the-spray-of-joshua-slocum-scale-by-the-sailor.8793/","https://shipsofscale.com/sosforums/threads/hms-victory-1-96-by-shipyard.10509/page-2","The Sailor"]
["Armed Virginia Sloop","Armed Virginia Sloop 1776","https://shipsofscale.com/sosforums/threads/armed-virginia-sloop-1776.11999/","https://shipsofscale.com/sosforums/threads/hms-victory-1-96-by-shipyard.10509/page-2","Demetri"]
["Armed Virginia Sloop","Armed Virginia Sloop 1776","https://shipsofscale.com/sosforums/threads/armed-virginia-sloop-1776.11998/","https://shipsofscale.com/sosforums/threads/hms-victory-1-96-by-shipyard.10509/page-2","Demetri"]
["Black Pearl","The Black Pearl from Card and mixed media. My very first build.","https://shipsofscale.com/sosforums/threads/the-black-pearl-from-card-and-mixed-media-my-very-first-build.11791/","https://shipsofscale.com/sosforums/threads/hms-victory-1-96-by-shipyard.10509/page-2","MsL"]
["Mercury","HMS MERCURY 1779 1:72 Shipyard","https://shipsofscale.com/sosforums/threads/hms-mercury-1779-1-72-shipyard.9040/","https://shipsofscale.com/sosforums/threads/hms-mercury-1779-1-72-shipyard.9040/page-5","Piotr Obrębski",5]
["Alert","HMS Alert 1/72 scale from Shipyard","https://shipsofscale.com/sosforums/threads/hms-alert-1-72-scale-from-shipyard.6950/","https://shipsofscale.com/sosforums/threads/hms-alert-1-72-scale-from-shipyard.6950/page-5","11320 Titanic",5]
["Bismarck","GPM 1\\200 Bismarck card kit","https://shipsofscale.com/sosforums/threads/gpm-1-200-bismarck-card-kit.3039/","https://shipsofscale.com/sosforums/threads/gpm-1-200-bismarck-card-kit.3039/page-2","Peterairfix",2]
["Sevastopol","Oriel IRN SEVASTOPOL 1899 - Oriel","https://shipsofscale.com/sosforums/threads/oriel-irn-sevastopol-1899-oriel.11405/","https://shipsofscale.com/sosforums/threads/gpm-1-200-bismarck-card-kit.3039/page-2","Iterum"]
["New Mexico","USS \"NEW MEXICO\" (BB-40) - scratch model - scale 1:200 [COMPLETED BUILD]","https://shipsofscale.com/sosforums/threads/uss-new-mexico-bb-40-scratch-model-scale-1-200-completed-build.4894/","https://shipsofscale.com/sosforums/threads/uss-new-mexico-bb-40-scratch-model-scale-1-200-completed-build.4894/page-4","SZKUTNIK",4]
["Tug","World of Paperships newest paper model: 3 New York tugboats scale 1: 250","https://shipsofscale.com/sosforums/threads/world-of-paperships-newest-paper-model-3-new-york-tugboats-scale-1-250.11069/","https://shipsofscale.com/sosforums/threads/uss-new-mexico-bb-40-scratch-model-scale-1-200-completed-build.4894/page-4","Jeroen"]
["Mercury","HMS Mercury 1/72, Shipyard models","https://shipsofscale.com/sosforums/threads/hms-mercury-1-72-shipyard-models.5056/","https://shipsofscale.com/sosforums/threads/hms-mercury-1-72-shipyard-models.5056/page-5","Atamini",5]
["Alert","HMS Alert vs. Le Coureur, Shipyard 1/72","https://shipsofscale.com/sosforums/threads/hms-alert-vs-le-coureur-shipyard-1-72.4597/","https://shipsofscale.com/sosforums/threads/hms-alert-vs-le-coureur-shipyard-1-72.4597/page-2","AnobiumPunctatum",2]
["Isolda","Isolda 1:160","https://shipsofscale.com/sosforums/threads/isolda-1-160.10583/","https://shipsofscale.com/sosforums/threads/hms-alert-vs-le-coureur-shipyard-1-72.4597/page-2","rickb"]
["Various","New Paper Models 1/1250","https://shipsofscale.com/sosforums/threads/new-paper-models-1-1250.9949/","https://shipsofscale.com/sosforums/threads/hms-alert-vs-le-coureur-shipyard-1-72.4597/page-2","Wilhelm Thümler"]
["Victory","HMS Victory 1759 1:200 scale","https://shipsofscale.com/sosforums/threads/hms-victory-1759-1-200-scale.7851/","https://shipsofscale.com/sosforums/threads/hms-victory-1759-1-200-scale.7851/page-2","cap'nTallon",2]
["De Zeven Provinciën","De Zeven Provincien\" 1:100 (scratch)","https://shipsofscale.com/sosforums/threads/de-zeven-provincien-1-100-scratch.4892/","https://shipsofscale.com/sosforums/threads/de-zeven-provincien-1-100-scratch.4892/page-3","0Seahorse",3]
["Vistula Barge","Szkuta wiślana (Vistula barge) 1:100, scratch [COMPLETED BUILD]","https://shipsofscale.com/sosforums/threads/szkuta-wi%C5%9Blana-vistula-barge-1-100-scratch-completed-build.9232/","https://shipsofscale.com/sosforums/threads/de-zeven-provincien-1-100-scratch.4892/page-3","0Seahorse"]
["Golden Hinde","“Golden Hind” from the plan shipyard warped with wood","https://shipsofscale.com/sosforums/threads/%E2%80%9Cgolden-hind%E2%80%9D-from-the-plan-shipyard-warped-with-wood.9595/","https://shipsofscale.com/sosforums/threads/de-zeven-provincien-1-100-scratch.4892/page-3","aqiqia"]
["Olimp","Russian brig Olimp, 1817, kit of the company ShipWorks, 1:96","https://shipsofscale.com/sosforums/threads/russian-brig-olimp-1817-kit-of-the-company-shipworks-1-96.8397/","https://shipsofscale.com/sosforums/threads/russian-brig-olimp-1817-kit-of-the-company-shipworks-1-96.8397/page-2","Bonden",2]
["Armed Virginia Sloop","Armed Virginia Sloop (scratch 1:100)","https://shipsofscale.com/sosforums/threads/armed-virginia-sloop-scratch-1-100.5840/","https://shipsofscale.com/sosforums/threads/russian-brig-olimp-1817-kit-of-the-company-shipworks-1-96.8397/page-2","0Seahorse"]
["La Belle Poule","LA BELLE-POULE in 1771","https://shipsofscale.com/sosforums/threads/la-belle-poule-in-1771.8184/","https://shipsofscale.com/sosforums/threads/russian-brig-olimp-1817-kit-of-the-company-shipworks-1-96.8397/page-2","Iterum"]
["San Salvador","San Salvador","https://shipsofscale.com/sosforums/threads/san-salvador.7549/","https://shipsofscale.com/sosforums/threads/russian-brig-olimp-1817-kit-of-the-company-shipworks-1-96.8397/page-2","Captain"]
["Alert","Fairing the frames on a paper/card model","https://shipsofscale.com/sosforums/threads/fairing-the-frames-on-a-paper-card-model.6800/","https://shipsofscale.com/sosforums/threads/russian-brig-olimp-1817-kit-of-the-company-shipworks-1-96.8397/page-2","11320 Titanic"]
["Bellona","Shipyard's HMS Bellona 1:96","https://shipsofscale.com/sosforums/threads/shipyards-hms-bellona-1-96.2193/","https://shipsofscale.com/sosforums/threads/shipyards-hms-bellona-1-96.2193/page-2","ron0909",2]
["Alert","DonRicardo HMS Alert 1/72","https://shipsofscale.com/sosforums/threads/donricardo-hms-alert-1-72.6995/","https://shipsofscale.com/sosforums/threads/shipyards-hms-bellona-1-96.2193/page-2","11320 Titanic"]
["Zeekoe","ZEEKOE a Dutch 74ft Katt in Scratch 1/66","https://shipsofscale.com/sosforums/threads/zeekoe-a-dutch-74ft-katt-in-scratch-1-66.8358/","https://shipsofscale.com/sosforums/threads/zeekoe-a-dutch-74ft-katt-in-scratch-1-66.8358/page-2","Iterum",2]
["Prince","HMS Prince in scale 1/600","https://shipsofscale.com/sosforums/threads/hms-prince-in-scale-1-600.6953/","https://shipsofscale.com/sosforums/threads/zeekoe-a-dutch-74ft-katt-in-scratch-1-66.8358/page-2","Wilhelm Thümler"]
["Leopard","1:100 HMS LEOPARD to EXPERIMENT (Oriel)","https://shipsofscale.com/sosforums/threads/1-100-hms-leopard-to-experiment-oriel.8209/","https://shipsofscale.com/sosforums/threads/zeekoe-a-dutch-74ft-katt-in-scratch-1-66.8358/page-2","Iterum"]
["Tygre","HMS TYGRE IIIb - Trial of conversion in 1:100","https://shipsofscale.com/sosforums/threads/hms-tygre-iiib-trial-of-conversion-in-1-100.8210/","https://shipsofscale.com/sosforums/threads/zeekoe-a-dutch-74ft-katt-in-scratch-1-66.8358/page-2","Iterum"]
["Various","Paper Ship Models in 1/600 scale","https://shipsofscale.com/sosforums/threads/paper-ship-models-in-1-600-scale.5272/","https://shipsofscale.com/sosforums/threads/zeekoe-a-dutch-74ft-katt-in-scratch-1-66.8358/page-2","jimkrauzlis"]
["Dockyard Crane","Stationary Dockyard Crane, XVIII Century. Shipyard Card Model 1:72.","https://shipsofscale.com/sosforums/threads/stationary-dockyard-crane-xviii-century-shipyard-card-model-1-72.8169/","https://shipsofscale.com/sosforums/threads/zeekoe-a-dutch-74ft-katt-in-scratch-1-66.8358/page-2","Oldpaperone"]
["Losos","YG-models Torpedoboats LOSOS' and FOREL 1898","https://shipsofscale.com/sosforums/threads/yg-models-torpedoboats-losos-and-forel-1898.7896/","https://shipsofscale.com/sosforums/threads/zeekoe-a-dutch-74ft-katt-in-scratch-1-66.8358/page-2","Iterum"]
["Victory","Glue","https://shipsofscale.com/sosforums/threads/glue.2484/","https://shipsofscale.com/sosforums/threads/glue.2484/page-2","Bazzg",2]
["Meermann","\"Meermann\" or \"Wodnik\" 1627 (1:100, scratch) [COMPLETED BUILD]","https://shipsofscale.com/sosforums/threads/meermann-or-wodnik-1627-1-100-scratch-completed-build.6828/","https://shipsofscale.com/sosforums/threads/meermann-or-wodnik-1627-1-100-scratch-completed-build.6828/page-2","0Seahorse",2]
["Alert","Shipyard 1:72 HMS Alert/Continental Navy Revenge","https://shipsofscale.com/sosforums/threads/shipyard-1-72-hms-alert-continental-navy-revenge.4595/","https://shipsofscale.com/sosforums/threads/shipyard-1-72-hms-alert-continental-navy-revenge.4595/page-2","Eric",2]
["Pantaloon","PANTALOON tender to Royal George yacht 1/200 Oriel card kit","https://shipsofscale.com/sosforums/threads/pantaloon-tender-to-royal-george-yacht-1-200-oriel-card-kit.6690/","https://shipsofscale.com/sosforums/threads/shipyard-1-72-hms-alert-continental-navy-revenge.4595/page-2","Iterum"]
["Willem Ruys","Willem Ruys 1:250, cardboard of Scaldis","https://shipsofscale.com/sosforums/threads/willem-ruys-1-250-cardboard-of-scaldis.6349/","https://shipsofscale.com/sosforums/threads/willem-ruys-1-250-cardboard-of-scaldis.6349/page-2","André de R.",2]
["Seefalke","Seefalke, Lappland, Scheelenkuhlen, 1:250 HMV","https://shipsofscale.com/sosforums/threads/seefalke-lappland-scheelenkuhlen-1-250-hmv.6601/","https://shipsofscale.com/sosforums/threads/willem-ruys-1-250-cardboard-of-scaldis.6349/page-2","Gijsbert"]
["Victory","HMS VICTORY on 1/96 Shipyard Build","https://shipsofscale.com/sosforums/threads/hms-victory-on-1-96-shipyard-build.3069/","https://shipsofscale.com/sosforums/threads/willem-ruys-1-250-cardboard-of-scaldis.6349/page-2","Bazzg"]
["Various","Paper models in scale 1/1250","https://shipsofscale.com/sosforums/threads/paper-models-in-scale-1-1250.3615/","https://shipsofscale.com/sosforums/threads/willem-ruys-1-250-cardboard-of-scaldis.6349/page-2","Wilhelm Thümler"]
["VOC ship","A 160-feet VOC-retourschip from 1697","https://shipsofscale.com/sosforums/threads/a-160-feet-voc-retourschip-from-1697.5594/","https://shipsofscale.com/sosforums/threads/willem-ruys-1-250-cardboard-of-scaldis.6349/page-2","Ab Hoving"]
["Titanic","Schreiber-Bogen 1\\200 RMS Titanic","https://shipsofscale.com/sosforums/threads/schreiber-bogen-1-200-rms-titanic.5315/","https://shipsofscale.com/sosforums/threads/schreiber-bogen-1-200-rms-titanic.5315/page-2","peterairfix",2]
["Sky Lantern","Chinese Sky Lantern - 1:1 - Creatov","https://shipsofscale.com/sosforums/threads/chinese-sky-lantern-1-1-creatov.5482/","https://shipsofscale.com/sosforums/threads/schreiber-bogen-1-200-rms-titanic.5315/page-2","mrshanks"]
["Mercury","HMS Mercury 1797 Shipyard 1:72","https://shipsofscale.com/sosforums/threads/hms-mercury-1797-shipyard-1-72.1663/","https://shipsofscale.com/sosforums/threads/hms-mercury-1797-shipyard-1-72.1663/page-3","Jos",3]
["Fortune","Boat \"Fortune \".","https://shipsofscale.com/sosforums/threads/boat-fortune.3284/","https://shipsofscale.com/sosforums/threads/hms-mercury-1797-shipyard-1-72.1663/page-3","Потапычъ"]
["Leudo","Leudo vinaccere 1:72 scratch (test building)","https://shipsofscale.com/sosforums/threads/leudo-vinaccere-1-72-scratch-test-building.4157/","https://shipsofscale.com/sosforums/threads/leudo-vinaccere-1-72-scratch-test-building.4157/page-2","0Seahorse",2]
["Enterprise","HMS Enterprize 1782 Shipyard 1:72","https://shipsofscale.com/sosforums/threads/hms-enterprize-1782-shipyard-1-72.1718/","https://shipsofscale.com/sosforums/threads/hms-enterprize-1782-shipyard-1-72.1718/page-3","Jos",3]
["Whaleboat","28ft Whaling boat 1/64","https://shipsofscale.com/sosforums/threads/28ft-whaling-boat-1-64.5025/","https://shipsofscale.com/sosforums/threads/hms-enterprize-1782-shipyard-1-72.1718/page-3","Iterum"]
["Alert","JSC 'Alert' modern rapid intervention vehicle","https://shipsofscale.com/sosforums/threads/jsc-alert-modern-rapid-intervention-vehicle.4586/","https://shipsofscale.com/sosforums/threads/hms-enterprize-1782-shipyard-1-72.1718/page-3","Sulaire"]
["Bismarck","Bismarck 1:200 GPM 22'2011 Nr.182","https://shipsofscale.com/sosforums/threads/bismarck-1-200-gpm-222011-nr-182.4028/","https://shipsofscale.com/sosforums/threads/hms-enterprize-1782-shipyard-1-72.1718/page-3","SAIL AND SAIL"]
["Split","JRM razarač SPLIT - Yugoslav frigate Split - by Roland Vlahovic","https://shipsofscale.com/sosforums/threads/jrm-razara%C4%8D-split-yugoslav-frigate-split-by-roland-vlahovic.2486/","https://shipsofscale.com/sosforums/threads/hms-enterprize-1782-shipyard-1-72.1718/page-3","Roly"]
["Berbice","Baltimore clipper Berbice","https://shipsofscale.com/sosforums/threads/baltimore-clipper-berbice.3242/","https://shipsofscale.com/sosforums/threads/hms-enterprize-1782-shipyard-1-72.1718/page-3","Потапычъ"]
["Victory","Hms Victory 1/96 on Shipyard","https://shipsofscale.com/sosforums/threads/hms-victory-1-96-on-shipyard.3216/","https://shipsofscale.com/sosforums/threads/hms-enterprize-1782-shipyard-1-72.1718/page-3","Bazzg"]
["Queen of the Isles","MS Queen of the Isles Ferry GB, 1965 1:250","https://shipsofscale.com/sosforums/threads/ms-queen-of-the-isles-ferry-gb-1965-1-250.1623/","https://shipsofscale.com/sosforums/threads/hms-enterprize-1782-shipyard-1-72.1718/page-3","modlerbob"]
["Borodino","Borodino - 1: 200 scale from PAPER HOUSE - by Roland Vlahovic","https://shipsofscale.com/sosforums/threads/borodino-1-200-scale-from-paper-house-by-roland-vlahovic.2660/","https://shipsofscale.com/sosforums/threads/hms-enterprize-1782-shipyard-1-72.1718/page-3","Roly"]
["Pirate Ship","Cardboard Pirate Ship","https://shipsofscale.com/sosforums/threads/cardboard-pirate-ship.3049/","https://shipsofscale.com/sosforums/threads/hms-enterprize-1782-shipyard-1-72.1718/page-3","eric67"]
["Victory","Shipyard HMS Victory 1:96 build","https://shipsofscale.com/sosforums/threads/shipyard-hms-victory-1-96-build.2551/","https://shipsofscale.com/sosforums/threads/hms-enterprize-1782-shipyard-1-72.1718/page-3","epicdoom"]
["Fishing Boat","IMMH Fishing Cutter","https://shipsofscale.com/sosforums/threads/immh-fishing-cutter.2424/","https://shipsofscale.com/sosforums/threads/hms-enterprize-1782-shipyard-1-72.1718/page-3","Aginvicta"]
["Norderney","SS Norderney Schreiber scale 1:200","https://shipsofscale.com/sosforums/threads/ss-norderney-schreiber-scale-1-200.1620/","https://shipsofscale.com/sosforums/threads/hms-enterprize-1782-shipyard-1-72.1718/page-3","modlerbob"]

{"sheet":"Sheet3","index":4,"n_rows":139,"n_cols":7,"rows_kept":139,"cut":false,"hidden":false,"merged":[]}
[{"$f":"\"A\"&ROW(A16)+1","v":"A17"},3]
[{"$f":"CELL(\"Address\",G5)","v":"$G$5"}]
[{"$f":"ROW(B16)+1","v":17}]
[139]
[1,null,null,null,null,null,{"$f":"A5","v":1}]
[{"$f":"\"$A$\"&$A$3&\":$G$\"&$A$4","v":"$A$17:$G$139"}]
[{"$f":"\"$B$\"&$A$3&\":$G$\"&$A$4","v":"$B$17:$G$139"},{"$f":"\"=VLOOKUP(B12,Sheet3!\"&A7&\",6,False)\"","v":"=VLOOKUP(B12,Sheet3!$B$17:$G$139,6,False)"}]
[{"$f":"\"$B$\"&$A$3&\":$C$\"&$A$4","v":"$B$17:$C$139"}]
[1557]
[{"$f":"\"$A1\"&\":$A\"&A9","v":"$A1:$A1557"}]
[]
[]
[]
[]
["Subject:"]
[{"$f":"Index!A20","v":"Ship"},"Title","Topic","Latest","By","Page",{"$f":"A16","v":"Ship"}]
["Admiral Ushakow","ProModel ADMIRAL USHAKOW 1/200","https://shipsofscale.com/sosforums/threads/promodel-admiral-ushakow-1-200.15156/","https://shipsofscale.com/sosforums/threads/postiljon-a-dutch-frigate-1661-1678.15220/page-3","Iterum",null,{"$f":"A17","v":"Admiral Ushakow"}]
["Agassiz","HMV Flower Class HMCS Corvette Agassiz 1:250 scale [COMPLETED BUILD]","https://shipsofscale.com/sosforums/threads/hmv-flower-class-hmcs-corvette-agassiz-1-250-scale-completed-build.14495/","https://shipsofscale.com/sosforums/threads/hms-enterprize-1-96-card-model-from-shipyard.4495/page-3","johngr",null,"Agassiz"]
["Akerboom","AKERBOOM 1681 after Ab Hoving nominally 1/66 but drawings in 1/64","https://shipsofscale.com/sosforums/threads/akerboom-1681-after-ab-hoving-nominally-1-66-but-drawings-in-1-64.13749/","https://shipsofscale.com/sosforums/threads/akerboom-1681-after-ab-hoving-nominally-1-66-but-drawings-in-1-64.13749/page-12","Iterum",12,"Akerboom"]
["Albatross","ALBATROS","https://shipsofscale.com/sosforums/threads/albatros.15213/","https://shipsofscale.com/sosforums/threads/ship-in-trouble.13276/page-4","Llaut Mallorquin",null,"Albatross"]
["Alert","DonRicardo HMS Alert 1/72","https://shipsofscale.com/sosforums/threads/donricardo-hms-alert-1-72.6995/","https://shipsofscale.com/sosforums/threads/shipyards-hms-bellona-1-96.2193/page-2","11320 Titanic",null,"Alert"]
["Alert","Fairing the frames on a paper/card model","https://shipsofscale.com/sosforums/threads/fairing-the-frames-on-a-paper-card-model.6800/","https://shipsofscale.com/sosforums/threads/russian-brig-olimp-1817-kit-of-the-company-shipworks-1-96.8397/page-2","11320 Titanic",null,"Alert"]
["Alert","Finished","https://shipsofscale.com/sosforums/threads/finished.9358/","https://shipsofscale.com/sosforums/threads/finished.9358/page-6","Ab Hoving",6,"Alert"]
["Alert","HMS Alert 1/72 scale from Shipyard","https://shipsofscale.com/sosforums/threads/hms-alert-1-72-scale-from-shipyard.6950/","https://shipsofscale.com/sosforums/threads/hms-alert-1-72-scale-from-shipyard.6950/page-5","11320 Titanic",5,"Alert"]
["Alert","HMS Alert destroyed","https://shipsofscale.com/sosforums/threads/hms-alert-destroyed.14914/","https://shipsofscale.com/sosforums/threads/hms-alert-destroyed.14914/page-2","11320 Titanic",2,"Alert"]
["Alert","HMS Alert vs. Le Coureur, Shipyard 1/72","https://shipsofscale.com/sosforums/threads/hms-alert-vs-le-coureur-shipyard-1-72.4597/","https://shipsofscale.com/sosforums/threads/hms-alert-vs-le-coureur-shipyard-1-72.4597/page-2","AnobiumPunctatum",2,"Alert"]
["Alert","JSC 'Alert' modern rapid intervention vehicle","https://shipsofscale.com/sosforums/threads/jsc-alert-modern-rapid-intervention-vehicle.4586/","https://shipsofscale.com/sosforums/threads/hms-enterprize-1782-shipyard-1-72.1718/page-3","Sulaire",null,"Alert"]
["Alert","Rapid intervention vessel Alert 1:100 [COMPLETED BUILD]","https://shipsofscale.com/sosforums/threads/rapid-intervention-vessel-alert-1-100-completed-build.14955/","https://shipsofscale.com/sosforums/threads/hms-mercury-1-72-shipyard-completed-build.2642/page-16","Lachezar Dragostinov",null,"Alert"]
["Alert","Shipyard 1:72 HMS Alert/Continental Navy Revenge","https://shipsofscale.com/sosforums/threads/shipyard-1-72-hms-alert-continental-navy-revenge.4595/","https://shipsofscale.com/sosforums/threads/shipyard-1-72-hms-alert-continental-navy-revenge.4595/page-2","Eric",2,"Alert"]
["Armed Virginia Sloop","Armed Virginia Sloop (scratch 1:100)","https://shipsofscale.com/sosforums/threads/armed-virginia-sloop-scratch-1-100.5840/","https://shipsofscale.com/sosforums/threads/russian-brig-olimp-1817-kit-of-the-company-shipworks-1-96.8397/page-2","0Seahorse",null,"Armed Virginia Sloop"]
["Armed Virginia Sloop","Armed Virginia Sloop 1776","https://shipsofscale.com/sosforums/threads/armed-virginia-sloop-1776.11999/","https://shipsofscale.com/sosforums/threads/hms-victory-1-96-by-shipyard.10509/page-2","Demetri",null,"Armed Virginia Sloop"]
["Armed Virginia Sloop","Armed Virginia Sloop 1776","https://shipsofscale.com/sosforums/threads/armed-virginia-sloop-1776.11998/","https://shipsofscale.com/sosforums/threads/hms-victory-1-96-by-shipyard.10509/page-2","Demetri",null,"Armed Virginia Sloop"]
["Axel Thorsen","Axel Thorsen 1810 - 1/72 (test)","https://shipsofscale.com/sosforums/threads/axel-thorsen-1810-1-72-test.15059/","https://shipsofscale.com/sosforums/threads/akerboom-1681-after-ab-hoving-nominally-1-66-but-drawings-in-1-64.13749/page-12","0Seahorse",null,"Axel Thorsen"]
["Bellona","Shipyard's HMS Bellona 1:96","https://shipsofscale.com/sosforums/threads/shipyards-hms-bellona-1-96.2193/","https://shipsofscale.com/sosforums/threads/shipyards-hms-bellona-1-96.2193/page-2","ron0909",2,"Bellona"]
["Berbice","Baltimore clipper Berbice","https://shipsofscale.com/sosforums/threads/baltimore-clipper-berbice.3242/","https://shipsofscale.com/sosforums/threads/hms-enterprize-1782-shipyard-1-72.1718/page-3","Потапычъ",null,"Berbice"]
["Bismarck","1/200 Gpm Bismark with laser cut frames","https://shipsofscale.com/sosforums/threads/1-200-gpm-bismark-with-laser-cut-frames.6446/","https://shipsofscale.com/sosforums/threads/postiljon-a-dutch-frigate-1661-1678.15220/page-3","Peterairfix",null,"Bismarck"]
["Bismarck","Bismarck 1:200 GPM 22'2011 Nr.182","https://shipsofscale.com/sosforums/threads/bismarck-1-200-gpm-222011-nr-182.4028/","https://shipsofscale.com/sosforums/threads/hms-enterprize-1782-shipyard-1-72.1718/page-3","SAIL AND SAIL",null,"Bismarck"]
["Bismarck","GPM 1\\200 Bismarck card kit","https://shipsofscale.com/sosforums/threads/gpm-1-200-bismarck-card-kit.3039/","https://shipsofscale.com/sosforums/threads/gpm-1-200-bismarck-card-kit.3039/page-2","Peterairfix",2,"Bismarck"]
["Black Pearl","Paper model ship Pirates of the Caribbean Black Pearl","https://shipsofscale.com/sosforums/threads/paper-model-ship-pirates-of-the-caribbean-black-pearl.12033/","https://shipsofscale.com/sosforums/threads/hms-victory-1-96-based-on-shipyard.2411/page-4","NarcAngel",null,"Black Pearl"]
["Black Pearl","The Black Pearl from Card and mixed media. My very first build.","https://shipsofscale.com/sosforums/threads/the-black-pearl-from-card-and-mixed-media-my-very-first-build.11791/","https://shipsofscale.com/sosforums/threads/hms-victory-1-96-by-shipyard.10509/page-2","MsL",null,"Black Pearl"]
["Boeing 777","Amazing model builder","https://shipsofscale.com/sosforums/threads/amazing-model-builder.13158/","https://shipsofscale.com/sosforums/threads/hms-victory-1-96-based-on-shipyard.2411/page-4","AER3393",null,"Boeing 777"]
["Borodino","Borodino - 1: 200 scale from PAPER HOUSE - by Roland Vlahovic","https://shipsofscale.com/sosforums/threads/borodino-1-200-scale-from-paper-house-by-roland-vlahovic.2660/","https://shipsofscale.com/sosforums/threads/hms-enterprize-1782-shipyard-1-72.1718/page-3","Roly",null,"Borodino"]
["Cairo","Orel USS Cairo","https://shipsofscale.com/sosforums/threads/orel-uss-cairo.15371/","https://shipsofscale.com/sosforums/threads/de-zeven-provincien-1665-1-100-fa-seahorse-tomasz-weremko.14220/page-2","romfolmar",null,"Cairo"]
["Carpathia","RMS Carpathia 1:600 paper model build","https://shipsofscale.com/sosforums/threads/rms-carpathia-1-600-paper-model-build.16921/","https://shipsofscale.com/sosforums/threads/shipyard-1-96-santa-leocadia-paper-model-build.15290/page-3","someCO_OLguy",null,"Carpathia"]
["Celtic Voyager","Celtic Voyager - Paper Shipwright - 1:250 - CARD","https://shipsofscale.com/sosforums/threads/celtic-voyager-paper-shipwright-1-250-card.14359/","https://shipsofscale.com/sosforums/threads/the-dutch-yacht-18th-century-completed-build.5760/page-2","johngr",null,"Celtic Voyager"]
["Columbus Ships","A whole fleet is created - the Columbus ships from 1492. Shipyard company, 1:96","https://shipsofscale.com/sosforums/threads/a-whole-fleet-is-created-the-columbus-ships-from-1492-shipyard-company-1-96.9640/","https://shipsofscale.com/sosforums/threads/de-zeven-provincien-1-100-scratch-seahorse-new-design-completed-build.4892/page-4","Bonden",null,"Columbus Ships"]
["De Zeven Provincien","\"De Zeven Provincien\" 1:100 (scratch) - Seahorse New Design [COMPLETED BUILD]","https://shipsofscale.com/sosforums/threads/de-zeven-provincien-1-100-scratch-seahorse-new-design-completed-build.4892/","https://shipsofscale.com/sosforums/threads/de-zeven-provincien-1-100-scratch-seahorse-new-design-completed-build.4892/page-4","0Seahorse",4,"De Zeven Provincien"]
["De Zeven Provinciën","De Zeven Provincien\" 1:100 (scratch)","https://shipsofscale.com/sosforums/threads/de-zeven-provincien-1-100-scratch.4892/","https://shipsofscale.com/sosforums/threads/de-zeven-provincien-1-100-scratch.4892/page-3","0Seahorse",3,"De Zeven Provinciën"]
["Diorama","New Papermodels","https://shipsofscale.com/sosforums/threads/new-papermodels.6948/","https://shipsofscale.com/sosforums/threads/a-143-feet-long-dutch-warship-from-1681-cardstock-completed-build.4634/page-5","Wilhelm Thümler",null,"Diorama"]
["Dockyard Crane","Stationary Dockyard Crane, XVIII Century. Shipyard Card Model 1:72.","https://shipsofscale.com/sosforums/threads/stationary-dockyard-crane-xviii-century-shipyard-card-model-1-72.8169/","https://shipsofscale.com/sosforums/threads/zeekoe-a-dutch-74ft-katt-in-scratch-1-66.8358/page-2","Oldpaperone",null,"Dockyard Crane"]
["Dutch Warship","A 143 feet long Dutch warship from 1681. Cardstock [COMPLETED BUILD]","https://shipsofscale.com/sosforums/threads/a-143-feet-long-dutch-warship-from-1681-cardstock-completed-build.4634/","https://shipsofscale.com/sosforums/threads/a-143-feet-long-dutch-warship-from-1681-cardstock-completed-build.4634/page-5","Ab Hoving",5,"Dutch Warship"]
["Dutch Warship","A 160 foot Dutch Eastindiaman (VOC) 1699 [COMPLETED BUILD]","https://shipsofscale.com/sosforums/threads/a-160-foot-dutch-eastindiaman-voc-1699-completed-build.9233/","https://shipsofscale.com/sosforums/threads/a-160-foot-dutch-eastindiaman-voc-1699-completed-build.9233/page-2","Ab Hoving",2,"Dutch Warship"]
["Edinburgh","HMS EDINBURGH - scratch model - scale 1:400 [COMPLETED BUILD]","https://shipsofscale.com/sosforums/threads/hms-edinburgh-scratch-model-scale-1-400-completed-build.14721/","https://shipsofscale.com/sosforums/threads/hms-mercury-1-72-shipyard-completed-build.2642/page-16","SZKUTNIK",null,"Edinburgh"]
["Empress of Ireland","RMS Empress of Ireland, my templates and build","https://shipsofscale.com/sosforums/threads/rms-empress-of-ireland-my-templates-and-build.16942/","https://shipsofscale.com/sosforums/threads/shipyard-1-96-santa-leocadia-paper-model-build.15290/page-3","someCO_OLguy",null,"Empress of Ireland"]
["Enterprise","HMS Enterprize 1/96 card model from Shipyard","https://shipsofscale.com/sosforums/threads/hms-enterprize-1-96-card-model-from-shipyard.4495/","https://shipsofscale.com/sosforums/threads/hms-enterprize-1-96-card-model-from-shipyard.4495/page-3","Pgtaylorart",3,"Enterprise"]
["Enterprise","HMS Enterprize 1782 Shipyard 1:72","https://shipsofscale.com/sosforums/threads/hms-enterprize-1782-shipyard-1-72.1718/","https://shipsofscale.com/sosforums/threads/hms-enterprize-1782-shipyard-1-72.1718/page-3","Jos",3,"Enterprise"]
["Fiji","HMS FIJI - scratch model - scale 1:400 [COMPLETED BUILD]","https://shipsofscale.com/sosforums/threads/hms-fiji-scratch-model-scale-1-400-completed-build.14722/","https://shipsofscale.com/sosforums/threads/a-143-feet-long-dutch-warship-from-1681-cardstock-completed-build.4634/page-5","SZKUTNIK",null,"Fiji"]
["Fishing Boat","Experiment Oberfläche für Karton Schiffe Orient","https://shipsofscale.com/sosforums/threads/experiment-oberfl%C3%A4che-f%C3%BCr-karton-schiffe-orient.15206/","https://shipsofscale.com/sosforums/threads/a-143-feet-long-dutch-warship-from-1681-cardstock-completed-build.4634/page-5","Käptn Ahab",null,"Fishing Boat"]
["Fishing Boat","IMMH Fishing Cutter","https://shipsofscale.com/sosforums/threads/immh-fishing-cutter.2424/","https://shipsofscale.com/sosforums/threads/hms-enterprize-1782-shipyard-1-72.1718/page-3","Aginvicta"]
["Forell class","The FORELL Quartett in four Scales","https://shipsofscale.com/sosforums/threads/the-forell-quartett-in-four-scales.12716/","https://shipsofscale.com/sosforums/threads/the-forell-quartett-in-four-scales.12716/page-2","Iterum",2,{"$f":"A60","v":"Forell class"}]
["Fortune","Boat \"Fortune \".","https://shipsofscale.com/sosforums/threads/boat-fortune.3284/","https://shipsofscale.com/sosforums/threads/hms-mercury-1797-shipyard-1-72.1663/page-3","Потапычъ",null,"Fortune"]
["Fuso","IJN Fuso 1944 by wieslaw_ - Halinski - 1/200 - CARD - with 3D print","https://shipsofscale.com/sosforums/threads/ijn-fuso-1944-by-wieslaw_-halinski-1-200-card-with-3d-print.16707/","https://shipsofscale.com/sosforums/threads/ijn-fuso-1944-by-wieslaw_-halinski-1-200-card-with-3d-print.16707/page-2","wieslaw_",2,"Fuso"]
["Gneisenau","Artillery training frigate F212 GNEISENAU ex HMS Oakley of the German Navy","https://shipsofscale.com/sosforums/threads/artillery-training-frigate-f212-gneisenau-ex-hms-oakley-of-the-german-navy.12934/","https://shipsofscale.com/sosforums/threads/hms-victory-1-96-based-on-shipyard.2411/page-4","kartonskipper",null,"Gneisenau"]
["Golden Hinde","“Golden Hind” from the plan shipyard warped with wood","https://shipsofscale.com/sosforums/threads/%E2%80%9Cgolden-hind%E2%80%9D-from-the-plan-shipyard-warped-with-wood.9595/","https://shipsofscale.com/sosforums/threads/de-zeven-provincien-1-100-scratch.4892/page-3","aqiqia",null,"Golden Hinde"]
["Hipper","F214 HIPPER - training frigate of the German Navy from the early days - after final refit?","https://shipsofscale.com/sosforums/threads/f214-hipper-training-frigate-of-the-german-navy-from-the-early-days-after-final-refit.13175/","https://shipsofscale.com/sosforums/threads/de-zeven-provincien-1-100-scratch-seahorse-new-design-completed-build.4892/page-4","kartonskipper",null,"Hipper"]
["Isolda","Isolda 1:160","https://shipsofscale.com/sosforums/threads/isolda-1-160.10583/","https://shipsofscale.com/sosforums/threads/hms-alert-vs-le-coureur-shipyard-1-72.4597/page-2","rickb",null,"Isolda"]
["Jacinthe","Schooner JACINTHE, Kgdm. of France, 1825 Scratch 1/64","https://shipsofscale.com/sosforums/threads/schooner-jacinthe-kgdm-of-france-1825-scratch-1-64.16060/","https://shipsofscale.com/sosforums/threads/schooner-jacinthe-kgdm-of-france-1825-scratch-1-64.16060/page-2","Iterum",2,"Jacinthe"]
["La Belle Poule","LA BELLE-POULE in 1771","https://shipsofscale.com/sosforums/threads/la-belle-poule-in-1771.8184/","https://shipsofscale.com/sosforums/threads/russian-brig-olimp-1817-kit-of-the-company-shipworks-1-96.8397/page-2","Iterum",null,"La Belle Poule"]
["Leopard","1:100 HMS LEOPARD to EXPERIMENT (Oriel)","https://shipsofscale.com/sosforums/threads/1-100-hms-leopard-to-experiment-oriel.8209/","https://shipsofscale.com/sosforums/threads/zeekoe-a-dutch-74ft-katt-in-scratch-1-66.8358/page-2","Iterum",null,"Leopard"]
["Leudo","Leudo vinaccere 1:72 scratch (test building)","https://shipsofscale.com/sosforums/threads/leudo-vinaccere-1-72-scratch-test-building.4157/","https://shipsofscale.com/sosforums/threads/leudo-vinaccere-1-72-scratch-test-building.4157/page-2","0Seahorse",2,"Leudo"]
["Leudo","Seahorse LEUDO VINACCIERE 1/72","https://shipsofscale.com/sosforums/threads/seahorse-leudo-vinacciere-1-72.6765/","https://shipsofscale.com/sosforums/threads/rms-queen-mary-scale-1-1250.7381/page-2","Iterum",null,"Leudo"]
["Live Fish transporter","Fish transport vessel after af Chapman LX N°4 in 1/48","https://shipsofscale.com/sosforums/threads/fish-transport-vessel-after-af-chapman-lx-n%C2%B04-in-1-48.5125/","https://shipsofscale.com/sosforums/threads/hms-victory-1-96-based-on-shipyard.2411/page-4","Iterum",null,"Live Fish transporter"]
["Losos","YG-models Torpedoboats LOSOS' and FOREL 1898","https://shipsofscale.com/sosforums/threads/yg-models-torpedoboats-losos-and-forel-1898.7896/","https://shipsofscale.com/sosforums/threads/zeekoe-a-dutch-74ft-katt-in-scratch-1-66.8358/page-2","Iterum",null,"Losos"]
["Magnus Mörck","Magnus Mörck","https://shipsofscale.com/sosforums/threads/magnus-m%C3%B6rck.13492/","https://shipsofscale.com/sosforums/threads/russian-torpedo-boat-kit1899-or-teaching-modelbuilding.17355/page-2","The learner",null,"Magnus Mörck"]
["Matabele","HMS MATABELE - scale 1-400","https://shipsofscale.com/sosforums/threads/hms-matabele-scale-1-400.14723/","https://shipsofscale.com/sosforums/threads/hms-mercury-1-72-shipyard-completed-build.2642/page-16","SZKUTNIK",null,"Matabele"]
["Meermann","\"Meermann\" or \"Wodnik\" 1627 (1:100, scratch) [COMPLETED BUILD]","https://shipsofscale.com/sosforums/threads/meermann-or-wodnik-1627-1-100-scratch-completed-build.6828/","https://shipsofscale.com/sosforums/threads/meermann-or-wodnik-1627-1-100-scratch-completed-build.6828/page-2","0Seahorse",2,"Meermann"]
["Mellum","Multipurpose vessel Mellum by HMV, skale 1:250 [COMPLETED BUILD]","https://shipsofscale.com/sosforums/threads/multipurpose-vessel-mellum-by-hmv-skale-1-250-completed-build.14968/","https://shipsofscale.com/sosforums/threads/ship-in-trouble.13276/page-4","Lachezar Dragostinov",null,"Mellum"]
["Mercury","HMS Mercury 1/72, Shipyard models","https://shipsofscale.com/sosforums/threads/hms-mercury-1-72-shipyard-models.5056/","https://shipsofscale.com/sosforums/threads/hms-mercury-1-72-shipyard-models.5056/page-5","Atamini",5,"Mercury"]
["Mercury","HMS MERCURY 1779 1:72 Shipyard","https://shipsofscale.com/sosforums/threads/hms-mercury-1779-1-72-shipyard.9040/","https://shipsofscale.com/sosforums/threads/hms-mercury-1779-1-72-shipyard.9040/page-5","Piotr Obrębski",5,"Mercury"]
["Mercury","HMS Mercury 1797 Shipyard 1:72","https://shipsofscale.com/sosforums/threads/hms-mercury-1797-shipyard-1-72.1663/","https://shipsofscale.com/sosforums/threads/hms-mercury-1797-shipyard-1-72.1663/page-3","Jos",3,"Mercury"]
["Mercury","HMS Mercury, 1:72, Shipyard [COMPLETED BUILD]","https://shipsofscale.com/sosforums/threads/hms-mercury-1-72-shipyard-completed-build.2642/","https://shipsofscale.com/sosforums/threads/hms-mercury-1-72-shipyard-completed-build.2642/page-16","Bonden",16,"Mercury"]
["Mississippi Steamboat","Mississippi Steamboat Cardboard - CubicFun 1/100","https://shipsofscale.com/sosforums/threads/mississippi-steamboat-cardboard-cubicfun-1-100.13390/","https://shipsofscale.com/sosforums/threads/the-forell-quartett-in-four-scales.12716/page-2","Richie",null,"Mississippi Steamboat"]
["New Mexico","USS \"NEW MEXICO\" (BB-40) - scratch model - scale 1:200 [COMPLETED BUILD]","https://shipsofscale.com/sosforums/threads/uss-new-mexico-bb-40-scratch-model-scale-1-200-completed-build.4894/","https://shipsofscale.com/sosforums/threads/uss-new-mexico-bb-40-scratch-model-scale-1-200-completed-build.4894/page-4","SZKUTNIK",4,"New Mexico"]
["Norderney","SS Norderney Schreiber scale 1:200","https://shipsofscale.com/sosforums/threads/ss-norderney-schreiber-scale-1-200.1620/","https://shipsofscale.com/sosforums/threads/hms-enterprize-1782-shipyard-1-72.1718/page-3","modlerbob"]
["Olimp","Russian brig Olimp, 1817, kit of the company ShipWorks, 1:96","https://shipsofscale.com/sosforums/threads/russian-brig-olimp-1817-kit-of-the-company-shipworks-1-96.8397/","https://shipsofscale.com/sosforums/threads/russian-brig-olimp-1817-kit-of-the-company-shipworks-1-96.8397/page-2","Bonden",2,{"$f":"A85","v":"Olimp"}]
["Pantaloon","PANTALOON tender to Royal George yacht 1/200 Oriel card kit","https://shipsofscale.com/sosforums/threads/pantaloon-tender-to-royal-george-yacht-1-200-oriel-card-kit.6690/","https://shipsofscale.com/sosforums/threads/shipyard-1-72-hms-alert-continental-navy-revenge.4595/page-2","Iterum",null,"Pantaloon"]
["Pinas","A 17th century Dutch armed trader – scratch built from card [COMPLETED BUILD]","https://shipsofscale.com/sosforums/threads/a-17th-century-dutch-armed-trader-%E2%80%93-scratch-built-from-card-completed-build.8119/","https://shipsofscale.com/sosforums/threads/a-17th-century-dutch-armed-trader-%E2%80%93-scratch-built-from-card-completed-build.8119/page-5","Ab Hoving",5,"Pinas"]
["Pirate Ship","1/64 A real Pirateship - af Chapman's ANM XL N° 11","https://shipsofscale.com/sosforums/threads/1-64-a-real-pirateship-af-chapmans-anm-xl-n%C2%B0-11.16618/","https://shipsofscale.com/sosforums/threads/postiljon-a-dutch-frigate-1661-1678.15220/page-3","Iterum",null,"Pirate Ship"]
["Pirate Ship","Cardboard Pirate Ship","https://shipsofscale.com/sosforums/threads/cardboard-pirate-ship.3049/","https://shipsofscale.com/sosforums/threads/hms-enterprize-1782-shipyard-1-72.1718/page-3","eric67",null,"Pirate Ship"]
["Postiljon","Postiljon, a Dutch frigate (1661-1678)","https://shipsofscale.com/sosforums/threads/postiljon-a-dutch-frigate-1661-1678.15220/","https://shipsofscale.com/sosforums/threads/postiljon-a-dutch-frigate-1661-1678.15220/page-3","Ab Hoving",3,"Postiljon"]
["Prince","HMS Prince in scale 1/600","https://shipsofscale.com/sosforums/threads/hms-prince-in-scale-1-600.6953/","https://shipsofscale.com/sosforums/threads/zeekoe-a-dutch-74ft-katt-in-scratch-1-66.8358/page-2","Wilhelm Thümler",null,"Prince"]
["Proud Mary","PROUD MARY","https://shipsofscale.com/sosforums/threads/proud-mary.15242/","https://shipsofscale.com/sosforums/threads/a-143-feet-long-dutch-warship-from-1681-cardstock-completed-build.4634/page-5","Llaut Mallorquin",null,"Proud Mary"]
["Queen Mary","RMS Queen Mary (Scale 1:1250)","https://shipsofscale.com/sosforums/threads/rms-queen-mary-scale-1-1250.7381/","https://shipsofscale.com/sosforums/threads/rms-queen-mary-scale-1-1250.7381/page-2","Jhoanor",2,"Queen Mary"]
["Queen of the Isles","MS Queen of the Isles Ferry GB, 1965 1:250","https://shipsofscale.com/sosforums/threads/ms-queen-of-the-isles-ferry-gb-1965-1-250.1623/","https://shipsofscale.com/sosforums/threads/hms-enterprize-1782-shipyard-1-72.1718/page-3","modlerbob",null,"Queen of the Isles"]
["Revenue Cutter","31-tonn revenue cutter (scratch & test model, 1:72 of Seahorse)","https://shipsofscale.com/sosforums/threads/31-tonn-revenue-cutter-scratch-test-model-1-72-of-seahorse.11906/","https://shipsofscale.com/sosforums/threads/a-17th-century-dutch-armed-trader-%E2%80%93-scratch-built-from-card-completed-build.8119/page-5","0Seahorse",null,"Revenue Cutter"]
["Royal Yacht","An English Royal yacht","https://shipsofscale.com/sosforums/threads/an-english-royal-yacht.16993/","https://shipsofscale.com/sosforums/threads/russian-torpedo-boat-kit1899-or-teaching-modelbuilding.17355/page-2","Ab Hoving",null,"Royal Yacht"]
["San Salvador","San Salvador","https://shipsofscale.com/sosforums/threads/san-salvador.7549/","https://shipsofscale.com/sosforums/threads/russian-brig-olimp-1817-kit-of-the-company-shipworks-1-96.8397/page-2","Captain",null,"San Salvador"]
["San Salvador","San Salvador 1:100 Maritime Museum San Diego","https://shipsofscale.com/sosforums/threads/san-salvador-1-100-maritime-museum-san-diego.1753/","https://shipsofscale.com/sosforums/threads/a-17th-century-dutch-armed-trader-%E2%80%93-scratch-built-from-card-completed-build.8119/page-5","Jos",null,"San Salvador"]
["Santa Leocadia","Shipyard 1/96 Santa Leocadia paper model build","https://shipsofscale.com/sosforums/threads/shipyard-1-96-santa-leocadia-paper-model-build.15290/","https://shipsofscale.com/sosforums/threads/shipyard-1-96-santa-leocadia-paper-model-build.15290/page-3","BigKeith95",3,"Santa Leocadia"]
["Sao Gabriel","Sao Gabriel 1/100 scratch","https://shipsofscale.com/sosforums/threads/sao-gabriel-1-100-scratch.2838/","https://shipsofscale.com/sosforums/threads/sao-gabriel-1-100-scratch.2838/page-2","0Seahorse",2,"Sao Gabriel"]
["Schichau Elbing","Russian torpedo boat KIT1899 or teaching modelbuilding","https://shipsofscale.com/sosforums/threads/russian-torpedo-boat-kit1899-or-teaching-modelbuilding.17355/","https://shipsofscale.com/sosforums/threads/russian-torpedo-boat-kit1899-or-teaching-modelbuilding.17355/page-2","Iterum",2,"Schichau Elbing"]
["Seefalke","Seefalke, Lappland, Scheelenkuhlen, 1:250 HMV","https://shipsofscale.com/sosforums/threads/seefalke-lappland-scheelenkuhlen-1-250-hmv.6601/","https://shipsofscale.com/sosforums/threads/willem-ruys-1-250-cardboard-of-scaldis.6349/page-2","Gijsbert",null,"Seefalke"]
["Sestroretsk","Сестрорецк [Sestroretsk] Scratchbuild scale 1/64 Russ. torpedo boat 1894","https://shipsofscale.com/sosforums/threads/%D0%A1%D0%B5%D1%81%D1%82%D1%80%D0%BE%D1%80%D0%B5%D1%86%D0%BA-sestroretsk-scratchbuild-scale-1-64-russ-torpedo-boat-1894.15657/","https://shipsofscale.com/sosforums/threads/%D0%A1%D0%B5%D1%81%D1%82%D1%80%D0%BE%D1%80%D0%B5%D1%86%D0%BA-sestroretsk-scratchbuild-scale-1-64-russ-torpedo-boat-1894.15657/page-2","Iterum",2,"Sestroretsk"]
["Sevastopol","Oriel IRN SEVASTOPOL 1899 - Oriel","https://shipsofscale.com/sosforums/threads/oriel-irn-sevastopol-1899-oriel.11405/","https://shipsofscale.com/sosforums/threads/gpm-1-200-bismarck-card-kit.3039/page-2","Iterum",null,"Sevastopol"]
["Sky Lantern","Chinese Sky Lantern - 1:1 - Creatov","https://shipsofscale.com/sosforums/threads/chinese-sky-lantern-1-1-creatov.5482/","https://shipsofscale.com/sosforums/threads/schreiber-bogen-1-200-rms-titanic.5315/page-2","mrshanks",null,"Sky Lantern"]
["SMS Beowulf","German coastal armored ship \"SMS Beowulf\", scale 1:250 [COMPLETED BUILD]","https://shipsofscale.com/sosforums/threads/german-coastal-armored-ship-sms-beowulf-scale-1-250-completed-build.15295/","https://shipsofscale.com/sosforums/threads/ship-in-trouble.13276/page-4","Lachezar Dragostinov",null,"SMS Beowulf"]
["Speeljacht","Speeljacht 1:50 (new project of \"Seahorse\")","https://shipsofscale.com/sosforums/threads/speeljacht-1-50-new-project-of-seahorse.13940/","https://shipsofscale.com/sosforums/threads/the-dutch-yacht-18th-century-completed-build.5760/page-2","0Seahorse",null,"Speeljacht"]
["Split","JRM razarač SPLIT - Yugoslav frigate Split - by Roland Vlahovic","https://shipsofscale.com/sosforums/threads/jrm-razara%C4%8D-split-yugoslav-frigate-split-by-roland-vlahovic.2486/","https://shipsofscale.com/sosforums/threads/hms-enterprize-1782-shipyard-1-72.1718/page-3","Roly",null,"Split"]
["Spray","The Spray of Joshua Slocum - scale ?? - by The Sailor","https://shipsofscale.com/sosforums/threads/the-spray-of-joshua-slocum-scale-by-the-sailor.8793/","https://shipsofscale.com/sosforums/threads/hms-victory-1-96-by-shipyard.10509/page-2","The Sailor",null,"Spray"]
["Steam Launch","Russian Steam Launch","https://shipsofscale.com/sosforums/threads/russian-steam-launch.15531/","https://shipsofscale.com/sosforums/threads/de-zeven-provincien-1665-1-100-fa-seahorse-tomasz-weremko.14220/page-2","Iterum",null,"Steam Launch"]
["Sterlyad","Scratch 1/64 STERLYAD Russ. Gunboat 1855","https://shipsofscale.com/sosforums/threads/scratch-1-64-sterlyad-russ-gunboat-1855.15561/","https://shipsofscale.com/sosforums/threads/ship-in-trouble.13276/page-4","Iterum",null,"Sterlyad"]
["Strohgbov","Steam tug STROHGBOV - 1:100 scale, own development.","https://shipsofscale.com/sosforums/threads/steam-tug-strohgbov-1-100-scale-own-development.15600/","https://shipsofscale.com/sosforums/threads/steam-tug-strohgbov-1-100-scale-own-development.15600/page-2","Lachezar Dragostinov",2,"Strohgbov"]
["Sussex","Hms Sussex - A dockyard model made of card","https://shipsofscale.com/sosforums/threads/hms-sussex-a-dockyard-model-made-of-card.17693/","https://shipsofscale.com/sosforums/threads/hms-sussex-a-dockyard-model-made-of-card.17693/page-3","Ab Hoving",3,"Sussex"]
["Titanic","RMS Titanic 1:100","https://shipsofscale.com/sosforums/threads/rms-titanic-1-100.15871/","https://shipsofscale.com/sosforums/threads/schooner-jacinthe-kgdm-of-france-1825-scratch-1-64.16060/page-2","someCO_OLguy",null,"Titanic"]
["Titanic","Schreiber-Bogen 1\\200 RMS Titanic","https://shipsofscale.com/sosforums/threads/schreiber-bogen-1-200-rms-titanic.5315/","https://shipsofscale.com/sosforums/threads/schreiber-bogen-1-200-rms-titanic.5315/page-2","peterairfix",2,"Titanic"]
["Tug","World of Paperships newest paper model: 3 New York tugboats scale 1: 250","https://shipsofscale.com/sosforums/threads/world-of-paperships-newest-paper-model-3-new-york-tugboats-scale-1-250.11069/","https://shipsofscale.com/sosforums/threads/uss-new-mexico-bb-40-scratch-model-scale-1-200-completed-build.4894/page-4","Jeroen",null,"Tug"]
["Tygre","HMS TYGRE IIIb - Trial of conversion in 1:100","https://shipsofscale.com/sosforums/threads/hms-tygre-iiib-trial-of-conversion-in-1-100.8210/","https://shipsofscale.com/sosforums/threads/zeekoe-a-dutch-74ft-katt-in-scratch-1-66.8358/page-2","Iterum",null,"Tygre"]
["Unknown","New to Card Ships","https://shipsofscale.com/sosforums/threads/new-to-card-ships.17813/","https://shipsofscale.com/sosforums/threads/steam-tug-strohgbov-1-100-scale-own-development.15600/page-2","Tony1955",null,"Unknown"]
["Un-named","Ship in trouble","https://shipsofscale.com/sosforums/threads/ship-in-trouble.13276/","https://shipsofscale.com/sosforums/threads/ship-in-trouble.13276/page-4","Ab Hoving",4,"Un-named"]
["Various","Five-master","https://shipsofscale.com/sosforums/threads/five-master.10409/","https://shipsofscale.com/sosforums/threads/sao-gabriel-1-100-scratch.2838/page-2","Wilhelm Thümler",null,"Various"]
["Various","New Paper Models 1/1250","https://shipsofscale.com/sosforums/threads/new-paper-models-1-1250.9949/","https://shipsofscale.com/sosforums/threads/hms-alert-vs-le-coureur-shipyard-1-72.4597/page-2","Wilhelm Thümler",null,"Various"]
["Various","Paper models in scale 1/1250","https://shipsofscale.com/sosforums/threads/paper-models-in-scale-1-1250.3615/","https://shipsofscale.com/sosforums/threads/willem-ruys-1-250-cardboard-of-scaldis.6349/page-2","Wilhelm Thümler",null,"Various"]
["Various","Paper Ship Models in 1/600 scale","https://shipsofscale.com/sosforums/threads/paper-ship-models-in-1-600-scale.5272/","https://shipsofscale.com/sosforums/threads/zeekoe-a-dutch-74ft-katt-in-scratch-1-66.8358/page-2","jimkrauzlis",null,"Various"]
["Victory","Glue","https://shipsofscale.com/sosforums/threads/glue.2484/","https://shipsofscale.com/sosforums/threads/glue.2484/page-2","Bazzg",2,"Victory"]
["Victory","HMS Victory 1/96 by Shipyard","https://shipsofscale.com/sosforums/threads/hms-victory-1-96-by-shipyard.10509/","https://shipsofscale.com/sosforums/threads/hms-victory-1-96-by-shipyard.10509/page-2","IoannisK",2,"Victory"]
["Victory","Hms Victory 1/96 on Shipyard","https://shipsofscale.com/sosforums/threads/hms-victory-1-96-on-shipyard.3216/","https://shipsofscale.com/sosforums/threads/hms-enterprize-1782-shipyard-1-72.1718/page-3","Bazzg",null,"Victory"]
["Victory","HMS Victory 1:96 based on Shipyard","https://shipsofscale.com/sosforums/threads/hms-victory-1-96-based-on-shipyard.2411/","https://shipsofscale.com/sosforums/threads/hms-victory-1-96-based-on-shipyard.2411/page-4","Paragraf",4,"Victory"]
["Victory","HMS Victory 1759 1:200 scale","https://shipsofscale.com/sosforums/threads/hms-victory-1759-1-200-scale.7851/","https://shipsofscale.com/sosforums/threads/hms-victory-1759-1-200-scale.7851/page-2","cap'nTallon",2,"Victory"]
["Victory","HMS VICTORY on 1/96 Shipyard Build","https://shipsofscale.com/sosforums/threads/hms-victory-on-1-96-shipyard-build.3069/","https://shipsofscale.com/sosforums/threads/willem-ruys-1-250-cardboard-of-scaldis.6349/page-2","Bazzg",null,"Victory"]
["Victory","Shipyard HMS Victory 1:96 build","https://shipsofscale.com/sosforums/threads/shipyard-hms-victory-1-96-build.2551/","https://shipsofscale.com/sosforums/threads/hms-enterprize-1782-shipyard-1-72.1718/page-3","epicdoom"]
["Vistula Barge","Szkuta wiślana (Vistula barge) 1:100, scratch [COMPLETED BUILD]","https://shipsofscale.com/sosforums/threads/szkuta-wi%C5%9Blana-vistula-barge-1-100-scratch-completed-build.9232/","https://shipsofscale.com/sosforums/threads/de-zeven-provincien-1-100-scratch.4892/page-3","0Seahorse",null,{"$f":"A131","v":"Vistula Barge"}]
["VOC ship","A 160-feet VOC-retourschip from 1697","https://shipsofscale.com/sosforums/threads/a-160-feet-voc-retourschip-from-1697.5594/","https://shipsofscale.com/sosforums/threads/willem-ruys-1-250-cardboard-of-scaldis.6349/page-2","Ab Hoving",null,"VOC ship"]
["Whaleboat","28ft Whaling boat 1/64","https://shipsofscale.com/sosforums/threads/28ft-whaling-boat-1-64.5025/","https://shipsofscale.com/sosforums/threads/hms-enterprize-1782-shipyard-1-72.1718/page-3","Iterum",null,"Whaleboat"]
["Willem Ruys","Willem Ruys 1:250, cardboard of Scaldis","https://shipsofscale.com/sosforums/threads/willem-ruys-1-250-cardboard-of-scaldis.6349/","https://shipsofscale.com/sosforums/threads/willem-ruys-1-250-cardboard-of-scaldis.6349/page-2","André de R.",2,"Willem Ruys"]
["Yacht","The Dutch yacht 18th century [COMPLETED BUILD]","https://shipsofscale.com/sosforums/threads/the-dutch-yacht-18th-century-completed-build.5760/","https://shipsofscale.com/sosforums/threads/the-dutch-yacht-18th-century-completed-build.5760/page-2","Demetri",2,"Yacht"]
["YMS-326 Minesweeper","YMS-326 Minesweeper (Aleutians, 1944) - from Orlik 1/100","https://shipsofscale.com/sosforums/threads/yms-326-minesweeper-aleutians-1944-from-orlik-1-100.11235/","https://shipsofscale.com/sosforums/threads/de-zeven-provincien-1-100-scratch-seahorse-new-design-completed-build.4892/page-4","Kilroy1988",null,"YMS-326 Minesweeper"]
["Zeekoe","ZEEKOE a Dutch 74ft Katt in Scratch 1/66","https://shipsofscale.com/sosforums/threads/zeekoe-a-dutch-74ft-katt-in-scratch-1-66.8358/","https://shipsofscale.com/sosforums/threads/zeekoe-a-dutch-74ft-katt-in-scratch-1-66.8358/page-2","Iterum",2,"Zeekoe"]
["Zeven Provincien","De Zeven Provincien 1665 - 1.100, Fa. Seahorse (Tomasz Weremko)","https://shipsofscale.com/sosforums/threads/de-zeven-provincien-1665-1-100-fa-seahorse-tomasz-weremko.14220/","https://shipsofscale.com/sosforums/threads/de-zeven-provincien-1665-1-100-fa-seahorse-tomasz-weremko.14220/page-2","Bonden",2,"Zeven Provincien"]
["Zobol","ZOBOL' a might have been 1890 torpedo ship","https://shipsofscale.com/sosforums/threads/zobol-a-might-have-been-1890-torpedo-ship.12971/","https://shipsofscale.com/sosforums/threads/hms-victory-1-96-based-on-shipyard.2411/page-4","Iterum",null,"Zobol"]

{"sheet":"Index","index":5,"n_rows":259,"n_cols":20,"rows_kept":259,"cut":false,"hidden":false,"merged":[]}
[{"$f":"\"A\" & ROW(A21)+1","v":"A22"},6,{"$f":"TEXT(NOW(),\"dd/mm/yy\")","v":"13/11/25"},"<head><meta charset=\"utf-8\" /></head>",null,null,"Edit these entries to change the formatting ---->","<td width=\"","<span style=\"text-decoration: underline;\">","<strong>","<em>","<tr>","<u>","<td>","<a href=\"","\">","<table width=\"","<tbody>","<p>","<div style=\"text-align: center;\">"]
[{"$f":"CELL(\"address\",A20)","v":"$A$20"},null,null,null,null,null,null,"%\">","</span>","</strong>","</em>","</tr>","</u>","</td>","</a>",null,"%\" border=\"0\">","</tbody>","&#160;","<div style=\"text-align: left;\">"]
[{"$f":"ROW(A21)+1","v":22},"Start Row",null,null,null,null,"See range stating at V1 for previous values",null,"<hr />","#TOP\">Back to Top","<a name=\"",null,null,null,null,null,"</table>",null,"</p>","</div>"]
[258,"End Row",null,null,null,null,{"$f":"$D$1& $B$8&$C$8","v":"<head><meta charset=\"utf-8\" /></head><div style=\"text-align: center;\"><strong>This is a list of all the build logs in the Paper forum - 13/11/25</strong></div><div style=\"text-align: center;\"></div><div style=\"text-align: center;\">The logs are in alphabetical order of the ships name (Ignoring any prefix, e.g. HMS, USS etc.)</div><div style=\"text-align: center;\">Select a letter from the list below to jump within the index.</div><hr /><div style=\"text-align: center;\"></div><div style=\"text-align: center;\"><a href=\"#A\">A</a>&#160;&#160;<a href=\"#B\">B</a>&#160;&#160;<a href=\"#C\">C</a>&#160;&#160;<a href=\"#D\">D</a>&#160;&#160;<a href=\"#E\">E</a>&#160;&#160;<a href=\"#F\">F</a>&#160;&#160;<a href=\"#G\">G</a>&#160;&#160;<a href=\"#H\">H</a>&#160;&#160;<a href=\"#I\">I</a>&#160;&#160;<a href=\"#J\">J</a>&#160;&#160;K&#160;&#160;<a href=\"#L\">L</a>&#160;&#160;<a href=\"#M\">M</a>&#160;&#160;<a href=\"#N\">N</a>&#160;&#160;<a href=\"#O\">O</a>&#160;&#160;<a href=\"#P\">P</a>&#160;&#160;<a href=\"#Q\">Q</a>&#160;&#160;<a href=\"#R\">R</a>&#160;&#160;<a href=\"#S\">S</a>&#160;&#160;<a href=\"#T\">T</a>&#160;&#160;<a href=\"#U\">U</a>&#160;&#160;<a href=\"#V\">V</a>&#160;&#160;<a href=\"#W\">W</a>&#160;&#160;X&#160;&#160;<a href=\"#Y\">Y</a>&#160;&#160;<a href=\"#Z\">Z</a>&#160;&#160;</div>"},"",null,null,null,null,null,null,null,null,null,null,{"$f":"S1&S2&S3","v":"<p>&#160;</p>"}]
[{"$f":"CELL(\"address\",$G$5)&\":\"&CELL(\"address\",$M$5)","v":"$G$5:$M$5"},{"$f":"B14&Start!D12& \" forum\"","v":"This is a list of all the build logs in the Paper forum"},null,null,null,null,{"$f":"H5&I5&J5&L5","v":"<tr><td><strong>$G$5:$M$5</strong></td><td></td><td><a href=\"\">This is a list of all the build logs in the Paper forum</a></td><td></td></tr>"},{"$f":"$L$1&$N$1&$J$1&A5&$J$2&$N$2","v":"<tr><td><strong>$G$5:$M$5</strong></td>"},{"$f":"$N$1&E5&$N$2","v":"<td></td>"},{"$f":"$N$1&$O$1&C5&$P$1&B5&$O$2&$N$2","v":"<td><a href=\"\">This is a list of all the build logs in the Paper forum</a></td>"},{"$f":"F5","v":0},{"$f":"$N$1&IF(K5>0,$O$1&D5&$P$1&\"Page \"&K5&$O$2,\"\")&$N$2&$L$2","v":"<td></td></tr>"},""]
[{"$f":"CELL(\"address\",G4)","v":"$G$4"},null,null,null,null,null,"heading 1","heading 2","heading 3","heading 4"]
[{"$f":"CELL(\"address\",G21)","v":"$G$21"},"Opening text","A-Z bar","Table setup",null,"Headings: ",{"$f":"$H$1&M16&$H$2&$I$1&$J$1&$A$20&$J$2&$I$2&$N$2","v":"<td width=\"20%\"><span style=\"text-decoration: underline;\"><strong>Ship</strong></span></td>"},{"$f":"$H$1&N16&$H$2&$I$1&$J$1&$E$20&$J$2&$I$2&$N$2","v":"<td width=\"12%\"><span style=\"text-decoration: underline;\"><strong>By</strong></span></td>"},{"$f":"$H$1&O16&$H$2&$I$1&$J$1&$B$20&$J$2&$I$2&$N$2","v":"<td width=\"62%\"><span style=\"text-decoration: underline;\"><strong>Topic</strong></span></td>"},{"$f":"$H$1&P16&$H$2&$I$1&$J$1&$D$20&$J$2&$I$2&$N$2","v":"<td width=\"6%\"><span style=\"text-decoration: underline;\"><strong>Latest</strong></span></td>"}]
[{"$f":"CELL(\"address\",G10)","v":"$G$10"},{"$f":"$T$1&$J$1&IF(B5<>\"\",B5&\" - \"&$C$1,\"\")&$J$2&$T$3     &$T$1&IF(C14<>\"\",C14,\"\")&$T$3    &$T$1&IF(D14<>\"\",D14,\"\")&$T$3   &$T$1&IF(E14<>\"\",E14,\"\")&$T$3 &$I$3& T1&T3","v":"<div style=\"text-align: center;\"><strong>This is a list of all the build logs in the Paper forum - 13/11/25</strong></div><div style=\"text-align: center;\"></div><div style=\"text-align: center;\">The logs are in alphabetical order of the ships name (Ignoring any prefix, e.g. HMS, USS etc.)</div><div style=\"text-align: center;\">Select a letter from the list below to jump within the index.</div><hr /><div style=\"text-align: center;\"></div>"},"<div style=\"text-align: center;\"><a href=\"#A\">A</a>&#160;&#160;<a href=\"#B\">B</a>&#160;&#160;<a href=\"#C\">C</a>&#160;&#160;<a href=\"#D\">D</a>&#160;&#160;<a href=\"#E\">E</a>&#160;&#160;<a href=\"#F\">F</a>&#160;&#160;<a href=\"#G\">G</a>&#160;&#160;<a href=\"#H\">H</a>&#160;&#160;<a href=\"#I\">I</a>&#160;&#160;<a href=\"#J\">J</a>&#160;&#160;K&#160;&#160;<a href=\"#L\">L</a>&#160;&#160;<a href=\"#M\">M</a>&#160;&#160;<a href=\"#N\">N</a>&#160;&#160;<a href=\"#O\">O</a>&#160;&#160;<a href=\"#P\">P</a>&#160;&#160;<a href=\"#Q\">Q</a>&#160;&#160;<a href=\"#R\">R</a>&#160;&#160;<a href=\"#S\">S</a>&#160;&#160;<a href=\"#T\">T</a>&#160;&#160;<a href=\"#U\">U</a>&#160;&#160;<a href=\"#V\">V</a>&#160;&#160;<a href=\"#W\">W</a>&#160;&#160;X&#160;&#160;<a href=\"#Y\">Y</a>&#160;&#160;<a href=\"#Z\">Z</a>&#160;&#160;</div>",{"$f":"$L$10&$R$1&$L$1&$G$7&$H$7&$I$7&$J$7&$M$2&$L$2","v":"<table width=\"100%\" border=\"0\"><tbody><tr><td width=\"20%\"><span style=\"text-decoration: underline;\"><strong>Ship</strong></span></td><td width=\"12%\"><span style=\"text-decoration: underline;\"><strong>By</strong></span></td><td width=\"62%\"><span style=\"text-decoration: underline;\"><strong>Topic</strong></span></td><td width=\"6%\"><span style=\"text-decoration: underline;\"><strong>Latest</strong></span></td></u></tr>"},"First row",null,{"$f":"IF(INDIRECT($A$1)<>\" \",$L$1&$N$1&\"&#160;\"&$N$2&$L$2,\"\")","v":""}]
[null,null,null,null,null,"Divide table: ",{"$f":"$I$3&$S$1&O$1&$J$3&$O$2&$S$3","v":"<hr /><p><a href=\"#TOP\">Back to Top</a></p>"},{"$f":"$T$2&$I$3&$K$3","v":"<div style=\"text-align: left;\"><hr /><a name=\""},{"$f":"$P$1&$O$2&$J$1","v":"\"></a><strong>"},{"$f":"$J$2&$M$2&$S$3&T3","v":"</strong></u></p></div>"},null,"<p><u><a name=\"A\"></a><strong>A</strong></u></p><table width=\"100%\" border=\"0\"><tbody><tr><td width=\"40%\"><span style=\"text-decoration: underline;\"><strong>Subject</strong></span></td><td width=\"40%\"><span style=\"text-decoration: underline;\"><strong>Document</strong></span></td><td width=\"20%\"><span style=\"text-decoration: underline;\"><strong>Page</strong></span></td></u></tr>",""]
[{"$f":"A20","v":"Ship"},{"$f":"G9&IF(B18<>\"\",$I$3&$S$1&B18&$S$3&$S$1&IF(C18<>\"\",C18,$S$2)&$S$3&IF(D18<>\"\",$S$1&D18&$S$3,IF(E18<>\"\",$S$4,IF(C18<>\"\",$S$4,\"\")))&IF(E18<>\"\",$S$1&E18&$S$3&$S$4,IF(D18<>\"\",$S$4,\"\")),\"\")","v":"<hr /><p><a href=\"#TOP\">Back to Top</a></p><hr /><p>If you have any comments or require any corrections or amendments to this index, please post them <a href=\"https://shipsofscale.com/sosforums/threads/sos-card-stock-paper-index.13063/\">here</a></p><p>&#160;</p>"},"",null,null,null,{"$f":"$R$2&$Q$3&IF($B$10<>\"\",$S$4&$B$10,\"\")","v":"</tbody></table><p>&#160;</p><hr /><p><a href=\"#TOP\">Back to Top</a></p><hr /><p>If you have any comments or require any corrections or amendments to this index, please post them <a href=\"https://shipsofscale.com/sosforums/threads/sos-card-stock-paper-index.13063/\">here</a></p><p>&#160;</p>"},"",null,null,null,{"$f":"Q1&M13&Q2","v":"<table width=\"100%\" border=\"0\">"}]
[]
[null,"Opening Text"]
[null,"Line 1","Line 2","Line 3","Line 4",null,"Edit this entry to change the overall table width",null,null,null,null,null,100]
[null,"This is a list of all the build logs in the ",null,"The logs are in alphabetical order of the ships name (Ignoring any prefix, e.g. HMS, USS etc.)","Select a letter from the list below to jump within the index."]
[null,null,null,null,null,null,null,null,null,null,null,null,"Col. 1","Col. 2","Col. 3","Col. 4"]
[null,"Closing Text",null,null,null,null,"Edit these entries to change the column widths",null,null,null,null,null,20,12,62,{"$f":"MAX(100-SUM(M16:O16),0)","v":6}]
[null,"Line 1","Line 2","Line 3","Line 4"]
[null,"If you have any comments or require any corrections or amendments to this index, please post them <a href=\"https://shipsofscale.com/sosforums/threads/sos-card-stock-paper-index.13063/\">here</a>"]
[null,null,null,null,null,null,null,null,null,"topic +"]
["Ship","Topic","Topic Link","Latest","By","Page","HTML Index Text","ship","by","link","Page","Page + link"]
[null,null,null,null,null,null,{"$f":"$D$1& $B$8&$C$8","v":"<head><meta charset=\"utf-8\" /></head><div style=\"text-align: center;\"><strong>This is a list of all the build logs in the Paper forum - 13/11/25</strong></div><div style=\"text-align: center;\"></div><div style=\"text-align: center;\">The logs are in alphabetical order of the ships name (Ignoring any prefix, e.g. HMS, USS etc.)</div><div style=\"text-align: center;\">Select a letter from the list below to jump within the index.</div><hr /><div style=\"text-align: center;\"></div><div style=\"text-align: center;\"><a href=\"#A\">A</a>&#160;&#160;<a href=\"#B\">B</a>&#160;&#160;<a href=\"#C\">C</a>&#160;&#160;<a href=\"#D\">D</a>&#160;&#160;<a href=\"#E\">E</a>&#160;&#160;<a href=\"#F\">F</a>&#160;&#160;<a href=\"#G\">G</a>&#160;&#160;<a href=\"#H\">H</a>&#160;&#160;<a href=\"#I\">I</a>&#160;&#160;<a href=\"#J\">J</a>&#160;&#160;K&#160;&#160;<a href=\"#L\">L</a>&#160;&#160;<a href=\"#M\">M</a>&#160;&#160;<a href=\"#N\">N</a>&#160;&#160;<a href=\"#O\">O</a>&#160;&#160;<a href=\"#P\">P</a>&#160;&#160;<a href=\"#Q\">Q</a>&#160;&#160;<a href=\"#R\">R</a>&#160;&#160;<a href=\"#S\">S</a>&#160;&#160;<a href=\"#T\">T</a>&#160;&#160;<a href=\"#U\">U</a>&#160;&#160;<a href=\"#V\">V</a>&#160;&#160;<a href=\"#W\">W</a>&#160;&#160;X&#160;&#160;<a href=\"#Y\">Y</a>&#160;&#160;<a href=\"#Z\">Z</a>&#160;&#160;</div>"}]
[" ",null,null,null,null,null,"<div style=\"text-align: left;\"><hr /><a name=\"A\"></a><strong>A</strong></u></p></div><table width=\"100%\" border=\"0\"><tbody><tr><td width=\"20%\"><span style=\"text-decoration: underline;\"><strong>Ship</strong></span></td><td width=\"12%\"><span style=\"text-decoration: underline;\"><strong>By</strong></span></td><td width=\"62%\"><span style=\"text-decoration: underline;\"><strong>Topic</strong></span></td><td width=\"6%\"><span style=\"text-decoration: underline;\"><strong>Latest</strong></span></td></u></tr>",null,null,null,null,null,""]
["Admiral Ushakow","ProModel ADMIRAL USHAKOW 1/200","https://shipsofscale.com/sosforums/threads/promodel-admiral-ushakow-1-200.15156/","https://shipsofscale.com/sosforums/threads/postiljon-a-dutch-frigate-1661-1678.15220/page-3","Iterum",null,{"$f":"H23&I23&J23&L23","v":"<tr><td><strong>Admiral Ushakow</strong></td><td>Iterum</td><td><a href=\"https://shipsofscale.com/sosforums/threads/promodel-admiral-ushakow-1-200.15156/\">ProModel ADMIRAL USHAKOW 1/200</a></td><td></td></tr>"},{"$f":"$L$1&$N$1&$J$1&A23&$J$2&$N$2","v":"<tr><td><strong>Admiral Ushakow</strong></td>"},{"$f":"$N$1&E23&$N$2","v":"<td>Iterum</td>"},{"$f":"$N$1&$O$1&C23&$P$1&B23&$O$2&$N$2","v":"<td><a href=\"https://shipsofscale.com/sosforums/threads/promodel-admiral-ushakow-1-200.15156/\">ProModel ADMIRAL USHAKOW 1/200</a></td>"},{"$f":"F23","v":0},{"$f":"$N$1&IF(K23>0,$O$1&D23&$P$1&\"Page \"&K23&$O$2,\"\")&$N$2&$L$2","v":"<td></td></tr>"},""]
[" ",null,null,null,null,null,"<tr><td><strong> </strong></td><td></td><td><a href=\"\"></a></td><td></td></tr>","<tr><td><strong> </strong></td>","<td></td>","<td><a href=\"\"></a></td>",0,"<td></td></tr>",""]
["Agassiz","HMV Flower Class HMCS Corvette Agassiz 1:250 scale [COMPLETED BUILD]","https://shipsofscale.com/sosforums/threads/hmv-flower-class-hmcs-corvette-agassiz-1-250-scale-completed-build.14495/","https://shipsofscale.com/sosforums/threads/hms-enterprize-1-96-card-model-from-shipyard.4495/page-3","johngr",null,"<tr><td><strong>Agassiz</strong></td><td>johngr</td><td><a href=\"https://shipsofscale.com/sosforums/threads/hmv-flower-class-hmcs-corvette-agassiz-1-250-scale-completed-build.14495/\">HMV Flower Class HMCS Corvette Agassiz 1:250 scale [COMPLETED BUILD]</a></td><td></td></tr>","<tr><td><strong>Agassiz</strong></td>","<td>johngr</td>","<td><a href=\"https://shipsofscale.com/sosforums/threads/hmv-flower-class-hmcs-corvette-agassiz-1-250-scale-completed-build.14495/\">HMV Flower Class HMCS Corvette Agassiz 1:250 scale [COMPLETED BUILD]</a></td>",0,"<td></td></tr>",""]
[" ",null,null,null,null,null,"<tr><td><strong> </strong></td><td></td><td><a href=\"\"></a></td><td></td></tr>","<tr><td><strong> </strong></td>","<td></td>","<td><a href=\"\"></a></td>",0,"<td></td></tr>",""]
["Akerboom","AKERBOOM 1681 after Ab Hoving nominally 1/66 but drawings in 1/64","https://shipsofscale.com/sosforums/threads/akerboom-1681-after-ab-hoving-nominally-1-66-but-drawings-in-1-64.13749/","https://shipsofscale.com/sosforums/threads/akerboom-1681-after-ab-hoving-nominally-1-66-but-drawings-in-1-64.13749/page-12","Iterum",12,"<tr><td><strong>Akerboom</strong></td><td>Iterum</td><td><a href=\"https://shipsofscale.com/sosforums/threads/akerboom-1681-after-ab-hoving-nominally-1-66-but-drawings-in-1-64.13749/\">AKERBOOM 1681 after Ab Hoving nominally 1/66 but drawings in 1/64</a></td><td><a href=\"https://shipsofscale.com/sosforums/threads/akerboom-1681-after-ab-hoving-nominally-1-66-but-drawings-in-1-64.13749/page-12\">Page 12</a></td></tr>","<tr><td><strong>Akerboom</strong></td>","<td>Iterum</td>","<td><a href=\"https://shipsofscale.com/sosforums/threads/akerboom-1681-after-ab-hoving-nominally-1-66-but-drawings-in-1-64.13749/\">AKERBOOM 1681 after Ab Hoving nominally 1/66 but drawings in 1/64</a></td>",12,"<td><a href=\"https://shipsofscale.com/sosforums/threads/akerboom-1681-after-ab-hoving-nominally-1-66-but-drawings-in-1-64.13749/page-12\">Page 12</a></td></tr>",""]
[" ",null,null,null,null,null,"<tr><td><strong> </strong></td><td></td><td><a href=\"\"></a></td><td></td></tr>","<tr><td><strong> </strong></td>","<td></td>","<td><a href=\"\"></a></td>",0,"<td></td></tr>",""]
["Albatross","ALBATROS","https://shipsofscale.com/sosforums/threads/albatros.15213/","https://shipsofscale.com/sosforums/threads/ship-in-trouble.13276/page-4","Llaut Mallorquin",null,"<tr><td><strong>Albatross</strong></td><td>Llaut Mallorquin</td><td><a href=\"https://shipsofscale.com/sosforums/threads/albatros.15213/\">ALBATROS</a></td><td></td></tr>","<tr><td><strong>Albatross</strong></td>","<td>Llaut Mallorquin</td>","<td><a href=\"https://shipsofscale.com/sosforums/threads/albatros.15213/\">ALBATROS</a></td>",0,"<td></td></tr>",""]
[" ",null,null,null,null,null,"<tr><td><strong> </strong></td><td></td><td><a href=\"\"></a></td><td></td></tr>","<tr><td><strong> </strong></td>","<td></td>","<td><a href=\"\"></a></td>",0,"<td></td></tr>",""]
["Alert","DonRicardo HMS Alert 1/72","https://shipsofscale.com/sosforums/threads/donricardo-hms-alert-1-72.6995/","https://shipsofscale.com/sosforums/threads/shipyards-hms-bellona-1-96.2193/page-2","11320 Titanic",null,"<tr><td><strong>Alert</strong></td><td>11320 Titanic</td><td><a href=\"https://shipsofscale.com/sosforums/threads/donricardo-hms-alert-1-72.6995/\">DonRicardo HMS Alert 1/72</a></td><td></td></tr>","<tr><td><strong>Alert</strong></td>","<td>11320 Titanic</td>","<td><a href=\"https://shipsofscale.com/sosforums/threads/donricardo-hms-alert-1-72.6995/\">DonRicardo HMS Alert 1/72</a></td>",0,"<td></td></tr>",""]
[" ","Fairing the frames on a paper/card model","https://shipsofscale.com/sosforums/threads/fairing-the-frames-on-a-paper-card-model.6800/","https://shipsofscale.com/sosforums/threads/russian-brig-olimp-1817-kit-of-the-company-shipworks-1-96.8397/page-2","11320 Titanic",null,"<tr><td><strong> </strong></td><td>11320 Titanic</td><td><a href=\"https://shipsofscale.com/sosforums/threads/fairing-the-frames-on-a-paper-card-model.6800/\">Fairing the frames on a paper/card model</a></td><td></td></tr>","<tr><td><strong> </strong></td>","<td>11320 Titanic</td>","<td><a href=\"https://shipsofscale.com/sosforums/threads/fairing-the-frames-on-a-paper-card-model.6800/\">Fairing the frames on a paper/card model</a></td>",0,"<td></td></tr>",""]
[" ","Finished","https://shipsofscale.com/sosforums/threads/finished.9358/","https://shipsofscale.com/sosforums/threads/finished.9358/page-6","Ab Hoving",6,"<tr><td><strong> </strong></td><td>Ab Hoving</td><td><a href=\"https://shipsofscale.com/sosforums/threads/finished.9358/\">Finished</a></td><td><a href=\"https://shipsofscale.com/sosforums/threads/finished.9358/page-6\">Page 6</a></td></tr>","<tr><td><strong> </strong></td>","<td>Ab Hoving</td>","<td><a href=\"https://shipsofscale.com/sosforums/threads/finished.9358/\">Finished</a></td>",6,"<td><a href=\"https://shipsofscale.com/sosforums/threads/finished.9358/page-6\">Page 6</a></td></tr>",""]
[" ","HMS Alert 1/72 scale from Shipyard","https://shipsofscale.com/sosforums/threads/hms-alert-1-72-scale-from-shipyard.6950/","https://shipsofscale.com/sosforums/threads/hms-alert-1-72-scale-from-shipyard.6950/page-5","11320 Titanic",5,"<tr><td><strong> </strong></td><td>11320 Titanic</td><td><a href=\"https://shipsofscale.com/sosforums/threads/hms-alert-1-72-scale-from-shipyard.6950/\">HMS Alert 1/72 scale from Shipyard</a></td><td><a href=\"https://shipsofscale.com/sosforums/threads/hms-alert-1-72-scale-from-shipyard.6950/page-5\">Page 5</a></td></tr>","<tr><td><strong> </strong></td>","<td>11320 Titanic</td>","<td><a href=\"https://shipsofscale.com/sosforums/threads/hms-alert-1-72-scale-from-shipyard.6950/\">HMS Alert 1/72 scale from Shipyard</a></td>",5,"<td><a href=\"https://shipsofscale.com/sosforums/threads/hms-alert-1-72-scale-from-shipyard.6950/page-5\">Page 5</a></td></tr>",""]
[" ","HMS Alert destroyed","https://shipsofscale.com/sosforums/threads/hms-alert-destroyed.14914/","https://shipsofscale.com/sosforums/threads/hms-alert-destroyed.14914/page-2","11320 Titanic",2,"<tr><td><strong> </strong></td><td>11320 Titanic</td><td><a href=\"https://shipsofscale.com/sosforums/threads/hms-alert-destroyed.14914/\">HMS Alert destroyed</a></td><td><a href=\"https://shipsofscale.com/sosforums/threads/hms-alert-destroyed.14914/page-2\">Page 2</a></td></tr>","<tr><td><strong> </strong></td>","<td>11320 Titanic</td>","<td><a href=\"https://shipsofscale.com/sosforums/threads/hms-alert-destroyed.14914/\">HMS Alert destroyed</a></td>",2,"<td><a href=\"https://shipsofscale.com/sosforums/threads/hms-alert-destroyed.14914/page-2\">Page 2</a></td></tr>",""]
[" ","HMS Alert vs. Le Coureur, Shipyard 1/72","https://shipsofscale.com/sosforums/threads/hms-alert-vs-le-coureur-shipyard-1-72.4597/","https://shipsofscale.com/sosforums/threads/hms-alert-vs-le-coureur-shipyard-1-72.4597/page-2","AnobiumPunctatum",2,"<tr><td><strong> </strong></td><td>AnobiumPunctatum</td><td><a href=\"https://shipsofscale.com/sosforums/threads/hms-alert-vs-le-coureur-shipyard-1-72.4597/\">HMS Alert vs. Le Coureur, Shipyard 1/72</a></td><td><a href=\"https://shipsofscale.com/sosforums/threads/hms-alert-vs-le-coureur-shipyard-1-72.4597/page-2\">Page 2</a></td></tr>","<tr><td><strong> </strong></td>","<td>AnobiumPunctatum</td>","<td><a href=\"https://shipsofscale.com/sosforums/threads/hms-alert-vs-le-coureur-shipyard-1-72.4597/\">HMS Alert vs. Le Coureur, Shipyard 1/72</a></td>",2,"<td><a href=\"https://shipsofscale.com/sosforums/threads/hms-alert-vs-le-coureur-shipyard-1-72.4597/page-2\">Page 2</a></td></tr>",""]
[" ","JSC 'Alert' modern rapid intervention vehicle","https://shipsofscale.com/sosforums/threads/jsc-alert-modern-rapid-intervention-vehicle.4586/","https://shipsofscale.com/sosforums/threads/hms-enterprize-1782-shipyard-1-72.1718/page-3","Sulaire",null,"<tr><td><strong> </strong></td><td>Sulaire</td><td><a href=\"https://shipsofscale.com/sosforums/threads/jsc-alert-modern-rapid-intervention-vehicle.4586/\">JSC 'Alert' modern rapid intervention vehicle</a></td><td></td></tr>","<tr><td><strong> </strong></td>","<td>Sulaire</td>","<td><a href=\"https://shipsofscale.com/sosforums/threads/jsc-alert-modern-rapid-intervention-vehicle.4586/\">JSC 'Alert' modern rapid intervention vehicle</a></td>",0,"<td></td></tr>",""]
[" ","Rapid intervention vessel Alert 1:100 [COMPLETED BUILD]","https://shipsofscale.com/sosforums/threads/rapid-intervention-vessel-alert-1-100-completed-build.14955/","https://shipsofscale.com/sosforums/threads/hms-mercury-1-72-shipyard-completed-build.2642/page-16","Lachezar Dragostinov",null,"<tr><td><strong> </strong></td><td>Lachezar Dragostinov</td><td><a href=\"https://shipsofscale.com/sosforums/threads/rapid-intervention-vessel-alert-1-100-completed-build.14955/\">Rapid intervention vessel Alert 1:100 [COMPLETED BUILD]</a></td><td></td></tr>","<tr><td><strong> </strong></td>","<td>Lachezar Dragostinov</td>","<td><a href=\"https://shipsofscale.com/sosforums/threads/rapid-intervention-vessel-alert-1-100-completed-build.14955/\">Rapid intervention vessel Alert 1:100 [COMPLETED BUILD]</a></td>",0,"<td></td></tr>",""]
[" ","Shipyard 1:72 HMS Alert/Continental Navy Revenge","https://shipsofscale.com/sosforums/threads/shipyard-1-72-hms-alert-continental-navy-revenge.4595/","https://shipsofscale.com/sosforums/threads/shipyard-1-72-hms-alert-continental-navy-revenge.4595/page-2","Eric",2,"<tr><td><strong> </strong></td><td>Eric</td><td><a href=\"https://shipsofscale.com/sosforums/threads/shipyard-1-72-hms-alert-continental-navy-revenge.4595/\">Shipyard 1:72 HMS Alert/Continental Navy Revenge</a></td><td><a href=\"https://shipsofscale.com/sosforums/threads/shipyard-1-72-hms-alert-continental-navy-revenge.4595/page-2\">Page 2</a></td></tr>","<tr><td><strong> </strong></td>","<td>Eric</td>","<td><a href=\"https://shipsofscale.com/sosforums/threads/shipyard-1-72-hms-alert-continental-navy-revenge.4595/\">Shipyard 1:72 HMS Alert/Continental Navy Revenge</a></td>",2,"<td><a href=\"https://shipsofscale.com/sosforums/threads/shipyard-1-72-hms-alert-continental-navy-revenge.4595/page-2\">Page 2</a></td></tr>",""]
[" ",null,null,null,null,null,"<tr><td><strong> </strong></td><td></td><td><a href=\"\"></a></td><td></td></tr>","<tr><td><strong> </strong></td>","<td></td>","<td><a href=\"\"></a></td>",0,"<td></td></tr>",""]
["Armed Virginia Sloop","Armed Virginia Sloop (scratch 1:100)","https://shipsofscale.com/sosforums/threads/armed-virginia-sloop-scratch-1-100.5840/","https://shipsofscale.com/sosforums/threads/russian-brig-olimp-1817-kit-of-the-company-shipworks-1-96.8397/page-2","0Seahorse",null,"<tr><td><strong>Armed Virginia Sloop</strong></td><td>0Seahorse</td><td><a href=\"https://shipsofscale.com/sosforums/threads/armed-virginia-sloop-scratch-1-100.5840/\">Armed Virginia Sloop (scratch 1:100)</a></td><td></td></tr>","<tr><td><strong>Armed Virginia Sloop</strong></td>","<td>0Seahorse</td>","<td><a href=\"https://shipsofscale.com/sosforums/threads/armed-virginia-sloop-scratch-1-100.5840/\">Armed Virginia Sloop (scratch 1:100)</a></td>",0,"<td></td></tr>",""]
[" ","Armed Virginia Sloop 1776","https://shipsofscale.com/sosforums/threads/armed-virginia-sloop-1776.11999/","https://shipsofscale.com/sosforums/threads/hms-victory-1-96-by-shipyard.10509/page-2","Demetri",null,"<tr><td><strong> </strong></td><td>Demetri</td><td><a href=\"https://shipsofscale.com/sosforums/threads/armed-virginia-sloop-1776.11999/\">Armed Virginia Sloop 1776</a></td><td></td></tr>","<tr><td><strong> </strong></td>","<td>Demetri</td>","<td><a href=\"https://shipsofscale.com/sosforums/threads/armed-virginia-sloop-1776.11999/\">Armed Virginia Sloop 1776</a></td>",0,"<td></td></tr>",""]
[" ","Armed Virginia Sloop 1776","https://shipsofscale.com/sosforums/threads/armed-virginia-sloop-1776.11998/","https://shipsofscale.com/sosforums/threads/hms-victory-1-96-by-shipyard.10509/page-2","Demetri",null,"<tr><td><strong> </strong></td><td>Demetri</td><td><a href=\"https://shipsofscale.com/sosforums/threads/armed-virginia-sloop-1776.11998/\">Armed Virginia Sloop 1776</a></td><td></td></tr>","<tr><td><strong> </strong></td>","<td>Demetri</td>","<td><a href=\"https://shipsofscale.com/sosforums/threads/armed-virginia-sloop-1776.11998/\">Armed Virginia Sloop 1776</a></td>",0,"<td></td></tr>",""]
[" ",null,null,null,null,null,"<tr><td><strong> </strong></td><td></td><td><a href=\"\"></a></td><td></td></tr>","<tr><td><strong> </strong></td>","<td></td>","<td><a href=\"\"></a></td>",0,"<td></td></tr>",""]
["Axel Thorsen","Axel Thorsen 1810 - 1/72 (test)","https://shipsofscale.com/sosforums/threads/axel-thorsen-1810-1-72-test.15059/","https://shipsofscale.com/sosforums/threads/akerboom-1681-after-ab-hoving-nominally-1-66-but-drawings-in-1-64.13749/page-12","0Seahorse",null,"<tr><td><strong>Axel Thorsen</strong></td><td>0Seahorse</td><td><a href=\"https://shipsofscale.com/sosforums/threads/axel-thorsen-1810-1-72-test.15059/\">Axel Thorsen 1810 - 1/72 (test)</a></td><td></td></tr>","<tr><td><strong>Axel Thorsen</strong></td>","<td>0Seahorse</td>","<td><a href=\"https://shipsofscale.com/sosforums/threads/axel-thorsen-1810-1-72-test.15059/\">Axel Thorsen 1810 - 1/72 (test)</a></td>",0,"<td></td></tr>",""]
[" ",null,null,null,null,null,"<tr><td><strong> </strong></td><td></td><td><a href=\"\"></a></td><td></td></tr>","<tr><td><strong> </strong></td>","<td></td>","<td><a href=\"\"></a></td>",0,"<td></td></tr>",""]
[" ",null,null,null,null,null,"</tbody></table><hr /><p><a href=\"#TOP\">Back to Top</a></p><div style=\"text-align: left;\"><hr /><a name=\"B\"></a><strong>B</strong></u></p></div><table width=\"100%\" border=\"0\"><tbody><tr><td width=\"20%\"><span style=\"text-decoration: underline;\"><strong>Ship</strong></span></td><td width=\"12%\"><span style=\"text-decoration: underline;\"><strong>By</strong></span></td><td width=\"62%\"><span style=\"text-decoration: underline;\"><strong>Topic</strong></span></td><td width=\"6%\"><span style=\"text-decoration: underline;\"><strong>Latest</strong></span></td></u></tr>",null,null,null,null,null,""]
["Bellona","Shipyard's HMS Bellona 1:96","https://shipsofscale.com/sosforums/threads/shipyards-hms-bellona-1-96.2193/","https://shipsofscale.com/sosforums/threads/shipyards-hms-bellona-1-96.2193/page-2","ron0909",2,"<tr><td><strong>Bellona</strong></td><td>ron0909</td><td><a href=\"https://shipsofscale.com/sosforums/threads/shipyards-hms-bellona-1-96.2193/\">Shipyard's HMS Bellona 1:96</a></td><td><a href=\"https://shipsofscale.com/sosforums/threads/shipyards-hms-bellona-1-96.2193/page-2\">Page 2</a></td></tr>","<tr><td><strong>Bellona</strong></td>","<td>ron0909</td>","<td><a href=\"https://shipsofscale.com/sosforums/threads/shipyards-hms-bellona-1-96.2193/\">Shipyard's HMS Bellona 1:96</a></td>",2,"<td><a href=\"https://shipsofscale.com/sosforums/threads/shipyards-hms-bellona-1-96.2193/page-2\">Page 2</a></td></tr>",""]
[" ",null,null,null,null,null,"<tr><td><strong> </strong></td><td></td><td><a href=\"\"></a></td><td></td></tr>","<tr><td><strong> </strong></td>","<td></td>","<td><a href=\"\"></a></td>",0,"<td></td></tr>",""]
["Berbice","Baltimore clipper Berbice","https://shipsofscale.com/sosforums/threads/baltimore-clipper-berbice.3242/","https://shipsofscale.com/sosforums/threads/hms-enterprize-1782-shipyard-1-72.1718/page-3","Потапычъ",null,"<tr><td><strong>Berbice</strong></td><td>Потапычъ</td><td><a href=\"https://shipsofscale.com/sosforums/threads/baltimore-clipper-berbice.3242/\">Baltimore clipper Berbice</a></td><td></td></tr>","<tr><td><strong>Berbice</strong></td>","<td>Потапычъ</td>","<td><a href=\"https://shipsofscale.com/sosforums/threads/baltimore-clipper-berbice.3242/\">Baltimore clipper Berbice</a></td>",0,"<td></td></tr>",""]
[" ",null,null,null,null,null,"<tr><td><strong> </strong></td><td></td><td><a href=\"\"></a></td><td></td></tr>","<tr><td><strong> </strong></td>","<td></td>","<td><a href=\"\"></a></td>",0,"<td></td></tr>",""]
["Bismarck","1/200 Gpm Bismark with laser cut frames","https://shipsofscale.com/sosforums/threads/1-200-gpm-bismark-with-laser-cut-frames.6446/","https://shipsofscale.com/sosforums/threads/postiljon-a-dutch-frigate-1661-1678.15220/page-3","Peterairfix",null,"<tr><td><strong>Bismarck</strong></td><td>Peterairfix</td><td><a href=\"https://shipsofscale.com/sosforums/threads/1-200-gpm-bismark-with-laser-cut-frames.6446/\">1/200 Gpm Bismark with laser cut frames</a></td><td></td></tr>","<tr><td><strong>Bismarck</strong></td>","<td>Peterairfix</td>","<td><a href=\"https://shipsofscale.com/sosforums/threads/1-200-gpm-bismark-with-laser-cut-frames.6446/\">1/200 Gpm Bismark with laser cut frames</a></td>",0,"<td></td></tr>",""]
[" ","Bismarck 1:200 GPM 22'2011 Nr.182","https://shipsofscale.com/sosforums/threads/bismarck-1-200-gpm-222011-nr-182.4028/","https://shipsofscale.com/sosforums/threads/hms-enterprize-1782-shipyard-1-72.1718/page-3","SAIL AND SAIL",null,"<tr><td><strong> </strong></td><td>SAIL AND SAIL</td><td><a href=\"https://shipsofscale.com/sosforums/threads/bismarck-1-200-gpm-222011-nr-182.4028/\">Bismarck 1:200 GPM 22'2011 Nr.182</a></td><td></td></tr>","<tr><td><strong> </strong></td>","<td>SAIL AND SAIL</td>","<td><a href=\"https://shipsofscale.com/sosforums/threads/bismarck-1-200-gpm-222011-nr-182.4028/\">Bismarck 1:200 GPM 22'2011 Nr.182</a></td>",0,"<td></td></tr>",""]
[" ","GPM 1\\200 Bismarck card kit","https://shipsofscale.com/sosforums/threads/gpm-1-200-bismarck-card-kit.3039/","https://shipsofscale.com/sosforums/threads/gpm-1-200-bismarck-card-kit.3039/page-2","Peterairfix",2,"<tr><td><strong> </strong></td><td>Peterairfix</td><td><a href=\"https://shipsofscale.com/sosforums/threads/gpm-1-200-bismarck-card-kit.3039/\">GPM 1\\200 Bismarck card kit</a></td><td><a href=\"https://shipsofscale.com/sosforums/threads/gpm-1-200-bismarck-card-kit.3039/page-2\">Page 2</a></td></tr>","<tr><td><strong> </strong></td>","<td>Peterairfix</td>","<td><a href=\"https://shipsofscale.com/sosforums/threads/gpm-1-200-bismarck-card-kit.3039/\">GPM 1\\200 Bismarck card kit</a></td>",2,"<td><a href=\"https://shipsofscale.com/sosforums/threads/gpm-1-200-bismarck-card-kit.3039/page-2\">Page 2</a></td></tr>",""]
[" ",null,null,null,null,null,"<tr><td><strong> </strong></td><td></td><td><a href=\"\"></a></td><td></td></tr>","<tr><td><strong> </strong></td>","<td></td>","<td><a href=\"\"></a></td>",0,"<td></td></tr>",""]
["Black Pearl","Paper model ship Pirates of the Caribbean Black Pearl","https://shipsofscale.com/sosforums/threads/paper-model-ship-pirates-of-the-caribbean-black-pearl.12033/","https://shipsofscale.com/sosforums/threads/hms-victory-1-96-based-on-shipyard.2411/page-4","NarcAngel",null,"<tr><td><strong>Black Pearl</strong></td><td>NarcAngel</td><td><a href=\"https://shipsofscale.com/sosforums/threads/paper-model-ship-pirates-of-the-caribbean-black-pearl.12033/\">Paper model ship Pirates of the Caribbean Black Pearl</a></td><td></td></tr>","<tr><td><strong>Black Pearl</strong></td>","<td>NarcAngel</td>","<td><a href=\"https://shipsofscale.com/sosforums/threads/paper-model-ship-pirates-of-the-caribbean-black-pearl.12033/\">Paper model ship Pirates of the Caribbean Black Pearl</a></td>",0,"<td></td></tr>",""]
[" ","The Black Pearl from Card and mixed media. My very first build.","https://shipsofscale.com/sosforums/threads/the-black-pearl-from-card-and-mixed-media-my-very-first-build.11791/","https://shipsofscale.com/sosforums/threads/hms-victory-1-96-by-shipyard.10509/page-2","MsL",null,"<tr><td><strong> </strong></td><td>MsL</td><td><a href=\"https://shipsofscale.com/sosforums/threads/the-black-pearl-from-card-and-mixed-media-my-very-first-build.11791/\">The Black Pearl from Card and mixed media. My very first build.</a></td><td></td></tr>","<tr><td><strong> </strong></td>","<td>MsL</td>","<td><a href=\"https://shipsofscale.com/sosforums/threads/the-black-pearl-from-card-and-mixed-media-my-very-first-build.11791/\">The Black Pearl from Card and mixed media. My very first build.</a></td>",0,"<td></td></tr>",""]
[" ",null,null,null,null,null,"<tr><td><strong> </strong></td><td></td><td><a href=\"\"></a></td><td></td></tr>","<tr><td><strong> </strong></td>","<td></td>","<td><a href=\"\"></a></td>",0,"<td></td></tr>",""]
["Boeing 777","Amazing model builder","https://shipsofscale.com/sosforums/threads/amazing-model-builder.13158/","https://shipsofscale.com/sosforums/threads/hms-victory-1-96-based-on-shipyard.2411/page-4","AER3393",null,"<tr><td><strong>Boeing 777</strong></td><td>AER3393</td><td><a href=\"https://shipsofscale.com/sosforums/threads/amazing-model-builder.13158/\">Amazing model builder</a></td><td></td></tr>","<tr><td><strong>Boeing 777</strong></td>","<td>AER3393</td>","<td><a href=\"https://shipsofscale.com/sosforums/threads/amazing-model-builder.13158/\">Amazing model builder</a></td>",0,"<td></td></tr>",""]
[" ",null,null,null,null,null,"<tr><td><strong> </strong></td><td></td><td><a href=\"\"></a></td><td></td></tr>","<tr><td><strong> </strong></td>","<td></td>","<td><a href=\"\"></a></td>",0,"<td></td></tr>",""]
["Borodino","Borodino - 1: 200 scale from PAPER HOUSE - by Roland Vlahovic","https://shipsofscale.com/sosforums/threads/borodino-1-200-scale-from-paper-house-by-roland-vlahovic.2660/","https://shipsofscale.com/sosforums/threads/hms-enterprize-1782-shipyard-1-72.1718/page-3","Roly",null,"<tr><td><strong>Borodino</strong></td><td>Roly</td><td><a href=\"https://shipsofscale.com/sosforums/threads/borodino-1-200-scale-from-paper-house-by-roland-vlahovic.2660/\">Borodino - 1: 200 scale from PAPER HOUSE - by Roland Vlahovic</a></td><td></td></tr>","<tr><td><strong>Borodino</strong></td>","<td>Roly</td>","<td><a href=\"https://shipsofscale.com/sosforums/threads/borodino-1-200-scale-from-paper-house-by-roland-vlahovic.2660/\">Borodino - 1: 200 scale from PAPER HOUSE - by Roland Vlahovic</a></td>",0,"<td></td></tr>",""]
[" ",null,null,null,null,null,"<tr><td><strong> </strong></td><td></td><td><a href=\"\"></a></td><td></td></tr>","<tr><td><strong> </strong></td>","<td></td>","<td><a href=\"\"></a></td>",0,"<td></td></tr>",""]
[" ",null,null,null,null,null,"</tbody></table><hr /><p><a href=\"#TOP\">Back to Top</a></p><div style=\"text-align: left;\"><hr /><a name=\"C\"></a><strong>C</strong></u></p></div><table width=\"100%\" border=\"0\"><tbody><tr><td width=\"20%\"><span style=\"text-decoration: underline;\"><strong>Ship</strong></span></td><td width=\"12%\"><span style=\"text-decoration: underline;\"><strong>By</strong></span></td><td width=\"62%\"><span style=\"text-decoration: underline;\"><strong>Topic</strong></span></td><td width=\"6%\"><span style=\"text-decoration: underline;\"><strong>Latest</strong></span></td></u></tr>",null,null,null,null,null,""]
["Cairo","Orel USS Cairo","https://shipsofscale.com/sosforums/threads/orel-uss-cairo.15371/","https://shipsofscale.com/sosforums/threads/de-zeven-provincien-1665-1-100-fa-seahorse-tomasz-weremko.14220/page-2","romfolmar",null,"<tr><td><strong>Cairo</strong></td><td>romfolmar</td><td><a href=\"https://shipsofscale.com/sosforums/threads/orel-uss-cairo.15371/\">Orel USS Cairo</a></td><td></td></tr>","<tr><td><strong>Cairo</strong></td>","<td>romfolmar</td>","<td><a href=\"https://shipsofscale.com/sosforums/threads/orel-uss-cairo.15371/\">Orel USS Cairo</a></td>",0,"<td></td></tr>",""]
[" ",null,null,null,null,null,"<tr><td><strong> </strong></td><td></td><td><a href=\"\"></a></td><td></td></tr>","<tr><td><strong> </strong></td>","<td></td>","<td><a href=\"\"></a></td>",0,"<td></td></tr>",""]
["Carpathia","RMS Carpathia 1:600 paper model build","https://shipsofscale.com/sosforums/threads/rms-carpathia-1-600-paper-model-build.16921/","https://shipsofscale.com/sosforums/threads/shipyard-1-96-santa-leocadia-paper-model-build.15290/page-3","someCO_OLguy",null,"<tr><td><strong>Carpathia</strong></td><td>someCO_OLguy</td><td><a href=\"https://shipsofscale.com/sosforums/threads/rms-carpathia-1-600-paper-model-build.16921/\">RMS Carpathia 1:600 paper model build</a></td><td></td></tr>","<tr><td><strong>Carpathia</strong></td>","<td>someCO_OLguy</td>","<td><a href=\"https://shipsofscale.com/sosforums/threads/rms-carpathia-1-600-paper-model-build.16921/\">RMS Carpathia 1:600 paper model build</a></td>",0,"<td></td></tr>",""]
[" ",null,null,null,null,null,"<tr><td><strong> </strong></td><td></td><td><a href=\"\"></a></td><td></td></tr>","<tr><td><strong> </strong></td>","<td></td>","<td><a href=\"\"></a></td>",0,"<td></td></tr>",""]
["Celtic Voyager","Celtic Voyager - Paper Shipwright - 1:250 - CARD","https://shipsofscale.com/sosforums/threads/celtic-voyager-paper-shipwright-1-250-card.14359/","https://shipsofscale.com/sosforums/threads/the-dutch-yacht-18th-century-completed-build.5760/page-2","johngr",null,"<tr><td><strong>Celtic Voyager</strong></td><td>johngr</td><td><a href=\"https://shipsofscale.com/sosforums/threads/celtic-voyager-paper-shipwright-1-250-card.14359/\">Celtic Voyager - Paper Shipwright - 1:250 - CARD</a></td><td></td></tr>","<tr><td><strong>Celtic Voyager</strong></td>","<td>johngr</td>","<td><a href=\"https://shipsofscale.com/sosforums/threads/celtic-voyager-paper-shipwright-1-250-card.14359/\">Celtic Voyager - Paper Shipwright - 1:250 - CARD</a></td>",0,"<td></td></tr>",""]
[" ",null,null,null,null,null,"<tr><td><strong> </strong></td><td></td><td><a href=\"\"></a></td><td></td></tr>","<tr><td><strong> </strong></td>","<td></td>","<td><a href=\"\"></a></td>",0,"<td></td></tr>",""]
["Columbus Ships","A whole fleet is created - the Columbus ships from 1492. Shipyard company, 1:96","https://shipsofscale.com/sosforums/threads/a-whole-fleet-is-created-the-columbus-ships-from-1492-shipyard-company-1-96.9640/","https://shipsofscale.com/sosforums/threads/de-zeven-provincien-1-100-scratch-seahorse-new-design-completed-build.4892/page-4","Bonden",null,"<tr><td><strong>Columbus Ships</strong></td><td>Bonden</td><td><a href=\"https://shipsofscale.com/sosforums/threads/a-whole-fleet-is-created-the-columbus-ships-from-1492-shipyard-company-1-96.9640/\">A whole fleet is created - the Columbus ships from 1492. Shipyard company, 1:96</a></td><td></td></tr>","<tr><td><strong>Columbus Ships</strong></td>","<td>Bonden</td>","<td><a href=\"https://shipsofscale.com/sosforums/threads/a-whole-fleet-is-created-the-columbus-ships-from-1492-shipyard-company-1-96.9640/\">A whole fleet is created - the Columbus ships from 1492. Shipyard company, 1:96</a></td>",0,"<td></td></tr>",""]
[" ",null,null,null,null,null,"<tr><td><strong> </strong></td><td></td><td><a href=\"\"></a></td><td></td></tr>","<tr><td><strong> </strong></td>","<td></td>","<td><a href=\"\"></a></td>",0,"<td></td></tr>",""]
[" ",null,null,null,null,null,"</tbody></table><hr /><p><a href=\"#TOP\">Back to Top</a></p><div style=\"text-align: left;\"><hr /><a name=\"D\"></a><strong>D</strong></u></p></div><table width=\"100%\" border=\"0\"><tbody><tr><td width=\"20%\"><span style=\"text-decoration: underline;\"><strong>Ship</strong></span></td><td width=\"12%\"><span style=\"text-decoration: underline;\"><strong>By</strong></span></td><td width=\"62%\"><span style=\"text-decoration: underline;\"><strong>Topic</strong></span></td><td width=\"6%\"><span style=\"text-decoration: underline;\"><strong>Latest</strong></span></td></u></tr>",null,null,null,null,null,""]
["De Zeven Provincien","\"De Zeven Provincien\" 1:100 (scratch) - Seahorse New Design [COMPLETED BUILD]","https://shipsofscale.com/sosforums/threads/de-zeven-provincien-1-100-scratch-seahorse-new-design-completed-build.4892/","https://shipsofscale.com/sosforums/threads/de-zeven-provincien-1-100-scratch-seahorse-new-design-completed-build.4892/page-4","0Seahorse",4,"<tr><td><strong>De Zeven Provincien</strong></td><td>0Seahorse</td><td><a href=\"https://shipsofscale.com/sosforums/threads/de-zeven-provincien-1-100-scratch-seahorse-new-design-completed-build.4892/\">\"De Zeven Provincien\" 1:100 (scratch) - Seahorse New Design [COMPLETED BUILD]</a></td><td><a href=\"https://shipsofscale.com/sosforums/threads/de-zeven-provincien-1-100-scratch-seahorse-new-design-completed-build.4892/page-4\">Page 4</a></td></tr>","<tr><td><strong>De Zeven Provincien</strong></td>","<td>0Seahorse</td>","<td><a href=\"https://shipsofscale.com/sosforums/threads/de-zeven-provincien-1-100-scratch-seahorse-new-design-completed-build.4892/\">\"De Zeven Provincien\" 1:100 (scratch) - Seahorse New Design [COMPLETED BUILD]</a></td>",4,"<td><a href=\"https://shipsofscale.com/sosforums/threads/de-zeven-provincien-1-100-scratch-seahorse-new-design-completed-build.4892/page-4\">Page 4</a></td></tr>",""]
[" ",null,null,null,null,null,"<tr><td><strong> </strong></td><td></td><td><a href=\"\"></a></td><td></td></tr>","<tr><td><strong> </strong></td>","<td></td>","<td><a href=\"\"></a></td>",0,"<td></td></tr>",""]
["De Zeven Provinciën","De Zeven Provincien\" 1:100 (scratch)","https://shipsofscale.com/sosforums/threads/de-zeven-provincien-1-100-scratch.4892/","https://shipsofscale.com/sosforums/threads/de-zeven-provincien-1-100-scratch.4892/page-3","0Seahorse",3,"<tr><td><strong>De Zeven Provinciën</strong></td><td>0Seahorse</td><td><a href=\"https://shipsofscale.com/sosforums/threads/de-zeven-provincien-1-100-scratch.4892/\">De Zeven Provincien\" 1:100 (scratch)</a></td><td><a href=\"https://shipsofscale.com/sosforums/threads/de-zeven-provincien-1-100-scratch.4892/page-3\">Page 3</a></td></tr>","<tr><td><strong>De Zeven Provinciën</strong></td>","<td>0Seahorse</td>","<td><a href=\"https://shipsofscale.com/sosforums/threads/de-zeven-provincien-1-100-scratch.4892/\">De Zeven Provincien\" 1:100 (scratch)</a></td>",3,"<td><a href=\"https://shipsofscale.com/sosforums/threads/de-zeven-provincien-1-100-scratch.4892/page-3\">Page 3</a></td></tr>",""]
[" ",null,null,null,null,null,"<tr><td><strong> </strong></td><td></td><td><a href=\"\"></a></td><td></td></tr>","<tr><td><strong> </strong></td>","<td></td>","<td><a href=\"\"></a></td>",0,"<td></td></tr>",""]
["Diorama","New Papermodels","https://shipsofscale.com/sosforums/threads/new-papermodels.6948/","https://shipsofscale.com/sosforums/threads/a-143-feet-long-dutch-warship-from-1681-cardstock-completed-build.4634/page-5","Wilhelm Thümler",null,"<tr><td><strong>Diorama</strong></td><td>Wilhelm Thümler</td><td><a href=\"https://shipsofscale.com/sosforums/threads/new-papermodels.6948/\">New Papermodels</a></td><td></td></tr>","<tr><td><strong>Diorama</strong></td>","<td>Wilhelm Thümler</td>","<td><a href=\"https://shipsofscale.com/sosforums/threads/new-papermodels.6948/\">New Papermodels</a></td>",0,"<td></td></tr>",""]
[" ",null,null,null,null,null,"<tr><td><strong> </strong></td><td></td><td><a href=\"\"></a></td><td></td></tr>","<tr><td><strong> </strong></td>","<td></td>","<td><a href=\"\"></a></td>",0,"<td></td></tr>",""]
["Dockyard Crane","Stationary Dockyard Crane, XVIII Century. Shipyard Card Model 1:72.","https://shipsofscale.com/sosforums/threads/stationary-dockyard-crane-xviii-century-shipyard-card-model-1-72.8169/","https://shipsofscale.com/sosforums/threads/zeekoe-a-dutch-74ft-katt-in-scratch-1-66.8358/page-2","Oldpaperone",null,"<tr><td><strong>Dockyard Crane</strong></td><td>Oldpaperone</td><td><a href=\"https://shipsofscale.com/sosforums/threads/stationary-dockyard-crane-xviii-century-shipyard-card-model-1-72.8169/\">Stationary Dockyard Crane, XVIII Century. Shipyard Card Model 1:72.</a></td><td></td></tr>","<tr><td><strong>Dockyard Crane</strong></td>","<td>Oldpaperone</td>","<td><a href=\"https://shipsofscale.com/sosforums/threads/stationary-dockyard-crane-xviii-century-shipyard-card-model-1-72.8169/\">Stationary Dockyard Crane, XVIII Century. Shipyard Card Model 1:72.</a></td>",0,"<td></td></tr>",""]
[" ",null,null,null,null,null,"<tr><td><strong> </strong></td><td></td><td><a href=\"\"></a></td><td></td></tr>","<tr><td><strong> </strong></td>","<td></td>","<td><a href=\"\"></a></td>",0,"<td></td></tr>",""]
["Dutch Warship","A 143 feet long Dutch warship from 1681. Cardstock [COMPLETED BUILD]","https://shipsofscale.com/sosforums/threads/a-143-feet-long-dutch-warship-from-1681-cardstock-completed-build.4634/","https://shipsofscale.com/sosforums/threads/a-143-feet-long-dutch-warship-from-1681-cardstock-completed-build.4634/page-5","Ab Hoving",5,"<tr><td><strong>Dutch Warship</strong></td><td>Ab Hoving</td><td><a href=\"https://shipsofscale.com/sosforums/threads/a-143-feet-long-dutch-warship-from-1681-cardstock-completed-build.4634/\">A 143 feet long Dutch warship from 1681. Cardstock [COMPLETED BUILD]</a></td><td><a href=\"https://shipsofscale.com/sosforums/threads/a-143-feet-long-dutch-warship-from-1681-cardstock-completed-build.4634/page-5\">Page 5</a></td></tr>","<tr><td><strong>Dutch Warship</strong></td>","<td>Ab Hoving</td>","<td><a href=\"https://shipsofscale.com/sosforums/threads/a-143-feet-long-dutch-warship-from-1681-cardstock-completed-build.4634/\">A 143 feet long Dutch warship from 1681. Cardstock [COMPLETED BUILD]</a></td>",5,"<td><a href=\"https://shipsofscale.com/sosforums/threads/a-143-feet-long-dutch-warship-from-1681-cardstock-completed-build.4634/page-5\">Page 5</a></td></tr>",""]
[" ","A 160 foot Dutch Eastindiaman (VOC) 1699 [COMPLETED BUILD]","https://shipsofscale.com/sosforums/threads/a-160-foot-dutch-eastindiaman-voc-1699-completed-build.9233/","https://shipsofscale.com/sosforums/threads/a-160-foot-dutch-eastindiaman-voc-1699-completed-build.9233/page-2","Ab Hoving",2,"<tr><td><strong> </strong></td><td>Ab Hoving</td><td><a href=\"https://shipsofscale.com/sosforums/threads/a-160-foot-dutch-eastindiaman-voc-1699-completed-build.9233/\">A 160 foot Dutch Eastindiaman (VOC) 1699 [COMPLETED BUILD]</a></td><td><a href=\"https://shipsofscale.com/sosforums/threads/a-160-foot-dutch-eastindiaman-voc-1699-completed-build.9233/page-2\">Page 2</a></td></tr>","<tr><td><strong> </strong></td>","<td>Ab Hoving</td>","<td><a href=\"https://shipsofscale.com/sosforums/threads/a-160-foot-dutch-eastindiaman-voc-1699-completed-build.9233/\">A 160 foot Dutch Eastindiaman (VOC) 1699 [COMPLETED BUILD]</a></td>",2,"<td><a href=\"https://shipsofscale.com/sosforums/threads/a-160-foot-dutch-eastindiaman-voc-1699-completed-build.9233/page-2\">Page 2</a></td></tr>",""]
[" ",null,null,null,null,null,"<tr><td><strong> </strong></td><td></td><td><a href=\"\"></a></td><td></td></tr>","<tr><td><strong> </strong></td>","<td></td>","<td><a href=\"\"></a></td>",0,"<td></td></tr>",""]
[" ",null,null,null,null,null,"</tbody></table><hr /><p><a href=\"#TOP\">Back to Top</a></p><div style=\"text-align: left;\"><hr /><a name=\"E\"></a><strong>E</strong></u></p></div><table width=\"100%\" border=\"0\"><tbody><tr><td width=\"20%\"><span style=\"text-decoration: underline;\"><strong>Ship</strong></span></td><td width=\"12%\"><span style=\"text-decoration: underline;\"><strong>By</strong></span></td><td width=\"62%\"><span style=\"text-decoration: underline;\"><strong>Topic</strong></span></td><td width=\"6%\"><span style=\"text-decoration: underline;\"><strong>Latest</strong></span></td></u></tr>",null,null,null,null,null,""]
["Edinburgh","HMS EDINBURGH - scratch model - scale 1:400 [COMPLETED BUILD]","https://shipsofscale.com/sosforums/threads/hms-edinburgh-scratch-model-scale-1-400-completed-build.14721/","https://shipsofscale.com/sosforums/threads/hms-mercury-1-72-shipyard-completed-build.2642/page-16","SZKUTNIK",null,"<tr><td><strong>Edinburgh</strong></td><td>SZKUTNIK</td><td><a href=\"https://shipsofscale.com/sosforums/threads/hms-edinburgh-scratch-model-scale-1-400-completed-build.14721/\">HMS EDINBURGH - scratch model - scale 1:400 [COMPLETED BUILD]</a></td><td></td></tr>","<tr><td><strong>Edinburgh</strong></td>","<td>SZKUTNIK</td>","<td><a href=\"https://shipsofscale.com/sosforums/threads/hms-edinburgh-scratch-model-scale-1-400-completed-build.14721/\">HMS EDINBURGH - scratch model - scale 1:400 [COMPLETED BUILD]</a></td>",0,"<td></td></tr>",""]
[" ",null,null,null,null,null,"<tr><td><strong> </strong></td><td></td><td><a href=\"\"></a></td><td></td></tr>","<tr><td><strong> </strong></td>","<td></td>","<td><a href=\"\"></a></td>",0,"<td></td></tr>",""]
["Empress of Ireland","RMS Empress of Ireland, my templates and build","https://shipsofscale.com/sosforums/threads/rms-empress-of-ireland-my-templates-and-build.16942/","https://shipsofscale.com/sosforums/threads/shipyard-1-96-santa-leocadia-paper-model-build.15290/page-3","someCO_OLguy",null,"<tr><td><strong>Empress of Ireland</strong></td><td>someCO_OLguy</td><td><a href=\"https://shipsofscale.com/sosforums/threads/rms-empress-of-ireland-my-templates-and-build.16942/\">RMS Empress of Ireland, my templates and build</a></td><td></td></tr>","<tr><td><strong>Empress of Ireland</strong></td>","<td>someCO_OLguy</td>","<td><a href=\"https://shipsofscale.com/sosforums/threads/rms-empress-of-ireland-my-templates-and-build.16942/\">RMS Empress of Ireland, my templates and build</a></td>",0,"<td></td></tr>",""]
[" ",null,null,null,null,null,"<tr><td><strong> </strong></td><td></td><td><a href=\"\"></a></td><td></td></tr>","<tr><td><strong> </strong></td>","<td></td>","<td><a href=\"\"></a></td>",0,"<td></td></tr>",""]
["Enterprise","HMS Enterprize 1/96 card model from Shipyard","https://shipsofscale.com/sosforums/threads/hms-enterprize-1-96-card-model-from-shipyard.4495/","https://shipsofscale.com/sosforums/threads/hms-enterprize-1-96-card-model-from-shipyard.4495/page-3","Pgtaylorart",3,"<tr><td><strong>Enterprise</strong></td><td>Pgtaylorart</td><td><a href=\"https://shipsofscale.com/sosforums/threads/hms-enterprize-1-96-card-model-from-shipyard.4495/\">HMS Enterprize 1/96 card model from Shipyard</a></td><td><a href=\"https://shipsofscale.com/sosforums/threads/hms-enterprize-1-96-card-model-from-shipyard.4495/page-3\">Page 3</a></td></tr>","<tr><td><strong>Enterprise</strong></td>","<td>Pgtaylorart</td>","<td><a href=\"https://shipsofscale.com/sosforums/threads/hms-enterprize-1-96-card-model-from-shipyard.4495/\">HMS Enterprize 1/96 card model from Shipyard</a></td>",3,"<td><a href=\"https://shipsofscale.com/sosforums/threads/hms-enterprize-1-96-card-model-from-shipyard.4495/page-3\">Page 3</a></td></tr>",""]
[" ","HMS Enterprize 1782 Shipyard 1:72","https://shipsofscale.com/sosforums/threads/hms-enterprize-1782-shipyard-1-72.1718/","https://shipsofscale.com/sosforums/threads/hms-enterprize-1782-shipyard-1-72.1718/page-3","Jos",3,"<tr><td><strong> </strong></td><td>Jos</td><td><a href=\"https://shipsofscale.com/sosforums/threads/hms-enterprize-1782-shipyard-1-72.1718/\">HMS Enterprize 1782 Shipyard 1:72</a></td><td><a href=\"https://shipsofscale.com/sosforums/threads/hms-enterprize-1782-shipyard-1-72.1718/page-3\">Page 3</a></td></tr>","<tr><td><strong> </strong></td>","<td>Jos</td>","<td><a href=\"https://shipsofscale.com/sosforums/threads/hms-enterprize-1782-shipyard-1-72.1718/\">HMS Enterprize 1782 Shipyard 1:72</a></td>",3,"<td><a href=\"https://shipsofscale.com/sosforums/threads/hms-enterprize-1782-shipyard-1-72.1718/page-3\">Page 3</a></td></tr>",""]
[" ",null,null,null,null,null,{"$f":"H91&I91&J91&L91","v":"<tr><td><strong> </strong></td><td></td><td><a href=\"\"></a></td><td></td></tr>"},{"$f":"$L$1&$N$1&$J$1&A91&$J$2&$N$2","v":"<tr><td><strong> </strong></td>"},{"$f":"$N$1&E91&$N$2","v":"<td></td>"},{"$f":"$N$1&$O$1&C91&$P$1&B91&$O$2&$N$2","v":"<td><a href=\"\"></a></td>"},{"$f":"F91","v":0},{"$f":"$N$1&IF(K91>0,$O$1&D91&$P$1&\"Page \"&K91&$O$2,\"\")&$N$2&$L$2","v":"<td></td></tr>"},""]
[" ",null,null,null,null,null,"</tbody></table><hr /><p><a href=\"#TOP\">Back to Top</a></p><div style=\"text-align: left;\"><hr /><a name=\"F\"></a><strong>F</strong></u></p></div><table width=\"100%\" border=\"0\"><tbody><tr><td width=\"20%\"><span style=\"text-decoration: underline;\"><strong>Ship</strong></span></td><td width=\"12%\"><span style=\"text-decoration: underline;\"><strong>By</strong></span></td><td width=\"62%\"><span style=\"text-decoration: underline;\"><strong>Topic</strong></span></td><td width=\"6%\"><span style=\"text-decoration: underline;\"><strong>Latest</strong></span></td></u></tr>",null,null,null,null,null,""]
["Fiji","HMS FIJI - scratch model - scale 1:400 [COMPLETED BUILD]","https://shipsofscale.com/sosforums/threads/hms-fiji-scratch-model-scale-1-400-completed-build.14722/","https://shipsofscale.com/sosforums/threads/a-143-feet-long-dutch-warship-from-1681-cardstock-completed-build.4634/page-5","SZKUTNIK",null,"<tr><td><strong>Fiji</strong></td><td>SZKUTNIK</td><td><a href=\"https://shipsofscale.com/sosforums/threads/hms-fiji-scratch-model-scale-1-400-completed-build.14722/\">HMS FIJI - scratch model - scale 1:400 [COMPLETED BUILD]</a></td><td></td></tr>","<tr><td><strong>Fiji</strong></td>","<td>SZKUTNIK</td>","<td><a href=\"https://shipsofscale.com/sosforums/threads/hms-fiji-scratch-model-scale-1-400-completed-build.14722/\">HMS FIJI - scratch model - scale 1:400 [COMPLETED BUILD]</a></td>",0,"<td></td></tr>",""]
[" ",null,null,null,null,null,"<tr><td><strong> </strong></td><td></td><td><a href=\"\"></a></td><td></td></tr>","<tr><td><strong> </strong></td>","<td></td>","<td><a href=\"\"></a></td>",0,"<td></td></tr>",""]
["Fishing Boat","Experiment Oberfläche für Karton Schiffe Orient","https://shipsofscale.com/sosforums/threads/experiment-oberfl%C3%A4che-f%C3%BCr-karton-schiffe-orient.15206/","https://shipsofscale.com/sosforums/threads/a-143-feet-long-dutch-warship-from-1681-cardstock-completed-build.4634/page-5","Käptn Ahab",null,"<tr><td><strong>Fishing Boat</strong></td><td>Käptn Ahab</td><td><a href=\"https://shipsofscale.com/sosforums/threads/experiment-oberfl%C3%A4che-f%C3%BCr-karton-schiffe-orient.15206/\">Experiment Oberfläche für Karton Schiffe Orient</a></td><td></td></tr>","<tr><td><strong>Fishing Boat</strong></td>","<td>Käptn Ahab</td>","<td><a href=\"https://shipsofscale.com/sosforums/threads/experiment-oberfl%C3%A4che-f%C3%BCr-karton-schiffe-orient.15206/\">Experiment Oberfläche für Karton Schiffe Orient</a></td>",0,"<td></td></tr>",""]
[" ","IMMH Fishing Cutter","https://shipsofscale.com/sosforums/threads/immh-fishing-cutter.2424/","https://shipsofscale.com/sosforums/threads/hms-enterprize-1782-shipyard-1-72.1718/page-3","Aginvicta",null,"<tr><td><strong> </strong></td><td>Aginvicta</td><td><a href=\"https://shipsofscale.com/sosforums/threads/immh-fishing-cutter.2424/\">IMMH Fishing Cutter</a></td><td></td></tr>","<tr><td><strong> </strong></td>","<td>Aginvicta</td>","<td><a href=\"https://shipsofscale.com/sosforums/threads/immh-fishing-cutter.2424/\">IMMH Fishing Cutter</a></td>",0,"<td></td></tr>",""]
[" ",null,null,null,null,null,"<tr><td><strong> </strong></td><td></td><td><a href=\"\"></a></td><td></td></tr>","<tr><td><strong> </strong></td>","<td></td>","<td><a href=\"\"></a></td>",0,"<td></td></tr>",""]
["Forell class","The FORELL Quartett in four Scales","https://shipsofscale.com/sosforums/threads/the-forell-quartett-in-four-scales.12716/","https://shipsofscale.com/sosforums/threads/the-forell-quartett-in-four-scales.12716/page-2","Iterum",2,"<tr><td><strong>Forell class</strong></td><td>Iterum</td><td><a href=\"https://shipsofscale.com/sosforums/threads/the-forell-quartett-in-four-scales.12716/\">The FORELL Quartett in four Scales</a></td><td><a href=\"https://shipsofscale.com/sosforums/threads/the-forell-quartett-in-four-scales.12716/page-2\">Page 2</a></td></tr>","<tr><td><strong>Forell class</strong></td>","<td>Iterum</td>","<td><a href=\"https://shipsofscale.com/sosforums/threads/the-forell-quartett-in-four-scales.12716/\">The FORELL Quartett in four Scales</a></td>",2,"<td><a href=\"https://shipsofscale.com/sosforums/threads/the-forell-quartett-in-four-scales.12716/page-2\">Page 2</a></td></tr>",""]
[" ",null,null,null,null,null,"<tr><td><strong> </strong></td><td></td><td><a href=\"\"></a></td><td></td></tr>","<tr><td><strong> </strong></td>","<td></td>","<td><a href=\"\"></a></td>",0,"<td></td></tr>",""]
["Fortune","Boat \"Fortune \".","https://shipsofscale.com/sosforums/threads/boat-fortune.3284/","https://shipsofscale.com/sosforums/threads/hms-mercury-1797-shipyard-1-72.1663/page-3","Потапычъ",null,"<tr><td><strong>Fortune</strong></td><td>Потапычъ</td><td><a href=\"https://shipsofscale.com/sosforums/threads/boat-fortune.3284/\">Boat \"Fortune \".</a></td><td></td></tr>","<tr><td><strong>Fortune</strong></td>","<td>Потапычъ</td>","<td><a href=\"https://shipsofscale.com/sosforums/threads/boat-fortune.3284/\">Boat \"Fortune \".</a></td>",0,"<td></td></tr>",""]
[" ",null,null,null,null,null,"<tr><td><strong> </strong></td><td></td><td><a href=\"\"></a></td><td></td></tr>","<tr><td><strong> </strong></td>","<td></td>","<td><a href=\"\"></a></td>",0,"<td></td></tr>",""]
["Fuso","IJN Fuso 1944 by wieslaw_ - Halinski - 1/200 - CARD - with 3D print","https://shipsofscale.com/sosforums/threads/ijn-fuso-1944-by-wieslaw_-halinski-1-200-card-with-3d-print.16707/","https://shipsofscale.com/sosforums/threads/ijn-fuso-1944-by-wieslaw_-halinski-1-200-card-with-3d-print.16707/page-2","wieslaw_",2,"<tr><td><strong>Fuso</strong></td><td>wieslaw_</td><td><a href=\"https://shipsofscale.com/sosforums/threads/ijn-fuso-1944-by-wieslaw_-halinski-1-200-card-with-3d-print.16707/\">IJN Fuso 1944 by wieslaw_ - Halinski - 1/200 - CARD - with 3D print</a></td><td><a href=\"https://shipsofscale.com/sosforums/threads/ijn-fuso-1944-by-wieslaw_-halinski-1-200-card-with-3d-print.16707/page-2\">Page 2</a></td></tr>","<tr><td><strong>Fuso</strong></td>","<td>wieslaw_</td>","<td><a href=\"https://shipsofscale.com/sosforums/threads/ijn-fuso-1944-by-wieslaw_-halinski-1-200-card-with-3d-print.16707/\">IJN Fuso 1944 by wieslaw_ - Halinski - 1/200 - CARD - with 3D print</a></td>",2,"<td><a href=\"https://shipsofscale.com/sosforums/threads/ijn-fuso-1944-by-wieslaw_-halinski-1-200-card-with-3d-print.16707/page-2\">Page 2</a></td></tr>",""]
[" ",null,null,null,null,null,"<tr><td><strong> </strong></td><td></td><td><a href=\"\"></a></td><td></td></tr>","<tr><td><strong> </strong></td>","<td></td>","<td><a href=\"\"></a></td>",0,"<td></td></tr>",""]
[" ",null,null,null,null,null,"</tbody></table><hr /><p><a href=\"#TOP\">Back to Top</a></p><div style=\"text-align: left;\"><hr /><a name=\"G\"></a><strong>G</strong></u></p></div><table width=\"100%\" border=\"0\"><tbody><tr><td width=\"20%\"><span style=\"text-decoration: underline;\"><strong>Ship</strong></span></td><td width=\"12%\"><span style=\"text-decoration: underline;\"><strong>By</strong></span></td><td width=\"62%\"><span style=\"text-decoration: underline;\"><strong>Topic</strong></span></td><td width=\"6%\"><span style=\"text-decoration: underline;\"><strong>Latest</strong></span></td></u></tr>",null,null,null,null,null,""]
["Gneisenau","Artillery training frigate F212 GNEISENAU ex HMS Oakley of the German Navy","https://shipsofscale.com/sosforums/threads/artillery-training-frigate-f212-gneisenau-ex-hms-oakley-of-the-german-navy.12934/","https://shipsofscale.com/sosforums/threads/hms-victory-1-96-based-on-shipyard.2411/page-4","kartonskipper",null,"<tr><td><strong>Gneisenau</strong></td><td>kartonskipper</td><td><a href=\"https://shipsofscale.com/sosforums/threads/artillery-training-frigate-f212-gneisenau-ex-hms-oakley-of-the-german-navy.12934/\">Artillery training frigate F212 GNEISENAU ex HMS Oakley of the German Navy</a></td><td></td></tr>","<tr><td><strong>Gneisenau</strong></td>","<td>kartonskipper</td>","<td><a href=\"https://shipsofscale.com/sosforums/threads/artillery-training-frigate-f212-gneisenau-ex-hms-oakley-of-the-german-navy.12934/\">Artillery training frigate F212 GNEISENAU ex HMS Oakley of the German Navy</a></td>",0,"<td></td></tr>",""]
[" ",null,null,null,null,null,"<tr><td><strong> </strong></td><td></td><td><a href=\"\"></a></td><td></td></tr>","<tr><td><strong> </strong></td>","<td></td>","<td><a href=\"\"></a></td>",0,"<td></td></tr>",""]
["Golden Hinde","“Golden Hind” from the plan shipyard warped with wood","https://shipsofscale.com/sosforums/threads/%E2%80%9Cgolden-hind%E2%80%9D-from-the-plan-shipyard-warped-with-wood.9595/","https://shipsofscale.com/sosforums/threads/de-zeven-provincien-1-100-scratch.4892/page-3","aqiqia",null,"<tr><td><strong>Golden Hinde</strong></td><td>aqiqia</td><td><a href=\"https://shipsofscale.com/sosforums/threads/%E2%80%9Cgolden-hind%E2%80%9D-from-the-plan-shipyard-warped-with-wood.9595/\">“Golden Hind” from the plan shipyard warped with wood</a></td><td></td></tr>","<tr><td><strong>Golden Hinde</strong></td>","<td>aqiqia</td>","<td><a href=\"https://shipsofscale.com/sosforums/threads/%E2%80%9Cgolden-hind%E2%80%9D-from-the-plan-shipyard-warped-with-wood.9595/\">“Golden Hind” from the plan shipyard warped with wood</a></td>",0,"<td></td></tr>",""]
[" ",null,null,null,null,null,"<tr><td><strong> </strong></td><td></td><td><a href=\"\"></a></td><td></td></tr>","<tr><td><strong> </strong></td>","<td></td>","<td><a href=\"\"></a></td>",0,"<td></td></tr>",""]
[" ",null,null,null,null,null,"</tbody></table><hr /><p><a href=\"#TOP\">Back to Top</a></p><div style=\"text-align: left;\"><hr /><a name=\"H\"></a><strong>H</strong></u></p></div><table width=\"100%\" border=\"0\"><tbody><tr><td width=\"20%\"><span style=\"text-decoration: underline;\"><strong>Ship</strong></span></td><td width=\"12%\"><span style=\"text-decoration: underline;\"><strong>By</strong></span></td><td width=\"62%\"><span style=\"text-decoration: underline;\"><strong>Topic</strong></span></td><td width=\"6%\"><span style=\"text-decoration: underline;\"><strong>Latest</strong></span></td></u></tr>",null,null,null,null,null,""]
["Hipper","F214 HIPPER - training frigate of the German Navy from the early days - after final refit?","https://shipsofscale.com/sosforums/threads/f214-hipper-training-frigate-of-the-german-navy-from-the-early-days-after-final-refit.13175/","https://shipsofscale.com/sosforums/threads/de-zeven-provincien-1-100-scratch-seahorse-new-design-completed-build.4892/page-4","kartonskipper",null,"<tr><td><strong>Hipper</strong></td><td>kartonskipper</td><td><a href=\"https://shipsofscale.com/sosforums/threads/f214-hipper-training-frigate-of-the-german-navy-from-the-early-days-after-final-refit.13175/\">F214 HIPPER - training frigate of the German Navy from the early days - after final refit?</a></td><td></td></tr>","<tr><td><strong>Hipper</strong></td>","<td>kartonskipper</td>","<td><a href=\"https://shipsofscale.com/sosforums/threads/f214-hipper-training-frigate-of-the-german-navy-from-the-early-days-after-final-refit.13175/\">F214 HIPPER - training frigate of the German Navy from the early days - after final refit?</a></td>",0,"<td></td></tr>",""]
[" ",null,null,null,null,null,"<tr><td><strong> </strong></td><td></td><td><a href=\"\"></a></td><td></td></tr>","<tr><td><strong> </strong></td>","<td></td>","<td><a href=\"\"></a></td>",0,"<td></td></tr>",""]
[" ",null,null,null,null,null,"</tbody></table><hr /><p><a href=\"#TOP\">Back to Top</a></p><div style=\"text-align: left;\"><hr /><a name=\"I\"></a><strong>I</strong></u></p></div><table width=\"100%\" border=\"0\"><tbody><tr><td width=\"20%\"><span style=\"text-decoration: underline;\"><strong>Ship</strong></span></td><td width=\"12%\"><span style=\"text-decoration: underline;\"><strong>By</strong></span></td><td width=\"62%\"><span style=\"text-decoration: underline;\"><strong>Topic</strong></span></td><td width=\"6%\"><span style=\"text-decoration: underline;\"><strong>Latest</strong></span></td></u></tr>",null,null,null,null,null,""]
["Isolda","Isolda 1:160","https://shipsofscale.com/sosforums/threads/isolda-1-160.10583/","https://shipsofscale.com/sosforums/threads/hms-alert-vs-le-coureur-shipyard-1-72.4597/page-2","rickb",null,"<tr><td><strong>Isolda</strong></td><td>rickb</td><td><a href=\"https://shipsofscale.com/sosforums/threads/isolda-1-160.10583/\">Isolda 1:160</a></td><td></td></tr>","<tr><td><strong>Isolda</strong></td>","<td>rickb</td>","<td><a href=\"https://shipsofscale.com/sosforums/threads/isolda-1-160.10583/\">Isolda 1:160</a></td>",0,"<td></td></tr>",""]
[" ",null,null,null,null,null,"<tr><td><strong> </strong></td><td></td><td><a href=\"\"></a></td><td></td></tr>","<tr><td><strong> </strong></td>","<td></td>","<td><a href=\"\"></a></td>",0,"<td></td></tr>",""]
[" ",null,null,null,null,null,"</tbody></table><hr /><p><a href=\"#TOP\">Back to Top</a></p><div style=\"text-align: left;\"><hr /><a name=\"J\"></a><strong>J</strong></u></p></div><table width=\"100%\" border=\"0\"><tbody><tr><td width=\"20%\"><span style=\"text-decoration: underline;\"><strong>Ship</strong></span></td><td width=\"12%\"><span style=\"text-decoration: underline;\"><strong>By</strong></span></td><td width=\"62%\"><span style=\"text-decoration: underline;\"><strong>Topic</strong></span></td><td width=\"6%\"><span style=\"text-decoration: underline;\"><strong>Latest</strong></span></td></u></tr>",null,null,null,null,null,""]
["Jacinthe","Schooner JACINTHE, Kgdm. of France, 1825 Scratch 1/64","https://shipsofscale.com/sosforums/threads/schooner-jacinthe-kgdm-of-france-1825-scratch-1-64.16060/","https://shipsofscale.com/sosforums/threads/schooner-jacinthe-kgdm-of-france-1825-scratch-1-64.16060/page-2","Iterum",2,"<tr><td><strong>Jacinthe</strong></td><td>Iterum</td><td><a href=\"https://shipsofscale.com/sosforums/threads/schooner-jacinthe-kgdm-of-france-1825-scratch-1-64.16060/\">Schooner JACINTHE, Kgdm. of France, 1825 Scratch 1/64</a></td><td><a href=\"https://shipsofscale.com/sosforums/threads/schooner-jacinthe-kgdm-of-france-1825-scratch-1-64.16060/page-2\">Page 2</a></td></tr>","<tr><td><strong>Jacinthe</strong></td>","<td>Iterum</td>","<td><a href=\"https://shipsofscale.com/sosforums/threads/schooner-jacinthe-kgdm-of-france-1825-scratch-1-64.16060/\">Schooner JACINTHE, Kgdm. of France, 1825 Scratch 1/64</a></td>",2,"<td><a href=\"https://shipsofscale.com/sosforums/threads/schooner-jacinthe-kgdm-of-france-1825-scratch-1-64.16060/page-2\">Page 2</a></td></tr>",""]
[" ",null,null,null,null,null,"<tr><td><strong> </strong></td><td></td><td><a href=\"\"></a></td><td></td></tr>","<tr><td><strong> </strong></td>","<td></td>","<td><a href=\"\"></a></td>",0,"<td></td></tr>",""]
[" ",null,null,null,null,null,"</tbody></table><hr /><p><a href=\"#TOP\">Back to Top</a></p><div style=\"text-align: left;\"><hr /><a name=\"L\"></a><strong>L</strong></u></p></div><table width=\"100%\" border=\"0\"><tbody><tr><td width=\"20%\"><span style=\"text-decoration: underline;\"><strong>Ship</strong></span></td><td width=\"12%\"><span style=\"text-decoration: underline;\"><strong>By</strong></span></td><td width=\"62%\"><span style=\"text-decoration: underline;\"><strong>Topic</strong></span></td><td width=\"6%\"><span style=\"text-decoration: underline;\"><strong>Latest</strong></span></td></u></tr>",null,null,null,null,null,""]
["La Belle Poule","LA BELLE-POULE in 1771","https://shipsofscale.com/sosforums/threads/la-belle-poule-in-1771.8184/","https://shipsofscale.com/sosforums/threads/russian-brig-olimp-1817-kit-of-the-company-shipworks-1-96.8397/page-2","Iterum",null,"<tr><td><strong>La Belle Poule</strong></td><td>Iterum</td><td><a href=\"https://shipsofscale.com/sosforums/threads/la-belle-poule-in-1771.8184/\">LA BELLE-POULE in 1771</a></td><td></td></tr>","<tr><td><strong>La Belle Poule</strong></td>","<td>Iterum</td>","<td><a href=\"https://shipsofscale.com/sosforums/threads/la-belle-poule-in-1771.8184/\">LA BELLE-POULE in 1771</a></td>",0,"<td></td></tr>",""]
[" ",null,null,null,null,null,"<tr><td><strong> </strong></td><td></td><td><a href=\"\"></a></td><td></td></tr>","<tr><td><strong> </strong></td>","<td></td>","<td><a href=\"\"></a></td>",0,"<td></td></tr>",""]
["Leopard","1:100 HMS LEOPARD to EXPERIMENT (Oriel)","https://shipsofscale.com/sosforums/threads/1-100-hms-leopard-to-experiment-oriel.8209/","https://shipsofscale.com/sosforums/threads/zeekoe-a-dutch-74ft-katt-in-scratch-1-66.8358/page-2","Iterum",null,"<tr><td><strong>Leopard</strong></td><td>Iterum</td><td><a href=\"https://shipsofscale.com/sosforums/threads/1-100-hms-leopard-to-experiment-oriel.8209/\">1:100 HMS LEOPARD to EXPERIMENT (Oriel)</a></td><td></td></tr>","<tr><td><strong>Leopard</strong></td>","<td>Iterum</td>","<td><a href=\"https://shipsofscale.com/sosforums/threads/1-100-hms-leopard-to-experiment-oriel.8209/\">1:100 HMS LEOPARD to EXPERIMENT (Oriel)</a></td>",0,"<td></td></tr>",""]
[" ",null,null,null,null,null,"<tr><td><strong> </strong></td><td></td><td><a href=\"\"></a></td><td></td></tr>","<tr><td><strong> </strong></td>","<td></td>","<td><a href=\"\"></a></td>",0,"<td></td></tr>",""]
["Leudo","Leudo vinaccere 1:72 scratch (test building)","https://shipsofscale.com/sosforums/threads/leudo-vinaccere-1-72-scratch-test-building.4157/","https://shipsofscale.com/sosforums/threads/leudo-vinaccere-1-72-scratch-test-building.4157/page-2","0Seahorse",2,"<tr><td><strong>Leudo</strong></td><td>0Seahorse</td><td><a href=\"https://shipsofscale.com/sosforums/threads/leudo-vinaccere-1-72-scratch-test-building.4157/\">Leudo vinaccere 1:72 scratch (test building)</a></td><td><a href=\"https://shipsofscale.com/sosforums/threads/leudo-vinaccere-1-72-scratch-test-building.4157/page-2\">Page 2</a></td></tr>","<tr><td><strong>Leudo</strong></td>","<td>0Seahorse</td>","<td><a href=\"https://shipsofscale.com/sosforums/threads/leudo-vinaccere-1-72-scratch-test-building.4157/\">Leudo vinaccere 1:72 scratch (test building)</a></td>",2,"<td><a href=\"https://shipsofscale.com/sosforums/threads/leudo-vinaccere-1-72-scratch-test-building.4157/page-2\">Page 2</a></td></tr>",""]
[" ","Seahorse LEUDO VINACCIERE 1/72","https://shipsofscale.com/sosforums/threads/seahorse-leudo-vinacciere-1-72.6765/","https://shipsofscale.com/sosforums/threads/rms-queen-mary-scale-1-1250.7381/page-2","Iterum",null,"<tr><td><strong> </strong></td><td>Iterum</td><td><a href=\"https://shipsofscale.com/sosforums/threads/seahorse-leudo-vinacciere-1-72.6765/\">Seahorse LEUDO VINACCIERE 1/72</a></td><td></td></tr>","<tr><td><strong> </strong></td>","<td>Iterum</td>","<td><a href=\"https://shipsofscale.com/sosforums/threads/seahorse-leudo-vinacciere-1-72.6765/\">Seahorse LEUDO VINACCIERE 1/72</a></td>",0,"<td></td></tr>",""]
[" ",null,null,null,null,null,"<tr><td><strong> </strong></td><td></td><td><a href=\"\"></a></td><td></td></tr>","<tr><td><strong> </strong></td>","<td></td>","<td><a href=\"\"></a></td>",0,"<td></td></tr>",""]
["Live Fish transporter","Fish transport vessel after af Chapman LX N°4 in 1/48","https://shipsofscale.com/sosforums/threads/fish-transport-vessel-after-af-chapman-lx-n%C2%B04-in-1-48.5125/","https://shipsofscale.com/sosforums/threads/hms-victory-1-96-based-on-shipyard.2411/page-4","Iterum",null,"<tr><td><strong>Live Fish transporter</strong></td><td>Iterum</td><td><a href=\"https://shipsofscale.com/sosforums/threads/fish-transport-vessel-after-af-chapman-lx-n%C2%B04-in-1-48.5125/\">Fish transport vessel after af Chapman LX N°4 in 1/48</a></td><td></td></tr>","<tr><td><strong>Live Fish transporter</strong></td>","<td>Iterum</td>","<td><a href=\"https://shipsofscale.com/sosforums/threads/fish-transport-vessel-after-af-chapman-lx-n%C2%B04-in-1-48.5125/\">Fish transport vessel after af Chapman LX N°4 in 1/48</a></td>",0,"<td></td></tr>",""]
[" ",null,null,null,null,null,"<tr><td><strong> </strong></td><td></td><td><a href=\"\"></a></td><td></td></tr>","<tr><td><strong> </strong></td>","<td></td>","<td><a href=\"\"></a></td>",0,"<td></td></tr>",""]
["Losos","YG-models Torpedoboats LOSOS' and FOREL 1898","https://shipsofscale.com/sosforums/threads/yg-models-torpedoboats-losos-and-forel-1898.7896/","https://shipsofscale.com/sosforums/threads/zeekoe-a-dutch-74ft-katt-in-scratch-1-66.8358/page-2","Iterum",null,"<tr><td><strong>Losos</strong></td><td>Iterum</td><td><a href=\"https://shipsofscale.com/sosforums/threads/yg-models-torpedoboats-losos-and-forel-1898.7896/\">YG-models Torpedoboats LOSOS' and FOREL 1898</a></td><td></td></tr>","<tr><td><strong>Losos</strong></td>","<td>Iterum</td>","<td><a href=\"https://shipsofscale.com/sosforums/threads/yg-models-torpedoboats-losos-and-forel-1898.7896/\">YG-models Torpedoboats LOSOS' and FOREL 1898</a></td>",0,"<td></td></tr>",""]
[" ",null,null,null,null,null,"<tr><td><strong> </strong></td><td></td><td><a href=\"\"></a></td><td></td></tr>","<tr><td><strong> </strong></td>","<td></td>","<td><a href=\"\"></a></td>",0,"<td></td></tr>",""]
[" ",null,null,null,null,null,"</tbody></table><hr /><p><a href=\"#TOP\">Back to Top</a></p><div style=\"text-align: left;\"><hr /><a name=\"M\"></a><strong>M</strong></u></p></div><table width=\"100%\" border=\"0\"><tbody><tr><td width=\"20%\"><span style=\"text-decoration: underline;\"><strong>Ship</strong></span></td><td width=\"12%\"><span style=\"text-decoration: underline;\"><strong>By</strong></span></td><td width=\"62%\"><span style=\"text-decoration: underline;\"><strong>Topic</strong></span></td><td width=\"6%\"><span style=\"text-decoration: underline;\"><strong>Latest</strong></span></td></u></tr>",null,null,null,null,null,""]
["Magnus Mörck","Magnus Mörck","https://shipsofscale.com/sosforums/threads/magnus-m%C3%B6rck.13492/","https://shipsofscale.com/sosforums/threads/russian-torpedo-boat-kit1899-or-teaching-modelbuilding.17355/page-2","The learner",null,"<tr><td><strong>Magnus Mörck</strong></td><td>The learner</td><td><a href=\"https://shipsofscale.com/sosforums/threads/magnus-m%C3%B6rck.13492/\">Magnus Mörck</a></td><td></td></tr>","<tr><td><strong>Magnus Mörck</strong></td>","<td>The learner</td>","<td><a href=\"https://shipsofscale.com/sosforums/threads/magnus-m%C3%B6rck.13492/\">Magnus Mörck</a></td>",0,"<td></td></tr>",""]
[" ",null,null,null,null,null,"<tr><td><strong> </strong></td><td></td><td><a href=\"\"></a></td><td></td></tr>","<tr><td><strong> </strong></td>","<td></td>","<td><a href=\"\"></a></td>",0,"<td></td></tr>",""]
["Matabele","HMS MATABELE - scale 1-400","https://shipsofscale.com/sosforums/threads/hms-matabele-scale-1-400.14723/","https://shipsofscale.com/sosforums/threads/hms-mercury-1-72-shipyard-completed-build.2642/page-16","SZKUTNIK",null,"<tr><td><strong>Matabele</strong></td><td>SZKUTNIK</td><td><a href=\"https://shipsofscale.com/sosforums/threads/hms-matabele-scale-1-400.14723/\">HMS MATABELE - scale 1-400</a></td><td></td></tr>","<tr><td><strong>Matabele</strong></td>","<td>SZKUTNIK</td>","<td><a href=\"https://shipsofscale.com/sosforums/threads/hms-matabele-scale-1-400.14723/\">HMS MATABELE - scale 1-400</a></td>",0,"<td></td></tr>",""]
[" ",null,null,null,null,null,"<tr><td><strong> </strong></td><td></td><td><a href=\"\"></a></td><td></td></tr>","<tr><td><strong> </strong></td>","<td></td>","<td><a href=\"\"></a></td>",0,"<td></td></tr>",""]
["Meermann","\"Meermann\" or \"Wodnik\" 1627 (1:100, scratch) [COMPLETED BUILD]","https://shipsofscale.com/sosforums/threads/meermann-or-wodnik-1627-1-100-scratch-completed-build.6828/","https://shipsofscale.com/sosforums/threads/meermann-or-wodnik-1627-1-100-scratch-completed-build.6828/page-2","0Seahorse",2,"<tr><td><strong>Meermann</strong></td><td>0Seahorse</td><td><a href=\"https://shipsofscale.com/sosforums/threads/meermann-or-wodnik-1627-1-100-scratch-completed-build.6828/\">\"Meermann\" or \"Wodnik\" 1627 (1:100, scratch) [COMPLETED BUILD]</a></td><td><a href=\"https://shipsofscale.com/sosforums/threads/meermann-or-wodnik-1627-1-100-scratch-completed-build.6828/page-2\">Page 2</a></td></tr>","<tr><td><strong>Meermann</strong></td>","<td>0Seahorse</td>","<td><a href=\"https://shipsofscale.com/sosforums/threads/meermann-or-wodnik-1627-1-100-scratch-completed-build.6828/\">\"Meermann\" or \"Wodnik\" 1627 (1:100, scratch) [COMPLETED BUILD]</a></td>",2,"<td><a href=\"https://shipsofscale.com/sosforums/threads/meermann-or-wodnik-1627-1-100-scratch-completed-build.6828/page-2\">Page 2</a></td></tr>",""]
[" ",null,null,null,null,null,"<tr><td><strong> </strong></td><td></td><td><a href=\"\"></a></td><td></td></tr>","<tr><td><strong> </strong></td>","<td></td>","<td><a href=\"\"></a></td>",0,"<td></td></tr>",""]
["Mellum","Multipurpose vessel Mellum by HMV, skale 1:250 [COMPLETED BUILD]","https://shipsofscale.com/sosforums/threads/multipurpose-vessel-mellum-by-hmv-skale-1-250-completed-build.14968/","https://shipsofscale.com/sosforums/threads/ship-in-trouble.13276/page-4","Lachezar Dragostinov",null,"<tr><td><strong>Mellum</strong></td><td>Lachezar Dragostinov</td><td><a href=\"https://shipsofscale.com/sosforums/threads/multipurpose-vessel-mellum-by-hmv-skale-1-250-completed-build.14968/\">Multipurpose vessel Mellum by HMV, skale 1:250 [COMPLETED BUILD]</a></td><td></td></tr>","<tr><td><strong>Mellum</strong></td>","<td>Lachezar Dragostinov</td>","<td><a href=\"https://shipsofscale.com/sosforums/threads/multipurpose-vessel-mellum-by-hmv-skale-1-250-completed-build.14968/\">Multipurpose vessel Mellum by HMV, skale 1:250 [COMPLETED BUILD]</a></td>",0,"<td></td></tr>",""]
[" ",null,null,null,null,null,"<tr><td><strong> </strong></td><td></td><td><a href=\"\"></a></td><td></td></tr>","<tr><td><strong> </strong></td>","<td></td>","<td><a href=\"\"></a></td>",0,"<td></td></tr>",""]
["Mercury","HMS Mercury 1/72, Shipyard models","https://shipsofscale.com/sosforums/threads/hms-mercury-1-72-shipyard-models.5056/","https://shipsofscale.com/sosforums/threads/hms-mercury-1-72-shipyard-models.5056/page-5","Atamini",5,"<tr><td><strong>Mercury</strong></td><td>Atamini</td><td><a href=\"https://shipsofscale.com/sosforums/threads/hms-mercury-1-72-shipyard-models.5056/\">HMS Mercury 1/72, Shipyard models</a></td><td><a href=\"https://shipsofscale.com/sosforums/threads/hms-mercury-1-72-shipyard-models.5056/page-5\">Page 5</a></td></tr>","<tr><td><strong>Mercury</strong></td>","<td>Atamini</td>","<td><a href=\"https://shipsofscale.com/sosforums/threads/hms-mercury-1-72-shipyard-models.5056/\">HMS Mercury 1/72, Shipyard models</a></td>",5,"<td><a href=\"https://shipsofscale.com/sosforums/threads/hms-mercury-1-72-shipyard-models.5056/page-5\">Page 5</a></td></tr>",""]
[" ","HMS MERCURY 1779 1:72 Shipyard","https://shipsofscale.com/sosforums/threads/hms-mercury-1779-1-72-shipyard.9040/","https://shipsofscale.com/sosforums/threads/hms-mercury-1779-1-72-shipyard.9040/page-5","Piotr Obrębski",5,"<tr><td><strong> </strong></td><td>Piotr Obrębski</td><td><a href=\"https://shipsofscale.com/sosforums/threads/hms-mercury-1779-1-72-shipyard.9040/\">HMS MERCURY 1779 1:72 Shipyard</a></td><td><a href=\"https://shipsofscale.com/sosforums/threads/hms-mercury-1779-1-72-shipyard.9040/page-5\">Page 5</a></td></tr>","<tr><td><strong> </strong></td>","<td>Piotr Obrębski</td>","<td><a href=\"https://shipsofscale.com/sosforums/threads/hms-mercury-1779-1-72-shipyard.9040/\">HMS MERCURY 1779 1:72 Shipyard</a></td>",5,"<td><a href=\"https://shipsofscale.com/sosforums/threads/hms-mercury-1779-1-72-shipyard.9040/page-5\">Page 5</a></td></tr>",""]
[" ","HMS Mercury 1797 Shipyard 1:72","https://shipsofscale.com/sosforums/threads/hms-mercury-1797-shipyard-1-72.1663/","https://shipsofscale.com/sosforums/threads/hms-mercury-1797-shipyard-1-72.1663/page-3","Jos",3,"<tr><td><strong> </strong></td><td>Jos</td><td><a href=\"https://shipsofscale.com/sosforums/threads/hms-mercury-1797-shipyard-1-72.1663/\">HMS Mercury 1797 Shipyard 1:72</a></td><td><a href=\"https://shipsofscale.com/sosforums/threads/hms-mercury-1797-shipyard-1-72.1663/page-3\">Page 3</a></td></tr>","<tr><td><strong> </strong></td>","<td>Jos</td>","<td><a href=\"https://shipsofscale.com/sosforums/threads/hms-mercury-1797-shipyard-1-72.1663/\">HMS Mercury 1797 Shipyard 1:72</a></td>",3,"<td><a href=\"https://shipsofscale.com/sosforums/threads/hms-mercury-1797-shipyard-1-72.1663/page-3\">Page 3</a></td></tr>",""]
[" ","HMS Mercury, 1:72, Shipyard [COMPLETED BUILD]","https://shipsofscale.com/sosforums/threads/hms-mercury-1-72-shipyard-completed-build.2642/","https://shipsofscale.com/sosforums/threads/hms-mercury-1-72-shipyard-completed-build.2642/page-16","Bonden",16,"<tr><td><strong> </strong></td><td>Bonden</td><td><a href=\"https://shipsofscale.com/sosforums/threads/hms-mercury-1-72-shipyard-completed-build.2642/\">HMS Mercury, 1:72, Shipyard [COMPLETED BUILD]</a></td><td><a href=\"https://shipsofscale.com/sosforums/threads/hms-mercury-1-72-shipyard-completed-build.2642/page-16\">Page 16</a></td></tr>","<tr><td><strong> </strong></td>","<td>Bonden</td>","<td><a href=\"https://shipsofscale.com/sosforums/threads/hms-mercury-1-72-shipyard-completed-build.2642/\">HMS Mercury, 1:72, Shipyard [COMPLETED BUILD]</a></td>",16,"<td><a href=\"https://shipsofscale.com/sosforums/threads/hms-mercury-1-72-shipyard-completed-build.2642/page-16\">Page 16</a></td></tr>",""]
[" ",null,null,null,null,null,"<tr><td><strong> </strong></td><td></td><td><a href=\"\"></a></td><td></td></tr>","<tr><td><strong> </strong></td>","<td></td>","<td><a href=\"\"></a></td>",0,"<td></td></tr>",""]
["Mississippi Steamboat","Mississippi Steamboat Cardboard - CubicFun 1/100","https://shipsofscale.com/sosforums/threads/mississippi-steamboat-cardboard-cubicfun-1-100.13390/","https://shipsofscale.com/sosforums/threads/the-forell-quartett-in-four-scales.12716/page-2","Richie",null,"<tr><td><strong>Mississippi Steamboat</strong></td><td>Richie</td><td><a href=\"https://shipsofscale.com/sosforums/threads/mississippi-steamboat-cardboard-cubicfun-1-100.13390/\">Mississippi Steamboat Cardboard - CubicFun 1/100</a></td><td></td></tr>","<tr><td><strong>Mississippi Steamboat</strong></td>","<td>Richie</td>","<td><a href=\"https://shipsofscale.com/sosforums/threads/mississippi-steamboat-cardboard-cubicfun-1-100.13390/\">Mississippi Steamboat Cardboard - CubicFun 1/100</a></td>",0,"<td></td></tr>",""]
[" ",null,null,null,null,null,"<tr><td><strong> </strong></td><td></td><td><a href=\"\"></a></td><td></td></tr>","<tr><td><strong> </strong></td>","<td></td>","<td><a href=\"\"></a></td>",0,"<td></td></tr>",""]
[" ",null,null,null,null,null,"</tbody></table><hr /><p><a href=\"#TOP\">Back to Top</a></p><div style=\"text-align: left;\"><hr /><a name=\"N\"></a><strong>N</strong></u></p></div><table width=\"100%\" border=\"0\"><tbody><tr><td width=\"20%\"><span style=\"text-decoration: underline;\"><strong>Ship</strong></span></td><td width=\"12%\"><span style=\"text-decoration: underline;\"><strong>By</strong></span></td><td width=\"62%\"><span style=\"text-decoration: underline;\"><strong>Topic</strong></span></td><td width=\"6%\"><span style=\"text-decoration: underline;\"><strong>Latest</strong></span></td></u></tr>",null,null,null,null,null,""]
["New Mexico","USS \"NEW MEXICO\" (BB-40) - scratch model - scale 1:200 [COMPLETED BUILD]","https://shipsofscale.com/sosforums/threads/uss-new-mexico-bb-40-scratch-model-scale-1-200-completed-build.4894/","https://shipsofscale.com/sosforums/threads/uss-new-mexico-bb-40-scratch-model-scale-1-200-completed-build.4894/page-4","SZKUTNIK",4,"<tr><td><strong>New Mexico</strong></td><td>SZKUTNIK</td><td><a href=\"https://shipsofscale.com/sosforums/threads/uss-new-mexico-bb-40-scratch-model-scale-1-200-completed-build.4894/\">USS \"NEW MEXICO\" (BB-40) - scratch model - scale 1:200 [COMPLETED BUILD]</a></td><td><a href=\"https://shipsofscale.com/sosforums/threads/uss-new-mexico-bb-40-scratch-model-scale-1-200-completed-build.4894/page-4\">Page 4</a></td></tr>","<tr><td><strong>New Mexico</strong></td>","<td>SZKUTNIK</td>","<td><a href=\"https://shipsofscale.com/sosforums/threads/uss-new-mexico-bb-40-scratch-model-scale-1-200-completed-build.4894/\">USS \"NEW MEXICO\" (BB-40) - scratch model - scale 1:200 [COMPLETED BUILD]</a></td>",4,"<td><a href=\"https://shipsofscale.com/sosforums/threads/uss-new-mexico-bb-40-scratch-model-scale-1-200-completed-build.4894/page-4\">Page 4</a></td></tr>",""]
[" ",null,null,null,null,null,"<tr><td><strong> </strong></td><td></td><td><a href=\"\"></a></td><td></td></tr>","<tr><td><strong> </strong></td>","<td></td>","<td><a href=\"\"></a></td>",0,"<td></td></tr>",""]
["Norderney","SS Norderney Schreiber scale 1:200","https://shipsofscale.com/sosforums/threads/ss-norderney-schreiber-scale-1-200.1620/","https://shipsofscale.com/sosforums/threads/hms-enterprize-1782-shipyard-1-72.1718/page-3","modlerbob",null,"<tr><td><strong>Norderney</strong></td><td>modlerbob</td><td><a href=\"https://shipsofscale.com/sosforums/threads/ss-norderney-schreiber-scale-1-200.1620/\">SS Norderney Schreiber scale 1:200</a></td><td></td></tr>","<tr><td><strong>Norderney</strong></td>","<td>modlerbob</td>","<td><a href=\"https://shipsofscale.com/sosforums/threads/ss-norderney-schreiber-scale-1-200.1620/\">SS Norderney Schreiber scale 1:200</a></td>",0,"<td></td></tr>",""]
[" ",null,null,null,null,null,"<tr><td><strong> </strong></td><td></td><td><a href=\"\"></a></td><td></td></tr>","<tr><td><strong> </strong></td>","<td></td>","<td><a href=\"\"></a></td>",0,"<td></td></tr>",""]
[" ",null,null,null,null,null,"</tbody></table><hr /><p><a href=\"#TOP\">Back to Top</a></p><div style=\"text-align: left;\"><hr /><a name=\"O\"></a><strong>O</strong></u></p></div><table width=\"100%\" border=\"0\"><tbody><tr><td width=\"20%\"><span style=\"text-decoration: underline;\"><strong>Ship</strong></span></td><td width=\"12%\"><span style=\"text-decoration: underline;\"><strong>By</strong></span></td><td width=\"62%\"><span style=\"text-decoration: underline;\"><strong>Topic</strong></span></td><td width=\"6%\"><span style=\"text-decoration: underline;\"><strong>Latest</strong></span></td></u></tr>",null,null,null,null,null,""]
["Olimp","Russian brig Olimp, 1817, kit of the company ShipWorks, 1:96","https://shipsofscale.com/sosforums/threads/russian-brig-olimp-1817-kit-of-the-company-shipworks-1-96.8397/","https://shipsofscale.com/sosforums/threads/russian-brig-olimp-1817-kit-of-the-company-shipworks-1-96.8397/page-2","Bonden",2,"<tr><td><strong>Olimp</strong></td><td>Bonden</td><td><a href=\"https://shipsofscale.com/sosforums/threads/russian-brig-olimp-1817-kit-of-the-company-shipworks-1-96.8397/\">Russian brig Olimp, 1817, kit of the company ShipWorks, 1:96</a></td><td><a href=\"https://shipsofscale.com/sosforums/threads/russian-brig-olimp-1817-kit-of-the-company-shipworks-1-96.8397/page-2\">Page 2</a></td></tr>","<tr><td><strong>Olimp</strong></td>","<td>Bonden</td>","<td><a href=\"https://shipsofscale.com/sosforums/threads/russian-brig-olimp-1817-kit-of-the-company-shipworks-1-96.8397/\">Russian brig Olimp, 1817, kit of the company ShipWorks, 1:96</a></td>",2,"<td><a href=\"https://shipsofscale.com/sosforums/threads/russian-brig-olimp-1817-kit-of-the-company-shipworks-1-96.8397/page-2\">Page 2</a></td></tr>",""]
[" ",null,null,null,null,null,"<tr><td><strong> </strong></td><td></td><td><a href=\"\"></a></td><td></td></tr>","<tr><td><strong> </strong></td>","<td></td>","<td><a href=\"\"></a></td>",0,"<td></td></tr>",""]
[" ",null,null,null,null,null,"</tbody></table><hr /><p><a href=\"#TOP\">Back to Top</a></p><div style=\"text-align: left;\"><hr /><a name=\"P\"></a><strong>P</strong></u></p></div><table width=\"100%\" border=\"0\"><tbody><tr><td width=\"20%\"><span style=\"text-decoration: underline;\"><strong>Ship</strong></span></td><td width=\"12%\"><span style=\"text-decoration: underline;\"><strong>By</strong></span></td><td width=\"62%\"><span style=\"text-decoration: underline;\"><strong>Topic</strong></span></td><td width=\"6%\"><span style=\"text-decoration: underline;\"><strong>Latest</strong></span></td></u></tr>",null,null,null,null,null,""]
["Pantaloon","PANTALOON tender to Royal George yacht 1/200 Oriel card kit","https://shipsofscale.com/sosforums/threads/pantaloon-tender-to-royal-george-yacht-1-200-oriel-card-kit.6690/","https://shipsofscale.com/sosforums/threads/shipyard-1-72-hms-alert-continental-navy-revenge.4595/page-2","Iterum",null,"<tr><td><strong>Pantaloon</strong></td><td>Iterum</td><td><a href=\"https://shipsofscale.com/sosforums/threads/pantaloon-tender-to-royal-george-yacht-1-200-oriel-card-kit.6690/\">PANTALOON tender to Royal George yacht 1/200 Oriel card kit</a></td><td></td></tr>","<tr><td><strong>Pantaloon</strong></td>","<td>Iterum</td>","<td><a href=\"https://shipsofscale.com/sosforums/threads/pantaloon-tender-to-royal-george-yacht-1-200-oriel-card-kit.6690/\">PANTALOON tender to Royal George yacht 1/200 Oriel card kit</a></td>",0,"<td></td></tr>",""]
[" ",null,null,null,null,null,"<tr><td><strong> </strong></td><td></td><td><a href=\"\"></a></td><td></td></tr>","<tr><td><strong> </strong></td>","<td></td>","<td><a href=\"\"></a></td>",0,"<td></td></tr>",""]
["Pinas","A 17th century Dutch armed trader – scratch built from card [COMPLETED BUILD]","https://shipsofscale.com/sosforums/threads/a-17th-century-dutch-armed-trader-%E2%80%93-scratch-built-from-card-completed-build.8119/","https://shipsofscale.com/sosforums/threads/a-17th-century-dutch-armed-trader-%E2%80%93-scratch-built-from-card-completed-build.8119/page-5","Ab Hoving",5,"<tr><td><strong>Pinas</strong></td><td>Ab Hoving</td><td><a href=\"https://shipsofscale.com/sosforums/threads/a-17th-century-dutch-armed-trader-%E2%80%93-scratch-built-from-card-completed-build.8119/\">A 17th century Dutch armed trader – scratch built from card [COMPLETED BUILD]</a></td><td><a href=\"https://shipsofscale.com/sosforums/threads/a-17th-century-dutch-armed-trader-%E2%80%93-scratch-built-from-card-completed-build.8119/page-5\">Page 5</a></td></tr>","<tr><td><strong>Pinas</strong></td>","<td>Ab Hoving</td>","<td><a href=\"https://shipsofscale.com/sosforums/threads/a-17th-century-dutch-armed-trader-%E2%80%93-scratch-built-from-card-completed-build.8119/\">A 17th century Dutch armed trader – scratch built from card [COMPLETED BUILD]</a></td>",5,"<td><a href=\"https://shipsofscale.com/sosforums/threads/a-17th-century-dutch-armed-trader-%E2%80%93-scratch-built-from-card-completed-build.8119/page-5\">Page 5</a></td></tr>",""]
[" ",null,null,null,null,null,"<tr><td><strong> </strong></td><td></td><td><a href=\"\"></a></td><td></td></tr>","<tr><td><strong> </strong></td>","<td></td>","<td><a href=\"\"></a></td>",0,"<td></td></tr>",""]
["Pirate Ship","1/64 A real Pirateship - af Chapman's ANM XL N° 11","https://shipsofscale.com/sosforums/threads/1-64-a-real-pirateship-af-chapmans-anm-xl-n%C2%B0-11.16618/","https://shipsofscale.com/sosforums/threads/postiljon-a-dutch-frigate-1661-1678.15220/page-3","Iterum",null,"<tr><td><strong>Pirate Ship</strong></td><td>Iterum</td><td><a href=\"https://shipsofscale.com/sosforums/threads/1-64-a-real-pirateship-af-chapmans-anm-xl-n%C2%B0-11.16618/\">1/64 A real Pirateship - af Chapman's ANM XL N° 11</a></td><td></td></tr>","<tr><td><strong>Pirate Ship</strong></td>","<td>Iterum</td>","<td><a href=\"https://shipsofscale.com/sosforums/threads/1-64-a-real-pirateship-af-chapmans-anm-xl-n%C2%B0-11.16618/\">1/64 A real Pirateship - af Chapman's ANM XL N° 11</a></td>",0,"<td></td></tr>",""]
[" ","Cardboard Pirate Ship","https://shipsofscale.com/sosforums/threads/cardboard-pirate-ship.3049/","https://shipsofscale.com/sosforums/threads/hms-enterprize-1782-shipyard-1-72.1718/page-3","eric67",null,"<tr><td><strong> </strong></td><td>eric67</td><td><a href=\"https://shipsofscale.com/sosforums/threads/cardboard-pirate-ship.3049/\">Cardboard Pirate Ship</a></td><td></td></tr>","<tr><td><strong> </strong></td>","<td>eric67</td>","<td><a href=\"https://shipsofscale.com/sosforums/threads/cardboard-pirate-ship.3049/\">Cardboard Pirate Ship</a></td>",0,"<td></td></tr>",""]
[" ",null,null,null,null,null,"<tr><td><strong> </strong></td><td></td><td><a href=\"\"></a></td><td></td></tr>","<tr><td><strong> </strong></td>","<td></td>","<td><a href=\"\"></a></td>",0,"<td></td></tr>",""]
["Postiljon","Postiljon, a Dutch frigate (1661-1678)","https://shipsofscale.com/sosforums/threads/postiljon-a-dutch-frigate-1661-1678.15220/","https://shipsofscale.com/sosforums/threads/postiljon-a-dutch-frigate-1661-1678.15220/page-3","Ab Hoving",3,"<tr><td><strong>Postiljon</strong></td><td>Ab Hoving</td><td><a href=\"https://shipsofscale.com/sosforums/threads/postiljon-a-dutch-frigate-1661-1678.15220/\">Postiljon, a Dutch frigate (1661-1678)</a></td><td><a href=\"https://shipsofscale.com/sosforums/threads/postiljon-a-dutch-frigate-1661-1678.15220/page-3\">Page 3</a></td></tr>","<tr><td><strong>Postiljon</strong></td>","<td>Ab Hoving</td>","<td><a href=\"https://shipsofscale.com/sosforums/threads/postiljon-a-dutch-frigate-1661-1678.15220/\">Postiljon, a Dutch frigate (1661-1678)</a></td>",3,"<td><a href=\"https://shipsofscale.com/sosforums/threads/postiljon-a-dutch-frigate-1661-1678.15220/page-3\">Page 3</a></td></tr>",""]
[" ",null,null,null,null,null,"<tr><td><strong> </strong></td><td></td><td><a href=\"\"></a></td><td></td></tr>","<tr><td><strong> </strong></td>","<td></td>","<td><a href=\"\"></a></td>",0,"<td></td></tr>",""]
["Prince","HMS Prince in scale 1/600","https://shipsofscale.com/sosforums/threads/hms-prince-in-scale-1-600.6953/","https://shipsofscale.com/sosforums/threads/zeekoe-a-dutch-74ft-katt-in-scratch-1-66.8358/page-2","Wilhelm Thümler",null,"<tr><td><strong>Prince</strong></td><td>Wilhelm Thümler</td><td><a href=\"https://shipsofscale.com/sosforums/threads/hms-prince-in-scale-1-600.6953/\">HMS Prince in scale 1/600</a></td><td></td></tr>","<tr><td><strong>Prince</strong></td>","<td>Wilhelm Thümler</td>","<td><a href=\"https://shipsofscale.com/sosforums/threads/hms-prince-in-scale-1-600.6953/\">HMS Prince in scale 1/600</a></td>",0,"<td></td></tr>",""]
[" ",null,null,null,null,null,{"$f":"H165&I165&J165&L165","v":"<tr><td><strong> </strong></td><td></td><td><a href=\"\"></a></td><td></td></tr>"},{"$f":"$L$1&$N$1&$J$1&A165&$J$2&$N$2","v":"<tr><td><strong> </strong></td>"},{"$f":"$N$1&E165&$N$2","v":"<td></td>"},{"$f":"$N$1&$O$1&C165&$P$1&B165&$O$2&$N$2","v":"<td><a href=\"\"></a></td>"},{"$f":"F165","v":0},{"$f":"$N$1&IF(K165>0,$O$1&D165&$P$1&\"Page \"&K165&$O$2,\"\")&$N$2&$L$2","v":"<td></td></tr>"},""]
["Proud Mary","PROUD MARY","https://shipsofscale.com/sosforums/threads/proud-mary.15242/","https://shipsofscale.com/sosforums/threads/a-143-feet-long-dutch-warship-from-1681-cardstock-completed-build.4634/page-5","Llaut Mallorquin",null,"<tr><td><strong>Proud Mary</strong></td><td>Llaut Mallorquin</td><td><a href=\"https://shipsofscale.com/sosforums/threads/proud-mary.15242/\">PROUD MARY</a></td><td></td></tr>","<tr><td><strong>Proud Mary</strong></td>","<td>Llaut Mallorquin</td>","<td><a href=\"https://shipsofscale.com/sosforums/threads/proud-mary.15242/\">PROUD MARY</a></td>",0,"<td></td></tr>",""]
[" ",null,null,null,null,null,"<tr><td><strong> </strong></td><td></td><td><a href=\"\"></a></td><td></td></tr>","<tr><td><strong> </strong></td>","<td></td>","<td><a href=\"\"></a></td>",0,"<td></td></tr>",""]
[" ",null,null,null,null,null,"</tbody></table><hr /><p><a href=\"#TOP\">Back to Top</a></p><div style=\"text-align: left;\"><hr /><a name=\"Q\"></a><strong>Q</strong></u></p></div><table width=\"100%\" border=\"0\"><tbody><tr><td width=\"20%\"><span style=\"text-decoration: underline;\"><strong>Ship</strong></span></td><td width=\"12%\"><span style=\"text-decoration: underline;\"><strong>By</strong></span></td><td width=\"62%\"><span style=\"text-decoration: underline;\"><strong>Topic</strong></span></td><td width=\"6%\"><span style=\"text-decoration: underline;\"><strong>Latest</strong></span></td></u></tr>",null,null,null,null,null,""]
["Queen Mary","RMS Queen Mary (Scale 1:1250)","https://shipsofscale.com/sosforums/threads/rms-queen-mary-scale-1-1250.7381/","https://shipsofscale.com/sosforums/threads/rms-queen-mary-scale-1-1250.7381/page-2","Jhoanor",2,"<tr><td><strong>Queen Mary</strong></td><td>Jhoanor</td><td><a href=\"https://shipsofscale.com/sosforums/threads/rms-queen-mary-scale-1-1250.7381/\">RMS Queen Mary (Scale 1:1250)</a></td><td><a href=\"https://shipsofscale.com/sosforums/threads/rms-queen-mary-scale-1-1250.7381/page-2\">Page 2</a></td></tr>","<tr><td><strong>Queen Mary</strong></td>","<td>Jhoanor</td>","<td><a href=\"https://shipsofscale.com/sosforums/threads/rms-queen-mary-scale-1-1250.7381/\">RMS Queen Mary (Scale 1:1250)</a></td>",2,"<td><a href=\"https://shipsofscale.com/sosforums/threads/rms-queen-mary-scale-1-1250.7381/page-2\">Page 2</a></td></tr>",""]
[" ",null,null,null,null,null,"<tr><td><strong> </strong></td><td></td><td><a href=\"\"></a></td><td></td></tr>","<tr><td><strong> </strong></td>","<td></td>","<td><a href=\"\"></a></td>",0,"<td></td></tr>",""]
["Queen of the Isles","MS Queen of the Isles Ferry GB, 1965 1:250","https://shipsofscale.com/sosforums/threads/ms-queen-of-the-isles-ferry-gb-1965-1-250.1623/","https://shipsofscale.com/sosforums/threads/hms-enterprize-1782-shipyard-1-72.1718/page-3","modlerbob",null,"<tr><td><strong>Queen of the Isles</strong></td><td>modlerbob</td><td><a href=\"https://shipsofscale.com/sosforums/threads/ms-queen-of-the-isles-ferry-gb-1965-1-250.1623/\">MS Queen of the Isles Ferry GB, 1965 1:250</a></td><td></td></tr>","<tr><td><strong>Queen of the Isles</strong></td>","<td>modlerbob</td>","<td><a href=\"https://shipsofscale.com/sosforums/threads/ms-queen-of-the-isles-ferry-gb-1965-1-250.1623/\">MS Queen of the Isles Ferry GB, 1965 1:250</a></td>",0,"<td></td></tr>",""]
[" ",null,null,null,null,null,"<tr><td><strong> </strong></td><td></td><td><a href=\"\"></a></td><td></td></tr>","<tr><td><strong> </strong></td>","<td></td>","<td><a href=\"\"></a></td>",0,"<td></td></tr>",""]
[" ",null,null,null,null,null,"</tbody></table><hr /><p><a href=\"#TOP\">Back to Top</a></p><div style=\"text-align: left;\"><hr /><a name=\"R\"></a><strong>R</strong></u></p></div><table width=\"100%\" border=\"0\"><tbody><tr><td width=\"20%\"><span style=\"text-decoration: underline;\"><strong>Ship</strong></span></td><td width=\"12%\"><span style=\"text-decoration: underline;\"><strong>By</strong></span></td><td width=\"62%\"><span style=\"text-decoration: underline;\"><strong>Topic</strong></span></td><td width=\"6%\"><span style=\"text-decoration: underline;\"><strong>Latest</strong></span></td></u></tr>",null,null,null,null,null,""]
["Revenue Cutter","31-tonn revenue cutter (scratch & test model, 1:72 of Seahorse)","https://shipsofscale.com/sosforums/threads/31-tonn-revenue-cutter-scratch-test-model-1-72-of-seahorse.11906/","https://shipsofscale.com/sosforums/threads/a-17th-century-dutch-armed-trader-%E2%80%93-scratch-built-from-card-completed-build.8119/page-5","0Seahorse",null,"<tr><td><strong>Revenue Cutter</strong></td><td>0Seahorse</td><td><a href=\"https://shipsofscale.com/sosforums/threads/31-tonn-revenue-cutter-scratch-test-model-1-72-of-seahorse.11906/\">31-tonn revenue cutter (scratch & test model, 1:72 of Seahorse)</a></td><td></td></tr>","<tr><td><strong>Revenue Cutter</strong></td>","<td>0Seahorse</td>","<td><a href=\"https://shipsofscale.com/sosforums/threads/31-tonn-revenue-cutter-scratch-test-model-1-72-of-seahorse.11906/\">31-tonn revenue cutter (scratch & test model, 1:72 of Seahorse)</a></td>",0,"<td></td></tr>",""]
[" ",null,null,null,null,null,"<tr><td><strong> </strong></td><td></td><td><a href=\"\"></a></td><td></td></tr>","<tr><td><strong> </strong></td>","<td></td>","<td><a href=\"\"></a></td>",0,"<td></td></tr>",""]
["Royal Yacht","An English Royal yacht","https://shipsofscale.com/sosforums/threads/an-english-royal-yacht.16993/","https://shipsofscale.com/sosforums/threads/russian-torpedo-boat-kit1899-or-teaching-modelbuilding.17355/page-2","Ab Hoving",null,"<tr><td><strong>Royal Yacht</strong></td><td>Ab Hoving</td><td><a href=\"https://shipsofscale.com/sosforums/threads/an-english-royal-yacht.16993/\">An English Royal yacht</a></td><td></td></tr>","<tr><td><strong>Royal Yacht</strong></td>","<td>Ab Hoving</td>","<td><a href=\"https://shipsofscale.com/sosforums/threads/an-english-royal-yacht.16993/\">An English Royal yacht</a></td>",0,"<td></td></tr>",""]
[" ",null,null,null,null,null,"<tr><td><strong> </strong></td><td></td><td><a href=\"\"></a></td><td></td></tr>","<tr><td><strong> </strong></td>","<td></td>","<td><a href=\"\"></a></td>",0,"<td></td></tr>",""]
[" ",null,null,null,null,null,"</tbody></table><hr /><p><a href=\"#TOP\">Back to Top</a></p><div style=\"text-align: left;\"><hr /><a name=\"S\"></a><strong>S</strong></u></p></div><table width=\"100%\" border=\"0\"><tbody><tr><td width=\"20%\"><span style=\"text-decoration: underline;\"><strong>Ship</strong></span></td><td width=\"12%\"><span style=\"text-decoration: underline;\"><strong>By</strong></span></td><td width=\"62%\"><span style=\"text-decoration: underline;\"><strong>Topic</strong></span></td><td width=\"6%\"><span style=\"text-decoration: underline;\"><strong>Latest</strong></span></td></u></tr>",null,null,null,null,null,""]
["San Salvador","San Salvador","https://shipsofscale.com/sosforums/threads/san-salvador.7549/","https://shipsofscale.com/sosforums/threads/russian-brig-olimp-1817-kit-of-the-company-shipworks-1-96.8397/page-2","Captain",null,"<tr><td><strong>San Salvador</strong></td><td>Captain</td><td><a href=\"https://shipsofscale.com/sosforums/threads/san-salvador.7549/\">San Salvador</a></td><td></td></tr>","<tr><td><strong>San Salvador</strong></td>","<td>Captain</td>","<td><a href=\"https://shipsofscale.com/sosforums/threads/san-salvador.7549/\">San Salvador</a></td>",0,"<td></td></tr>",""]
[" ","San Salvador 1:100 Maritime Museum San Diego","https://shipsofscale.com/sosforums/threads/san-salvador-1-100-maritime-museum-san-diego.1753/","https://shipsofscale.com/sosforums/threads/a-17th-century-dutch-armed-trader-%E2%80%93-scratch-built-from-card-completed-build.8119/page-5","Jos",null,"<tr><td><strong> </strong></td><td>Jos</td><td><a href=\"https://shipsofscale.com/sosforums/threads/san-salvador-1-100-maritime-museum-san-diego.1753/\">San Salvador 1:100 Maritime Museum San Diego</a></td><td></td></tr>","<tr><td><strong> </strong></td>","<td>Jos</td>","<td><a href=\"https://shipsofscale.com/sosforums/threads/san-salvador-1-100-maritime-museum-san-diego.1753/\">San Salvador 1:100 Maritime Museum San Diego</a></td>",0,"<td></td></tr>",""]
[" ",null,null,null,null,null,"<tr><td><strong> </strong></td><td></td><td><a href=\"\"></a></td><td></td></tr>","<tr><td><strong> </strong></td>","<td></td>","<td><a href=\"\"></a></td>",0,"<td></td></tr>",""]
["Santa Leocadia","Shipyard 1/96 Santa Leocadia paper model build","https://shipsofscale.com/sosforums/threads/shipyard-1-96-santa-leocadia-paper-model-build.15290/","https://shipsofscale.com/sosforums/threads/shipyard-1-96-santa-leocadia-paper-model-build.15290/page-3","BigKeith95",3,"<tr><td><strong>Santa Leocadia</strong></td><td>BigKeith95</td><td><a href=\"https://shipsofscale.com/sosforums/threads/shipyard-1-96-santa-leocadia-paper-model-build.15290/\">Shipyard 1/96 Santa Leocadia paper model build</a></td><td><a href=\"https://shipsofscale.com/sosforums/threads/shipyard-1-96-santa-leocadia-paper-model-build.15290/page-3\">Page 3</a></td></tr>","<tr><td><strong>Santa Leocadia</strong></td>","<td>BigKeith95</td>","<td><a href=\"https://shipsofscale.com/sosforums/threads/shipyard-1-96-santa-leocadia-paper-model-build.15290/\">Shipyard 1/96 Santa Leocadia paper model build</a></td>",3,"<td><a href=\"https://shipsofscale.com/sosforums/threads/shipyard-1-96-santa-leocadia-paper-model-build.15290/page-3\">Page 3</a></td></tr>",""]
[" ",null,null,null,null,null,"<tr><td><strong> </strong></td><td></td><td><a href=\"\"></a></td><td></td></tr>","<tr><td><strong> </strong></td>","<td></td>","<td><a href=\"\"></a></td>",0,"<td></td></tr>",""]
["Sao Gabriel","Sao Gabriel 1/100 scratch","https://shipsofscale.com/sosforums/threads/sao-gabriel-1-100-scratch.2838/","https://shipsofscale.com/sosforums/threads/sao-gabriel-1-100-scratch.2838/page-2","0Seahorse",2,"<tr><td><strong>Sao Gabriel</strong></td><td>0Seahorse</td><td><a href=\"https://shipsofscale.com/sosforums/threads/sao-gabriel-1-100-scratch.2838/\">Sao Gabriel 1/100 scratch</a></td><td><a href=\"https://shipsofscale.com/sosforums/threads/sao-gabriel-1-100-scratch.2838/page-2\">Page 2</a></td></tr>","<tr><td><strong>Sao Gabriel</strong></td>","<td>0Seahorse</td>","<td><a href=\"https://shipsofscale.com/sosforums/threads/sao-gabriel-1-100-scratch.2838/\">Sao Gabriel 1/100 scratch</a></td>",2,"<td><a href=\"https://shipsofscale.com/sosforums/threads/sao-gabriel-1-100-scratch.2838/page-2\">Page 2</a></td></tr>",""]
[" ",null,null,null,null,null,"<tr><td><strong> </strong></td><td></td><td><a href=\"\"></a></td><td></td></tr>","<tr><td><strong> </strong></td>","<td></td>","<td><a href=\"\"></a></td>",0,"<td></td></tr>",""]
["Schichau Elbing","Russian torpedo boat KIT1899 or teaching modelbuilding","https://shipsofscale.com/sosforums/threads/russian-torpedo-boat-kit1899-or-teaching-modelbuilding.17355/","https://shipsofscale.com/sosforums/threads/russian-torpedo-boat-kit1899-or-teaching-modelbuilding.17355/page-2","Iterum",2,"<tr><td><strong>Schichau Elbing</strong></td><td>Iterum</td><td><a href=\"https://shipsofscale.com/sosforums/threads/russian-torpedo-boat-kit1899-or-teaching-modelbuilding.17355/\">Russian torpedo boat KIT1899 or teaching modelbuilding</a></td><td><a href=\"https://shipsofscale.com/sosforums/threads/russian-torpedo-boat-kit1899-or-teaching-modelbuilding.17355/page-2\">Page 2</a></td></tr>","<tr><td><strong>Schichau Elbing</strong></td>","<td>Iterum</td>","<td><a href=\"https://shipsofscale.com/sosforums/threads/russian-torpedo-boat-kit1899-or-teaching-modelbuilding.17355/\">Russian torpedo boat KIT1899 or teaching modelbuilding</a></td>",2,"<td><a href=\"https://shipsofscale.com/sosforums/threads/russian-torpedo-boat-kit1899-or-teaching-modelbuilding.17355/page-2\">Page 2</a></td></tr>",""]
[" ",null,null,null,null,null,"<tr><td><strong> </strong></td><td></td><td><a href=\"\"></a></td><td></td></tr>","<tr><td><strong> </strong></td>","<td></td>","<td><a href=\"\"></a></td>",0,"<td></td></tr>",""]
["Seefalke","Seefalke, Lappland, Scheelenkuhlen, 1:250 HMV","https://shipsofscale.com/sosforums/threads/seefalke-lappland-scheelenkuhlen-1-250-hmv.6601/","https://shipsofscale.com/sosforums/threads/willem-ruys-1-250-cardboard-of-scaldis.6349/page-2","Gijsbert",null,"<tr><td><strong>Seefalke</strong></td><td>Gijsbert</td><td><a href=\"https://shipsofscale.com/sosforums/threads/seefalke-lappland-scheelenkuhlen-1-250-hmv.6601/\">Seefalke, Lappland, Scheelenkuhlen, 1:250 HMV</a></td><td></td></tr>","<tr><td><strong>Seefalke</strong></td>","<td>Gijsbert</td>","<td><a href=\"https://shipsofscale.com/sosforums/threads/seefalke-lappland-scheelenkuhlen-1-250-hmv.6601/\">Seefalke, Lappland, Scheelenkuhlen, 1:250 HMV</a></td>",0,"<td></td></tr>",""]
[" ",null,null,null,null,null,"<tr><td><strong> </strong></td><td></td><td><a href=\"\"></a></td><td></td></tr>","<tr><td><strong> </strong></td>","<td></td>","<td><a href=\"\"></a></td>",0,"<td></td></tr>",""]
["Sestroretsk","Сестрорецк [Sestroretsk] Scratchbuild scale 1/64 Russ. torpedo boat 1894","https://shipsofscale.com/sosforums/threads/%D0%A1%D0%B5%D1%81%D1%82%D1%80%D0%BE%D1%80%D0%B5%D1%86%D0%BA-sestroretsk-scratchbuild-scale-1-64-russ-torpedo-boat-1894.15657/","https://shipsofscale.com/sosforums/threads/%D0%A1%D0%B5%D1%81%D1%82%D1%80%D0%BE%D1%80%D0%B5%D1%86%D0%BA-sestroretsk-scratchbuild-scale-1-64-russ-torpedo-boat-1894.15657/page-2","Iterum",2,"<tr><td><strong>Sestroretsk</strong></td><td>Iterum</td><td><a href=\"https://shipsofscale.com/sosforums/threads/%D0%A1%D0%B5%D1%81%D1%82%D1%80%D0%BE%D1%80%D0%B5%D1%86%D0%BA-sestroretsk-scratchbuild-scale-1-64-russ-torpedo-boat-1894.15657/\">Сестрорецк [Sestroretsk] Scratchbuild scale 1/64 Russ. torpedo boat 1894</a></td><td><a href=\"https://shipsofscale.com/sosforums/threads/%D0%A1%D0%B5%D1%81%D1%82%D1%80%D0%BE%D1%80%D0%B5%D1%86%D0%BA-sestroretsk-scratchbuild-scale-1-64-russ-torpedo-boat-1894.15657/page-2\">Page 2</a></td></tr>","<tr><td><strong>Sestroretsk</strong></td>","<td>Iterum</td>","<td><a href=\"https://shipsofscale.com/sosforums/threads/%D0%A1%D0%B5%D1%81%D1%82%D1%80%D0%BE%D1%80%D0%B5%D1%86%D0%BA-sestroretsk-scratchbuild-scale-1-64-russ-torpedo-boat-1894.15657/\">Сестрорецк [Sestroretsk] Scratchbuild scale 1/64 Russ. torpedo boat 1894</a></td>",2,"<td><a href=\"https://shipsofscale.com/sosforums/threads/%D0%A1%D0%B5%D1%81%D1%82%D1%80%D0%BE%D1%80%D0%B5%D1%86%D0%BA-sestroretsk-scratchbuild-scale-1-64-russ-torpedo-boat-1894.15657/page-2\">Page 2</a></td></tr>",""]
[" ",null,null,null,null,null,"<tr><td><strong> </strong></td><td></td><td><a href=\"\"></a></td><td></td></tr>","<tr><td><strong> </strong></td>","<td></td>","<td><a href=\"\"></a></td>",0,"<td></td></tr>",""]
["Sevastopol","Oriel IRN SEVASTOPOL 1899 - Oriel","https://shipsofscale.com/sosforums/threads/oriel-irn-sevastopol-1899-oriel.11405/","https://shipsofscale.com/sosforums/threads/gpm-1-200-bismarck-card-kit.3039/page-2","Iterum",null,"<tr><td><strong>Sevastopol</strong></td><td>Iterum</td><td><a href=\"https://shipsofscale.com/sosforums/threads/oriel-irn-sevastopol-1899-oriel.11405/\">Oriel IRN SEVASTOPOL 1899 - Oriel</a></td><td></td></tr>","<tr><td><strong>Sevastopol</strong></td>","<td>Iterum</td>","<td><a href=\"https://shipsofscale.com/sosforums/threads/oriel-irn-sevastopol-1899-oriel.11405/\">Oriel IRN SEVASTOPOL 1899 - Oriel</a></td>",0,"<td></td></tr>",""]
[" ",null,null,null,null,null,"<tr><td><strong> </strong></td><td></td><td><a href=\"\"></a></td><td></td></tr>","<tr><td><strong> </strong></td>","<td></td>","<td><a href=\"\"></a></td>",0,"<td></td></tr>",""]
["Sky Lantern","Chinese Sky Lantern - 1:1 - Creatov","https://shipsofscale.com/sosforums/threads/chinese-sky-lantern-1-1-creatov.5482/","https://shipsofscale.com/sosforums/threads/schreiber-bogen-1-200-rms-titanic.5315/page-2","mrshanks",null,"<tr><td><strong>Sky Lantern</strong></td><td>mrshanks</td><td><a href=\"https://shipsofscale.com/sosforums/threads/chinese-sky-lantern-1-1-creatov.5482/\">Chinese Sky Lantern - 1:1 - Creatov</a></td><td></td></tr>","<tr><td><strong>Sky Lantern</strong></td>","<td>mrshanks</td>","<td><a href=\"https://shipsofscale.com/sosforums/threads/chinese-sky-lantern-1-1-creatov.5482/\">Chinese Sky Lantern - 1:1 - Creatov</a></td>",0,"<td></td></tr>",""]
[" ",null,null,null,null,null,"<tr><td><strong> </strong></td><td></td><td><a href=\"\"></a></td><td></td></tr>","<tr><td><strong> </strong></td>","<td></td>","<td><a href=\"\"></a></td>",0,"<td></td></tr>",""]
["SMS Beowulf","German coastal armored ship \"SMS Beowulf\", scale 1:250 [COMPLETED BUILD]","https://shipsofscale.com/sosforums/threads/german-coastal-armored-ship-sms-beowulf-scale-1-250-completed-build.15295/","https://shipsofscale.com/sosforums/threads/ship-in-trouble.13276/page-4","Lachezar Dragostinov",null,"<tr><td><strong>SMS Beowulf</strong></td><td>Lachezar Dragostinov</td><td><a href=\"https://shipsofscale.com/sosforums/threads/german-coastal-armored-ship-sms-beowulf-scale-1-250-completed-build.15295/\">German coastal armored ship \"SMS Beowulf\", scale 1:250 [COMPLETED BUILD]</a></td><td></td></tr>","<tr><td><strong>SMS Beowulf</strong></td>","<td>Lachezar Dragostinov</td>","<td><a href=\"https://shipsofscale.com/sosforums/threads/german-coastal-armored-ship-sms-beowulf-scale-1-250-completed-build.15295/\">German coastal armored ship \"SMS Beowulf\", scale 1:250 [COMPLETED BUILD]</a></td>",0,"<td></td></tr>",""]
[" ",null,null,null,null,null,"<tr><td><strong> </strong></td><td></td><td><a href=\"\"></a></td><td></td></tr>","<tr><td><strong> </strong></td>","<td></td>","<td><a href=\"\"></a></td>",0,"<td></td></tr>",""]
["Speeljacht","Speeljacht 1:50 (new project of \"Seahorse\")","https://shipsofscale.com/sosforums/threads/speeljacht-1-50-new-project-of-seahorse.13940/","https://shipsofscale.com/sosforums/threads/the-dutch-yacht-18th-century-completed-build.5760/page-2","0Seahorse",null,"<tr><td><strong>Speeljacht</strong></td><td>0Seahorse</td><td><a href=\"https://shipsofscale.com/sosforums/threads/speeljacht-1-50-new-project-of-seahorse.13940/\">Speeljacht 1:50 (new project of \"Seahorse\")</a></td><td></td></tr>","<tr><td><strong>Speeljacht</strong></td>","<td>0Seahorse</td>","<td><a href=\"https://shipsofscale.com/sosforums/threads/speeljacht-1-50-new-project-of-seahorse.13940/\">Speeljacht 1:50 (new project of \"Seahorse\")</a></td>",0,"<td></td></tr>",""]
[" ",null,null,null,null,null,"<tr><td><strong> </strong></td><td></td><td><a href=\"\"></a></td><td></td></tr>","<tr><td><strong> </strong></td>","<td></td>","<td><a href=\"\"></a></td>",0,"<td></td></tr>",""]
["Split","JRM razarač SPLIT - Yugoslav frigate Split - by Roland Vlahovic","https://shipsofscale.com/sosforums/threads/jrm-razara%C4%8D-split-yugoslav-frigate-split-by-roland-vlahovic.2486/","https://shipsofscale.com/sosforums/threads/hms-enterprize-1782-shipyard-1-72.1718/page-3","Roly",null,"<tr><td><strong>Split</strong></td><td>Roly</td><td><a href=\"https://shipsofscale.com/sosforums/threads/jrm-razara%C4%8D-split-yugoslav-frigate-split-by-roland-vlahovic.2486/\">JRM razarač SPLIT - Yugoslav frigate Split - by Roland Vlahovic</a></td><td></td></tr>","<tr><td><strong>Split</strong></td>","<td>Roly</td>","<td><a href=\"https://shipsofscale.com/sosforums/threads/jrm-razara%C4%8D-split-yugoslav-frigate-split-by-roland-vlahovic.2486/\">JRM razarač SPLIT - Yugoslav frigate Split - by Roland Vlahovic</a></td>",0,"<td></td></tr>",""]
[" ",null,null,null,null,null,"<tr><td><strong> </strong></td><td></td><td><a href=\"\"></a></td><td></td></tr>","<tr><td><strong> </strong></td>","<td></td>","<td><a href=\"\"></a></td>",0,"<td></td></tr>",""]
["Spray","The Spray of Joshua Slocum - scale ?? - by The Sailor","https://shipsofscale.com/sosforums/threads/the-spray-of-joshua-slocum-scale-by-the-sailor.8793/","https://shipsofscale.com/sosforums/threads/hms-victory-1-96-by-shipyard.10509/page-2","The Sailor",null,"<tr><td><strong>Spray</strong></td><td>The Sailor</td><td><a href=\"https://shipsofscale.com/sosforums/threads/the-spray-of-joshua-slocum-scale-by-the-sailor.8793/\">The Spray of Joshua Slocum - scale ?? - by The Sailor</a></td><td></td></tr>","<tr><td><strong>Spray</strong></td>","<td>The Sailor</td>","<td><a href=\"https://shipsofscale.com/sosforums/threads/the-spray-of-joshua-slocum-scale-by-the-sailor.8793/\">The Spray of Joshua Slocum - scale ?? - by The Sailor</a></td>",0,"<td></td></tr>",""]
[" ",null,null,null,null,null,"<tr><td><strong> </strong></td><td></td><td><a href=\"\"></a></td><td></td></tr>","<tr><td><strong> </strong></td>","<td></td>","<td><a href=\"\"></a></td>",0,"<td></td></tr>",""]
["Steam Launch","Russian Steam Launch","https://shipsofscale.com/sosforums/threads/russian-steam-launch.15531/","https://shipsofscale.com/sosforums/threads/de-zeven-provincien-1665-1-100-fa-seahorse-tomasz-weremko.14220/page-2","Iterum",null,"<tr><td><strong>Steam Launch</strong></td><td>Iterum</td><td><a href=\"https://shipsofscale.com/sosforums/threads/russian-steam-launch.15531/\">Russian Steam Launch</a></td><td></td></tr>","<tr><td><strong>Steam Launch</strong></td>","<td>Iterum</td>","<td><a href=\"https://shipsofscale.com/sosforums/threads/russian-steam-launch.15531/\">Russian Steam Launch</a></td>",0,"<td></td></tr>",""]
[" ",null,null,null,null,null,"<tr><td><strong> </strong></td><td></td><td><a href=\"\"></a></td><td></td></tr>","<tr><td><strong> </strong></td>","<td></td>","<td><a href=\"\"></a></td>",0,"<td></td></tr>",""]
["Sterlyad","Scratch 1/64 STERLYAD Russ. Gunboat 1855","https://shipsofscale.com/sosforums/threads/scratch-1-64-sterlyad-russ-gunboat-1855.15561/","https://shipsofscale.com/sosforums/threads/ship-in-trouble.13276/page-4","Iterum",null,"<tr><td><strong>Sterlyad</strong></td><td>Iterum</td><td><a href=\"https://shipsofscale.com/sosforums/threads/scratch-1-64-sterlyad-russ-gunboat-1855.15561/\">Scratch 1/64 STERLYAD Russ. Gunboat 1855</a></td><td></td></tr>","<tr><td><strong>Sterlyad</strong></td>","<td>Iterum</td>","<td><a href=\"https://shipsofscale.com/sosforums/threads/scratch-1-64-sterlyad-russ-gunboat-1855.15561/\">Scratch 1/64 STERLYAD Russ. Gunboat 1855</a></td>",0,"<td></td></tr>",""]
[" ",null,null,null,null,null,"<tr><td><strong> </strong></td><td></td><td><a href=\"\"></a></td><td></td></tr>","<tr><td><strong> </strong></td>","<td></td>","<td><a href=\"\"></a></td>",0,"<td></td></tr>",""]
["Strohgbov","Steam tug STROHGBOV - 1:100 scale, own development.","https://shipsofscale.com/sosforums/threads/steam-tug-strohgbov-1-100-scale-own-development.15600/","https://shipsofscale.com/sosforums/threads/steam-tug-strohgbov-1-100-scale-own-development.15600/page-2","Lachezar Dragostinov",2,"<tr><td><strong>Strohgbov</strong></td><td>Lachezar Dragostinov</td><td><a href=\"https://shipsofscale.com/sosforums/threads/steam-tug-strohgbov-1-100-scale-own-development.15600/\">Steam tug STROHGBOV - 1:100 scale, own development.</a></td><td><a href=\"https://shipsofscale.com/sosforums/threads/steam-tug-strohgbov-1-100-scale-own-development.15600/page-2\">Page 2</a></td></tr>","<tr><td><strong>Strohgbov</strong></td>","<td>Lachezar Dragostinov</td>","<td><a href=\"https://shipsofscale.com/sosforums/threads/steam-tug-strohgbov-1-100-scale-own-development.15600/\">Steam tug STROHGBOV - 1:100 scale, own development.</a></td>",2,"<td><a href=\"https://shipsofscale.com/sosforums/threads/steam-tug-strohgbov-1-100-scale-own-development.15600/page-2\">Page 2</a></td></tr>",""]
[" ",null,null,null,null,null,"<tr><td><strong> </strong></td><td></td><td><a href=\"\"></a></td><td></td></tr>","<tr><td><strong> </strong></td>","<td></td>","<td><a href=\"\"></a></td>",0,"<td></td></tr>",""]
["Sussex","Hms Sussex - A dockyard model made of card","https://shipsofscale.com/sosforums/threads/hms-sussex-a-dockyard-model-made-of-card.17693/","https://shipsofscale.com/sosforums/threads/hms-sussex-a-dockyard-model-made-of-card.17693/page-3","Ab Hoving",3,"<tr><td><strong>Sussex</strong></td><td>Ab Hoving</td><td><a href=\"https://shipsofscale.com/sosforums/threads/hms-sussex-a-dockyard-model-made-of-card.17693/\">Hms Sussex - A dockyard model made of card</a></td><td><a href=\"https://shipsofscale.com/sosforums/threads/hms-sussex-a-dockyard-model-made-of-card.17693/page-3\">Page 3</a></td></tr>","<tr><td><strong>Sussex</strong></td>","<td>Ab Hoving</td>","<td><a href=\"https://shipsofscale.com/sosforums/threads/hms-sussex-a-dockyard-model-made-of-card.17693/\">Hms Sussex - A dockyard model made of card</a></td>",3,"<td><a href=\"https://shipsofscale.com/sosforums/threads/hms-sussex-a-dockyard-model-made-of-card.17693/page-3\">Page 3</a></td></tr>",""]
[" ",null,null,null,null,null,"<tr><td><strong> </strong></td><td></td><td><a href=\"\"></a></td><td></td></tr>","<tr><td><strong> </strong></td>","<td></td>","<td><a href=\"\"></a></td>",0,"<td></td></tr>",""]
[" ",null,null,null,null,null,"</tbody></table><hr /><p><a href=\"#TOP\">Back to Top</a></p><div style=\"text-align: left;\"><hr /><a name=\"T\"></a><strong>T</strong></u></p></div><table width=\"100%\" border=\"0\"><tbody><tr><td width=\"20%\"><span style=\"text-decoration: underline;\"><strong>Ship</strong></span></td><td width=\"12%\"><span style=\"text-decoration: underline;\"><strong>By</strong></span></td><td width=\"62%\"><span style=\"text-decoration: underline;\"><strong>Topic</strong></span></td><td width=\"6%\"><span style=\"text-decoration: underline;\"><strong>Latest</strong></span></td></u></tr>",null,null,null,null,null,""]
["Titanic","RMS Titanic 1:100","https://shipsofscale.com/sosforums/threads/rms-titanic-1-100.15871/","https://shipsofscale.com/sosforums/threads/schooner-jacinthe-kgdm-of-france-1825-scratch-1-64.16060/page-2","someCO_OLguy",null,"<tr><td><strong>Titanic</strong></td><td>someCO_OLguy</td><td><a href=\"https://shipsofscale.com/sosforums/threads/rms-titanic-1-100.15871/\">RMS Titanic 1:100</a></td><td></td></tr>","<tr><td><strong>Titanic</strong></td>","<td>someCO_OLguy</td>","<td><a href=\"https://shipsofscale.com/sosforums/threads/rms-titanic-1-100.15871/\">RMS Titanic 1:100</a></td>",0,"<td></td></tr>",""]
[" ","Schreiber-Bogen 1\\200 RMS Titanic","https://shipsofscale.com/sosforums/threads/schreiber-bogen-1-200-rms-titanic.5315/","https://shipsofscale.com/sosforums/threads/schreiber-bogen-1-200-rms-titanic.5315/page-2","peterairfix",2,"<tr><td><strong> </strong></td><td>peterairfix</td><td><a href=\"https://shipsofscale.com/sosforums/threads/schreiber-bogen-1-200-rms-titanic.5315/\">Schreiber-Bogen 1\\200 RMS Titanic</a></td><td><a href=\"https://shipsofscale.com/sosforums/threads/schreiber-bogen-1-200-rms-titanic.5315/page-2\">Page 2</a></td></tr>","<tr><td><strong> </strong></td>","<td>peterairfix</td>","<td><a href=\"https://shipsofscale.com/sosforums/threads/schreiber-bogen-1-200-rms-titanic.5315/\">Schreiber-Bogen 1\\200 RMS Titanic</a></td>",2,"<td><a href=\"https://shipsofscale.com/sosforums/threads/schreiber-bogen-1-200-rms-titanic.5315/page-2\">Page 2</a></td></tr>",""]
[" ",null,null,null,null,null,"<tr><td><strong> </strong></td><td></td><td><a href=\"\"></a></td><td></td></tr>","<tr><td><strong> </strong></td>","<td></td>","<td><a href=\"\"></a></td>",0,"<td></td></tr>",""]
["Tug","World of Paperships newest paper model: 3 New York tugboats scale 1: 250","https://shipsofscale.com/sosforums/threads/world-of-paperships-newest-paper-model-3-new-york-tugboats-scale-1-250.11069/","https://shipsofscale.com/sosforums/threads/uss-new-mexico-bb-40-scratch-model-scale-1-200-completed-build.4894/page-4","Jeroen",null,"<tr><td><strong>Tug</strong></td><td>Jeroen</td><td><a href=\"https://shipsofscale.com/sosforums/threads/world-of-paperships-newest-paper-model-3-new-york-tugboats-scale-1-250.11069/\">World of Paperships newest paper model: 3 New York tugboats scale 1: 250</a></td><td></td></tr>","<tr><td><strong>Tug</strong></td>","<td>Jeroen</td>","<td><a href=\"https://shipsofscale.com/sosforums/threads/world-of-paperships-newest-paper-model-3-new-york-tugboats-scale-1-250.11069/\">World of Paperships newest paper model: 3 New York tugboats scale 1: 250</a></td>",0,"<td></td></tr>",""]
[" ",null,null,null,null,null,"<tr><td><strong> </strong></td><td></td><td><a href=\"\"></a></td><td></td></tr>","<tr><td><strong> </strong></td>","<td></td>","<td><a href=\"\"></a></td>",0,"<td></td></tr>",""]
["Tygre","HMS TYGRE IIIb - Trial of conversion in 1:100","https://shipsofscale.com/sosforums/threads/hms-tygre-iiib-trial-of-conversion-in-1-100.8210/","https://shipsofscale.com/sosforums/threads/zeekoe-a-dutch-74ft-katt-in-scratch-1-66.8358/page-2","Iterum",null,"<tr><td><strong>Tygre</strong></td><td>Iterum</td><td><a href=\"https://shipsofscale.com/sosforums/threads/hms-tygre-iiib-trial-of-conversion-in-1-100.8210/\">HMS TYGRE IIIb - Trial of conversion in 1:100</a></td><td></td></tr>","<tr><td><strong>Tygre</strong></td>","<td>Iterum</td>","<td><a href=\"https://shipsofscale.com/sosforums/threads/hms-tygre-iiib-trial-of-conversion-in-1-100.8210/\">HMS TYGRE IIIb - Trial of conversion in 1:100</a></td>",0,"<td></td></tr>",""]
[" ",null,null,null,null,null,"<tr><td><strong> </strong></td><td></td><td><a href=\"\"></a></td><td></td></tr>","<tr><td><strong> </strong></td>","<td></td>","<td><a href=\"\"></a></td>",0,"<td></td></tr>",""]
[" ",null,null,null,null,null,"</tbody></table><hr /><p><a href=\"#TOP\">Back to Top</a></p><div style=\"text-align: left;\"><hr /><a name=\"U\"></a><strong>U</strong></u></p></div><table width=\"100%\" border=\"0\"><tbody><tr><td width=\"20%\"><span style=\"text-decoration: underline;\"><strong>Ship</strong></span></td><td width=\"12%\"><span style=\"text-decoration: underline;\"><strong>By</strong></span></td><td width=\"62%\"><span style=\"text-decoration: underline;\"><strong>Topic</strong></span></td><td width=\"6%\"><span style=\"text-decoration: underline;\"><strong>Latest</strong></span></td></u></tr>",null,null,null,null,null,""]
["Unknown","New to Card Ships","https://shipsofscale.com/sosforums/threads/new-to-card-ships.17813/","https://shipsofscale.com/sosforums/threads/steam-tug-strohgbov-1-100-scale-own-development.15600/page-2","Tony1955",null,"<tr><td><strong>Unknown</strong></td><td>Tony1955</td><td><a href=\"https://shipsofscale.com/sosforums/threads/new-to-card-ships.17813/\">New to Card Ships</a></td><td></td></tr>","<tr><td><strong>Unknown</strong></td>","<td>Tony1955</td>","<td><a href=\"https://shipsofscale.com/sosforums/threads/new-to-card-ships.17813/\">New to Card Ships</a></td>",0,"<td></td></tr>",""]
[" ",null,null,null,null,null,"<tr><td><strong> </strong></td><td></td><td><a href=\"\"></a></td><td></td></tr>","<tr><td><strong> </strong></td>","<td></td>","<td><a href=\"\"></a></td>",0,"<td></td></tr>",""]
["Un-named","Ship in trouble","https://shipsofscale.com/sosforums/threads/ship-in-trouble.13276/","https://shipsofscale.com/sosforums/threads/ship-in-trouble.13276/page-4","Ab Hoving",4,"<tr><td><strong>Un-named</strong></td><td>Ab Hoving</td><td><a href=\"https://shipsofscale.com/sosforums/threads/ship-in-trouble.13276/\">Ship in trouble</a></td><td><a href=\"https://shipsofscale.com/sosforums/threads/ship-in-trouble.13276/page-4\">Page 4</a></td></tr>","<tr><td><strong>Un-named</strong></td>","<td>Ab Hoving</td>","<td><a href=\"https://shipsofscale.com/sosforums/threads/ship-in-trouble.13276/\">Ship in trouble</a></td>",4,"<td><a href=\"https://shipsofscale.com/sosforums/threads/ship-in-trouble.13276/page-4\">Page 4</a></td></tr>",""]
[" ",null,null,null,null,null,"<tr><td><strong> </strong></td><td></td><td><a href=\"\"></a></td><td></td></tr>","<tr><td><strong> </strong></td>","<td></td>","<td><a href=\"\"></a></td>",0,"<td></td></tr>",""]
[" ",null,null,null,null,null,"</tbody></table><hr /><p><a href=\"#TOP\">Back to Top</a></p><div style=\"text-align: left;\"><hr /><a name=\"V\"></a><strong>V</strong></u></p></div><table width=\"100%\" border=\"0\"><tbody><tr><td width=\"20%\"><span style=\"text-decoration: underline;\"><strong>Ship</strong></span></td><td width=\"12%\"><span style=\"text-decoration: underline;\"><strong>By</strong></span></td><td width=\"62%\"><span style=\"text-decoration: underline;\"><strong>Topic</strong></span></td><td width=\"6%\"><span style=\"text-decoration: underline;\"><strong>Latest</strong></span></td></u></tr>",null,null,null,null,null,""]
["Various","Five-master","https://shipsofscale.com/sosforums/threads/five-master.10409/","https://shipsofscale.com/sosforums/threads/sao-gabriel-1-100-scratch.2838/page-2","Wilhelm Thümler",null,"<tr><td><strong>Various</strong></td><td>Wilhelm Thümler</td><td><a href=\"https://shipsofscale.com/sosforums/threads/five-master.10409/\">Five-master</a></td><td></td></tr>","<tr><td><strong>Various</strong></td>","<td>Wilhelm Thümler</td>","<td><a href=\"https://shipsofscale.com/sosforums/threads/five-master.10409/\">Five-master</a></td>",0,"<td></td></tr>",""]
[" ","New Paper Models 1/1250","https://shipsofscale.com/sosforums/threads/new-paper-models-1-1250.9949/","https://shipsofscale.com/sosforums/threads/hms-alert-vs-le-coureur-shipyard-1-72.4597/page-2","Wilhelm Thümler",null,"<tr><td><strong> </strong></td><td>Wilhelm Thümler</td><td><a href=\"https://shipsofscale.com/sosforums/threads/new-paper-models-1-1250.9949/\">New Paper Models 1/1250</a></td><td></td></tr>","<tr><td><strong> </strong></td>","<td>Wilhelm Thümler</td>","<td><a href=\"https://shipsofscale.com/sosforums/threads/new-paper-models-1-1250.9949/\">New Paper Models 1/1250</a></td>",0,"<td></td></tr>",""]
[" ","Paper models in scale 1/1250","https://shipsofscale.com/sosforums/threads/paper-models-in-scale-1-1250.3615/","https://shipsofscale.com/sosforums/threads/willem-ruys-1-250-cardboard-of-scaldis.6349/page-2","Wilhelm Thümler",null,"<tr><td><strong> </strong></td><td>Wilhelm Thümler</td><td><a href=\"https://shipsofscale.com/sosforums/threads/paper-models-in-scale-1-1250.3615/\">Paper models in scale 1/1250</a></td><td></td></tr>","<tr><td><strong> </strong></td>","<td>Wilhelm Thümler</td>","<td><a href=\"https://shipsofscale.com/sosforums/threads/paper-models-in-scale-1-1250.3615/\">Paper models in scale 1/1250</a></td>",0,"<td></td></tr>",""]
[" ","Paper Ship Models in 1/600 scale","https://shipsofscale.com/sosforums/threads/paper-ship-models-in-1-600-scale.5272/","https://shipsofscale.com/sosforums/threads/zeekoe-a-dutch-74ft-katt-in-scratch-1-66.8358/page-2","jimkrauzlis",null,"<tr><td><strong> </strong></td><td>jimkrauzlis</td><td><a href=\"https://shipsofscale.com/sosforums/threads/paper-ship-models-in-1-600-scale.5272/\">Paper Ship Models in 1/600 scale</a></td><td></td></tr>","<tr><td><strong> </strong></td>","<td>jimkrauzlis</td>","<td><a href=\"https://shipsofscale.com/sosforums/threads/paper-ship-models-in-1-600-scale.5272/\">Paper Ship Models in 1/600 scale</a></td>",0,"<td></td></tr>",""]
[" ",null,null,null,null,null,"<tr><td><strong> </strong></td><td></td><td><a href=\"\"></a></td><td></td></tr>","<tr><td><strong> </strong></td>","<td></td>","<td><a href=\"\"></a></td>",0,"<td></td></tr>",""]
["Victory","Glue","https://shipsofscale.com/sosforums/threads/glue.2484/","https://shipsofscale.com/sosforums/threads/glue.2484/page-2","Bazzg",2,"<tr><td><strong>Victory</strong></td><td>Bazzg</td><td><a href=\"https://shipsofscale.com/sosforums/threads/glue.2484/\">Glue</a></td><td><a href=\"https://shipsofscale.com/sosforums/threads/glue.2484/page-2\">Page 2</a></td></tr>","<tr><td><strong>Victory</strong></td>","<td>Bazzg</td>","<td><a href=\"https://shipsofscale.com/sosforums/threads/glue.2484/\">Glue</a></td>",2,"<td><a href=\"https://shipsofscale.com/sosforums/threads/glue.2484/page-2\">Page 2</a></td></tr>",""]
[" ","HMS Victory 1/96 by Shipyard","https://shipsofscale.com/sosforums/threads/hms-victory-1-96-by-shipyard.10509/","https://shipsofscale.com/sosforums/threads/hms-victory-1-96-by-shipyard.10509/page-2","IoannisK",2,"<tr><td><strong> </strong></td><td>IoannisK</td><td><a href=\"https://shipsofscale.com/sosforums/threads/hms-victory-1-96-by-shipyard.10509/\">HMS Victory 1/96 by Shipyard</a></td><td><a href=\"https://shipsofscale.com/sosforums/threads/hms-victory-1-96-by-shipyard.10509/page-2\">Page 2</a></td></tr>","<tr><td><strong> </strong></td>","<td>IoannisK</td>","<td><a href=\"https://shipsofscale.com/sosforums/threads/hms-victory-1-96-by-shipyard.10509/\">HMS Victory 1/96 by Shipyard</a></td>",2,"<td><a href=\"https://shipsofscale.com/sosforums/threads/hms-victory-1-96-by-shipyard.10509/page-2\">Page 2</a></td></tr>",""]
[" ","Hms Victory 1/96 on Shipyard","https://shipsofscale.com/sosforums/threads/hms-victory-1-96-on-shipyard.3216/","https://shipsofscale.com/sosforums/threads/hms-enterprize-1782-shipyard-1-72.1718/page-3","Bazzg",null,"<tr><td><strong> </strong></td><td>Bazzg</td><td><a href=\"https://shipsofscale.com/sosforums/threads/hms-victory-1-96-on-shipyard.3216/\">Hms Victory 1/96 on Shipyard</a></td><td></td></tr>","<tr><td><strong> </strong></td>","<td>Bazzg</td>","<td><a href=\"https://shipsofscale.com/sosforums/threads/hms-victory-1-96-on-shipyard.3216/\">Hms Victory 1/96 on Shipyard</a></td>",0,"<td></td></tr>",""]
[" ","HMS Victory 1:96 based on Shipyard","https://shipsofscale.com/sosforums/threads/hms-victory-1-96-based-on-shipyard.2411/","https://shipsofscale.com/sosforums/threads/hms-victory-1-96-based-on-shipyard.2411/page-4","Paragraf",4,"<tr><td><strong> </strong></td><td>Paragraf</td><td><a href=\"https://shipsofscale.com/sosforums/threads/hms-victory-1-96-based-on-shipyard.2411/\">HMS Victory 1:96 based on Shipyard</a></td><td><a href=\"https://shipsofscale.com/sosforums/threads/hms-victory-1-96-based-on-shipyard.2411/page-4\">Page 4</a></td></tr>","<tr><td><strong> </strong></td>","<td>Paragraf</td>","<td><a href=\"https://shipsofscale.com/sosforums/threads/hms-victory-1-96-based-on-shipyard.2411/\">HMS Victory 1:96 based on Shipyard</a></td>",4,"<td><a href=\"https://shipsofscale.com/sosforums/threads/hms-victory-1-96-based-on-shipyard.2411/page-4\">Page 4</a></td></tr>",""]
[" ","HMS Victory 1759 1:200 scale","https://shipsofscale.com/sosforums/threads/hms-victory-1759-1-200-scale.7851/","https://shipsofscale.com/sosforums/threads/hms-victory-1759-1-200-scale.7851/page-2","cap'nTallon",2,{"$f":"H235&I235&J235&L235","v":"<tr><td><strong> </strong></td><td>cap'nTallon</td><td><a href=\"https://shipsofscale.com/sosforums/threads/hms-victory-1759-1-200-scale.7851/\">HMS Victory 1759 1:200 scale</a></td><td><a href=\"https://shipsofscale.com/sosforums/threads/hms-victory-1759-1-200-scale.7851/page-2\">Page 2</a></td></tr>"},{"$f":"$L$1&$N$1&$J$1&A235&$J$2&$N$2","v":"<tr><td><strong> </strong></td>"},{"$f":"$N$1&E235&$N$2","v":"<td>cap'nTallon</td>"},{"$f":"$N$1&$O$1&C235&$P$1&B235&$O$2&$N$2","v":"<td><a href=\"https://shipsofscale.com/sosforums/threads/hms-victory-1759-1-200-scale.7851/\">HMS Victory 1759 1:200 scale</a></td>"},{"$f":"F235","v":2},{"$f":"$N$1&IF(K235>0,$O$1&D235&$P$1&\"Page \"&K235&$O$2,\"\")&$N$2&$L$2","v":"<td><a href=\"https://shipsofscale.com/sosforums/threads/hms-victory-1759-1-200-scale.7851/page-2\">Page 2</a></td></tr>"},""]
[" ","HMS VICTORY on 1/96 Shipyard Build","https://shipsofscale.com/sosforums/threads/hms-victory-on-1-96-shipyard-build.3069/","https://shipsofscale.com/sosforums/threads/willem-ruys-1-250-cardboard-of-scaldis.6349/page-2","Bazzg",null,"<tr><td><strong> </strong></td><td>Bazzg</td><td><a href=\"https://shipsofscale.com/sosforums/threads/hms-victory-on-1-96-shipyard-build.3069/\">HMS VICTORY on 1/96 Shipyard Build</a></td><td></td></tr>","<tr><td><strong> </strong></td>","<td>Bazzg</td>","<td><a href=\"https://shipsofscale.com/sosforums/threads/hms-victory-on-1-96-shipyard-build.3069/\">HMS VICTORY on 1/96 Shipyard Build</a></td>",0,"<td></td></tr>",""]
[" ","Shipyard HMS Victory 1:96 build","https://shipsofscale.com/sosforums/threads/shipyard-hms-victory-1-96-build.2551/","https://shipsofscale.com/sosforums/threads/hms-enterprize-1782-shipyard-1-72.1718/page-3","epicdoom",null,"<tr><td><strong> </strong></td><td>epicdoom</td><td><a href=\"https://shipsofscale.com/sosforums/threads/shipyard-hms-victory-1-96-build.2551/\">Shipyard HMS Victory 1:96 build</a></td><td></td></tr>","<tr><td><strong> </strong></td>","<td>epicdoom</td>","<td><a href=\"https://shipsofscale.com/sosforums/threads/shipyard-hms-victory-1-96-build.2551/\">Shipyard HMS Victory 1:96 build</a></td>",0,"<td></td></tr>",""]
[" ",null,null,null,null,null,"<tr><td><strong> </strong></td><td></td><td><a href=\"\"></a></td><td></td></tr>","<tr><td><strong> </strong></td>","<td></td>","<td><a href=\"\"></a></td>",0,"<td></td></tr>",""]
["Vistula Barge","Szkuta wiślana (Vistula barge) 1:100, scratch [COMPLETED BUILD]","https://shipsofscale.com/sosforums/threads/szkuta-wi%C5%9Blana-vistula-barge-1-100-scratch-completed-build.9232/","https://shipsofscale.com/sosforums/threads/de-zeven-provincien-1-100-scratch.4892/page-3","0Seahorse",null,"<tr><td><strong>Vistula Barge</strong></td><td>0Seahorse</td><td><a href=\"https://shipsofscale.com/sosforums/threads/szkuta-wi%C5%9Blana-vistula-barge-1-100-scratch-completed-build.9232/\">Szkuta wiślana (Vistula barge) 1:100, scratch [COMPLETED BUILD]</a></td><td></td></tr>","<tr><td><strong>Vistula Barge</strong></td>","<td>0Seahorse</td>","<td><a href=\"https://shipsofscale.com/sosforums/threads/szkuta-wi%C5%9Blana-vistula-barge-1-100-scratch-completed-build.9232/\">Szkuta wiślana (Vistula barge) 1:100, scratch [COMPLETED BUILD]</a></td>",0,"<td></td></tr>",""]
[" ",null,null,null,null,null,"<tr><td><strong> </strong></td><td></td><td><a href=\"\"></a></td><td></td></tr>","<tr><td><strong> </strong></td>","<td></td>","<td><a href=\"\"></a></td>",0,"<td></td></tr>",""]
["VOC ship","A 160-feet VOC-retourschip from 1697","https://shipsofscale.com/sosforums/threads/a-160-feet-voc-retourschip-from-1697.5594/","https://shipsofscale.com/sosforums/threads/willem-ruys-1-250-cardboard-of-scaldis.6349/page-2","Ab Hoving",null,"<tr><td><strong>VOC ship</strong></td><td>Ab Hoving</td><td><a href=\"https://shipsofscale.com/sosforums/threads/a-160-feet-voc-retourschip-from-1697.5594/\">A 160-feet VOC-retourschip from 1697</a></td><td></td></tr>","<tr><td><strong>VOC ship</strong></td>","<td>Ab Hoving</td>","<td><a href=\"https://shipsofscale.com/sosforums/threads/a-160-feet-voc-retourschip-from-1697.5594/\">A 160-feet VOC-retourschip from 1697</a></td>",0,"<td></td></tr>",""]
[" ",null,null,null,null,null,"<tr><td><strong> </strong></td><td></td><td><a href=\"\"></a></td><td></td></tr>","<tr><td><strong> </strong></td>","<td></td>","<td><a href=\"\"></a></td>",0,"<td></td></tr>",""]
[" ",null,null,null,null,null,"</tbody></table><hr /><p><a href=\"#TOP\">Back to Top</a></p><div style=\"text-align: left;\"><hr /><a name=\"W\"></a><strong>W</strong></u></p></div><table width=\"100%\" border=\"0\"><tbody><tr><td width=\"20%\"><span style=\"text-decoration: underline;\"><strong>Ship</strong></span></td><td width=\"12%\"><span style=\"text-decoration: underline;\"><strong>By</strong></span></td><td width=\"62%\"><span style=\"text-decoration: underline;\"><strong>Topic</strong></span></td><td width=\"6%\"><span style=\"text-decoration: underline;\"><strong>Latest</strong></span></td></u></tr>",null,null,null,null,null,""]
["Whaleboat","28ft Whaling boat 1/64","https://shipsofscale.com/sosforums/threads/28ft-whaling-boat-1-64.5025/","https://shipsofscale.com/sosforums/threads/hms-enterprize-1782-shipyard-1-72.1718/page-3","Iterum",null,"<tr><td><strong>Whaleboat</strong></td><td>Iterum</td><td><a href=\"https://shipsofscale.com/sosforums/threads/28ft-whaling-boat-1-64.5025/\">28ft Whaling boat 1/64</a></td><td></td></tr>","<tr><td><strong>Whaleboat</strong></td>","<td>Iterum</td>","<td><a href=\"https://shipsofscale.com/sosforums/threads/28ft-whaling-boat-1-64.5025/\">28ft Whaling boat 1/64</a></td>",0,"<td></td></tr>",""]
[" ",null,null,null,null,null,"<tr><td><strong> </strong></td><td></td><td><a href=\"\"></a></td><td></td></tr>","<tr><td><strong> </strong></td>","<td></td>","<td><a href=\"\"></a></td>",0,"<td></td></tr>",""]
["Willem Ruys","Willem Ruys 1:250, cardboard of Scaldis","https://shipsofscale.com/sosforums/threads/willem-ruys-1-250-cardboard-of-scaldis.6349/","https://shipsofscale.com/sosforums/threads/willem-ruys-1-250-cardboard-of-scaldis.6349/page-2","André de R.",2,"<tr><td><strong>Willem Ruys</strong></td><td>André de R.</td><td><a href=\"https://shipsofscale.com/sosforums/threads/willem-ruys-1-250-cardboard-of-scaldis.6349/\">Willem Ruys 1:250, cardboard of Scaldis</a></td><td><a href=\"https://shipsofscale.com/sosforums/threads/willem-ruys-1-250-cardboard-of-scaldis.6349/page-2\">Page 2</a></td></tr>","<tr><td><strong>Willem Ruys</strong></td>","<td>André de R.</td>","<td><a href=\"https://shipsofscale.com/sosforums/threads/willem-ruys-1-250-cardboard-of-scaldis.6349/\">Willem Ruys 1:250, cardboard of Scaldis</a></td>",2,"<td><a href=\"https://shipsofscale.com/sosforums/threads/willem-ruys-1-250-cardboard-of-scaldis.6349/page-2\">Page 2</a></td></tr>",""]
[" ",null,null,null,null,null,"<tr><td><strong> </strong></td><td></td><td><a href=\"\"></a></td><td></td></tr>","<tr><td><strong> </strong></td>","<td></td>","<td><a href=\"\"></a></td>",0,"<td></td></tr>",""]
[" ",null,null,null,null,null,"</tbody></table><hr /><p><a href=\"#TOP\">Back to Top</a></p><div style=\"text-align: left;\"><hr /><a name=\"Y\"></a><strong>Y</strong></u></p></div><table width=\"100%\" border=\"0\"><tbody><tr><td width=\"20%\"><span style=\"text-decoration: underline;\"><strong>Ship</strong></span></td><td width=\"12%\"><span style=\"text-decoration: underline;\"><strong>By</strong></span></td><td width=\"62%\"><span style=\"text-decoration: underline;\"><strong>Topic</strong></span></td><td width=\"6%\"><span style=\"text-decoration: underline;\"><strong>Latest</strong></span></td></u></tr>",null,null,null,null,null,""]
["Yacht","The Dutch yacht 18th century [COMPLETED BUILD]","https://shipsofscale.com/sosforums/threads/the-dutch-yacht-18th-century-completed-build.5760/","https://shipsofscale.com/sosforums/threads/the-dutch-yacht-18th-century-completed-build.5760/page-2","Demetri",2,"<tr><td><strong>Yacht</strong></td><td>Demetri</td><td><a href=\"https://shipsofscale.com/sosforums/threads/the-dutch-yacht-18th-century-completed-build.5760/\">The Dutch yacht 18th century [COMPLETED BUILD]</a></td><td><a href=\"https://shipsofscale.com/sosforums/threads/the-dutch-yacht-18th-century-completed-build.5760/page-2\">Page 2</a></td></tr>","<tr><td><strong>Yacht</strong></td>","<td>Demetri</td>","<td><a href=\"https://shipsofscale.com/sosforums/threads/the-dutch-yacht-18th-century-completed-build.5760/\">The Dutch yacht 18th century [COMPLETED BUILD]</a></td>",2,"<td><a href=\"https://shipsofscale.com/sosforums/threads/the-dutch-yacht-18th-century-completed-build.5760/page-2\">Page 2</a></td></tr>",""]
[" ",null,null,null,null,null,"<tr><td><strong> </strong></td><td></td><td><a href=\"\"></a></td><td></td></tr>","<tr><td><strong> </strong></td>","<td></td>","<td><a href=\"\"></a></td>",0,"<td></td></tr>",""]
["YMS-326 Minesweeper","YMS-326 Minesweeper (Aleutians, 1944) - from Orlik 1/100","https://shipsofscale.com/sosforums/threads/yms-326-minesweeper-aleutians-1944-from-orlik-1-100.11235/","https://shipsofscale.com/sosforums/threads/de-zeven-provincien-1-100-scratch-seahorse-new-design-completed-build.4892/page-4","Kilroy1988",null,"<tr><td><strong>YMS-326 Minesweeper</strong></td><td>Kilroy1988</td><td><a href=\"https://shipsofscale.com/sosforums/threads/yms-326-minesweeper-aleutians-1944-from-orlik-1-100.11235/\">YMS-326 Minesweeper (Aleutians, 1944) - from Orlik 1/100</a></td><td></td></tr>","<tr><td><strong>YMS-326 Minesweeper</strong></td>","<td>Kilroy1988</td>","<td><a href=\"https://shipsofscale.com/sosforums/threads/yms-326-minesweeper-aleutians-1944-from-orlik-1-100.11235/\">YMS-326 Minesweeper (Aleutians, 1944) - from Orlik 1/100</a></td>",0,"<td></td></tr>",""]
[" ",null,null,null,null,null,"<tr><td><strong> </strong></td><td></td><td><a href=\"\"></a></td><td></td></tr>","<tr><td><strong> </strong></td>","<td></td>","<td><a href=\"\"></a></td>",0,"<td></td></tr>",""]
[" ",null,null,null,null,null,"</tbody></table><hr /><p><a href=\"#TOP\">Back to Top</a></p><div style=\"text-align: left;\"><hr /><a name=\"Z\"></a><strong>Z</strong></u></p></div><table width=\"100%\" border=\"0\"><tbody><tr><td width=\"20%\"><span style=\"text-decoration: underline;\"><strong>Ship</strong></span></td><td width=\"12%\"><span style=\"text-decoration: underline;\"><strong>By</strong></span></td><td width=\"62%\"><span style=\"text-decoration: underline;\"><strong>Topic</strong></span></td><td width=\"6%\"><span style=\"text-decoration: underline;\"><strong>Latest</strong></span></td></u></tr>",null,null,null,null,null,""]
["Zeekoe","ZEEKOE a Dutch 74ft Katt in Scratch 1/66","https://shipsofscale.com/sosforums/threads/zeekoe-a-dutch-74ft-katt-in-scratch-1-66.8358/","https://shipsofscale.com/sosforums/threads/zeekoe-a-dutch-74ft-katt-in-scratch-1-66.8358/page-2","Iterum",2,"<tr><td><strong>Zeekoe</strong></td><td>Iterum</td><td><a href=\"https://shipsofscale.com/sosforums/threads/zeekoe-a-dutch-74ft-katt-in-scratch-1-66.8358/\">ZEEKOE a Dutch 74ft Katt in Scratch 1/66</a></td><td><a href=\"https://shipsofscale.com/sosforums/threads/zeekoe-a-dutch-74ft-katt-in-scratch-1-66.8358/page-2\">Page 2</a></td></tr>","<tr><td><strong>Zeekoe</strong></td>","<td>Iterum</td>","<td><a href=\"https://shipsofscale.com/sosforums/threads/zeekoe-a-dutch-74ft-katt-in-scratch-1-66.8358/\">ZEEKOE a Dutch 74ft Katt in Scratch 1/66</a></td>",2,"<td><a href=\"https://shipsofscale.com/sosforums/threads/zeekoe-a-dutch-74ft-katt-in-scratch-1-66.8358/page-2\">Page 2</a></td></tr>",""]
[" ",null,null,null,null,null,"<tr><td><strong> </strong></td><td></td><td><a href=\"\"></a></td><td></td></tr>","<tr><td><strong> </strong></td>","<td></td>","<td><a href=\"\"></a></td>",0,"<td></td></tr>",""]
["Zeven Provincien","De Zeven Provincien 1665 - 1.100, Fa. Seahorse (Tomasz Weremko)","https://shipsofscale.com/sosforums/threads/de-zeven-provincien-1665-1-100-fa-seahorse-tomasz-weremko.14220/","https://shipsofscale.com/sosforums/threads/de-zeven-provincien-1665-1-100-fa-seahorse-tomasz-weremko.14220/page-2","Bonden",2,"<tr><td><strong>Zeven Provincien</strong></td><td>Bonden</td><td><a href=\"https://shipsofscale.com/sosforums/threads/de-zeven-provincien-1665-1-100-fa-seahorse-tomasz-weremko.14220/\">De Zeven Provincien 1665 - 1.100, Fa. Seahorse (Tomasz Weremko)</a></td><td><a href=\"https://shipsofscale.com/sosforums/threads/de-zeven-provincien-1665-1-100-fa-seahorse-tomasz-weremko.14220/page-2\">Page 2</a></td></tr>","<tr><td><strong>Zeven Provincien</strong></td>","<td>Bonden</td>","<td><a href=\"https://shipsofscale.com/sosforums/threads/de-zeven-provincien-1665-1-100-fa-seahorse-tomasz-weremko.14220/\">De Zeven Provincien 1665 - 1.100, Fa. Seahorse (Tomasz Weremko)</a></td>",2,"<td><a href=\"https://shipsofscale.com/sosforums/threads/de-zeven-provincien-1665-1-100-fa-seahorse-tomasz-weremko.14220/page-2\">Page 2</a></td></tr>",""]
[" ",null,null,null,null,null,"<tr><td><strong> </strong></td><td></td><td><a href=\"\"></a></td><td></td></tr>","<tr><td><strong> </strong></td>","<td></td>","<td><a href=\"\"></a></td>",0,"<td></td></tr>",""]
["Zobol","ZOBOL' a might have been 1890 torpedo ship","https://shipsofscale.com/sosforums/threads/zobol-a-might-have-been-1890-torpedo-ship.12971/","https://shipsofscale.com/sosforums/threads/hms-victory-1-96-based-on-shipyard.2411/page-4","Iterum",null,"<tr><td><strong>Zobol</strong></td><td>Iterum</td><td><a href=\"https://shipsofscale.com/sosforums/threads/zobol-a-might-have-been-1890-torpedo-ship.12971/\">ZOBOL' a might have been 1890 torpedo ship</a></td><td></td></tr>","<tr><td><strong>Zobol</strong></td>","<td>Iterum</td>","<td><a href=\"https://shipsofscale.com/sosforums/threads/zobol-a-might-have-been-1890-torpedo-ship.12971/\">ZOBOL' a might have been 1890 torpedo ship</a></td>",0,"<td></td></tr>",""]
[null,null,null,null,null,null,"</tbody></table><p>&#160;</p><hr /><p><a href=\"#TOP\">Back to Top</a></p><hr /><p>If you have any comments or require any corrections or amendments to this index, please post them <a href=\"https://shipsofscale.com/sosforums/threads/sos-card-stock-paper-index.13063/\">here</a></p><p>&#160;</p>",""]